{"text_format":"1","workbook":"xlsx","n_sheets":3,"sheets":["Instructions","Quarterly Usage "," Abbreviation List"],"not_rendered":{"charts":0,"images":9,"macros":1,"external_links":0,"defined_names":22,"comments":0,"pivot_tables":0},"unopened":[],"bounds":{"document_bytes":16777216,"sheet_cells":100000,"rows_first":2000,"rows_last":500,"rows_between":2000,"halvings":0,"cell_chars":16384,"cell_head_chars":4096},"cells_cut":0,"cells_raw":0,"read":"whole","date_system":"1900"}

{"sheet":"Instructions","index":0,"n_rows":84,"n_cols":9,"rows_kept":84,"cut":false,"hidden":false,"merged":[[77,2,77,7],[74,2,75,17],[0,0,0,17],[2,0,3,17],[53,2,54,17],[58,2,60,17],[63,8,65,17],[5,1,6,17]]}
[]
[]
["The following instructions explain how to complete the Quarterly State Use Contract Usage Report for the State of Oklahoma.  If you have questions regarding reporting, levy fee, or this template, please contact sureports@omes.ok.gov."]
[]
["Notes: "]
[null,"1.) In order for the built-in functions of this spreadsheet to work properly, macros must be enabled.  To do this, please click \"Enable Content\" in the yellow ribbon at the top of the spreadsheet."]
[]
[]
[]
[]
[]
[]
[]
[]
[]
[null,"2.) Columns M & N are locked.  You may not edit the calculated fields under any circumstances."]
[]
[]
[]
[]
[]
[]
[]
[]
[]
[]
[]
[]
["Completing the Quarterly Usage Report"]
[null,"1.)  Select the Quarterly Usage worksheet"]
[]
[]
[]
[]
[]
[]
[]
[]
[]
[]
[]
[]
[]
[]
[]
[null,"2.)  Enter contract information as described below."]
[]
[]
[]
[]
[]
[]
[]
[null,null,"The State Use Contract number references the State of Oklahoma naming convention.  The format will be SWXXXX.  If you do not know the State Use Contract number for which you are reporting, please reference your signed contract, the contract award notification, or email sureports@omes.ok.gov"]
[]
[]
[]
[]
[null,null,"The Supplier name should match the name listed on the Contract Award Documents.  If your company has a formal name but is doing business as (dba) another name, please detail this as Company ABC dba Company XYZ.  "]
[]
[]
[]
[]
[null,null,null,null,null,null,null,null,"The reporting period references the date range for which sales were made.  Please put an \"X\" indicating which quarter is being submitted."]
[]
[]
[]
[null,"3.) Field Descriptions"]
[]
[]
[]
[null,null,"A. Enter the Ordering Entity's Purchase Order number.  If it is a P-card purchase, please enter \"Pcard\" in the cell.  Do not enter the credit card number."]
[null,null,"B. Enter the date the order was placed."]
[null,null,"C. Enter the date the order was invoiced. "]
[null,null,"D. Enter the Purchasing Entity's name, abbreviation, or number here.  To identify State Agencies or Higher Education institutions, please reference the 'Abbreviation List' tab at the end of the workbook."]
[]
[null,null,"E. Shipping Location - Enter the city in which products or services were received, or the specific office/subdivision title (i.e. DOC Mable Basset)."]
[null,null,"F.  Enter the Item ID # if applicable"]
[null,null,"G. Product Category, if applicable."]
[null,null,"H. The Product Description should concisely explain what has been received by the end user.  "]
[null,null,"I. Enter the Unit fo Measure if applicable"]
[null,null,"J. Enter the Contract Price"]
[null,null,"K. Enter the quantity sold"]
[null,null,"Remaining fields will automatically calculate based on the values entered (Extended Price & 1% levy due)."]

{"sheet":"Quarterly Usage ","index":1,"n_rows":1003,"n_cols":14,"rows_kept":1003,"cut":false,"hidden":false,"merged":[[4,2,6,13],[0,2,0,12],[3,2,3,13],[2,0,2,1],[2,2,2,13]]}
[null,null,"State of Oklahoma - OMES Central Purchasing - State Use "]
["CONTRACT #",null,null,null,null,null,null,"SUPPLIER NAME:"]
["REPORTING PERIOD",null,"Instructions:  In the spreadsheet below, please provide a detailed usage report for purchases made by all State of Oklahoma agencies, counties, school districts, municipalities, higher education institutions and all other authorized users."]
["(__)","July 1 - Sept 30","Submit Contract Usage Reports, in Excel format, by email to: sureports@omes.ok.gov"]
["(__)","Oct 1 - Dec 31","Mail Contract Levy Fee Checks to: Office of Management & Enterprise Services  |  P.O. Box 248984, Oklahoma City, OK 73124-8984"]
["(__)","Jan 1 - Mar 31"]
["(__)","April 1 - Jun 30"]
["-","Purchase Order # /  P-Card (do not list #)","Order Date","Invoice Date","Purchasing Agency / Entity","Shipping Location","Item ID","Product Category","Product Descriptions","Unit of Measure","Contract Price","Quantity Sold","Extended Price","1% Levy Due"]
[1,null,null,null,null,null,null,null,null,null,null,null,{"$f":"Table2[[#This Row],[Contract Price]]*Table2[[#This Row],[Quantity Sold]]","v":0},{"$f":"Table2[[#This Row],[Extended Price]]*1%","v":0}]
[2,null,null,null,null,null,null,null,null,null,null,null,{"$f":"Table2[[#This Row],[Contract Price]]*Table2[[#This Row],[Quantity Sold]]","v":0},{"$f":"Table2[[#This Row],[Extended Price]]*1%","v":0}]
[3,null,null,null,null,null,null,null,null,null,null,null,{"$f":"Table2[[#This Row],[Contract Price]]*Table2[[#This Row],[Quantity Sold]]","v":0},{"$f":"Table2[[#This Row],[Extended Price]]*1%","v":0}]
[4,null,null,null,null,null,null,null,null,null,null,null,{"$f":"Table2[[#This Row],[Contract Price]]*Table2[[#This Row],[Quantity Sold]]","v":0},{"$f":"Table2[[#This Row],[Extended Price]]*1%","v":0}]
[5,null,null,null,null,null,null,null,null,null,null,null,{"$f":"Table2[[#This Row],[Contract Price]]*Table2[[#This Row],[Quantity Sold]]","v":0},{"$f":"Table2[[#This Row],[Extended Price]]*1%","v":0}]
[6,null,null,null,null,null,null,null,null,null,null,null,{"$f":"Table2[[#This Row],[Contract Price]]*Table2[[#This Row],[Quantity Sold]]","v":0},{"$f":"Table2[[#This Row],[Extended Price]]*1%","v":0}]
[7,null,null,null,null,null,null,null,null,null,null,null,{"$f":"Table2[[#This Row],[Contract Price]]*Table2[[#This Row],[Quantity Sold]]","v":0},{"$f":"Table2[[#This Row],[Extended Price]]*1%","v":0}]
[8,null,null,null,null,null,null,null,null,null,null,null,{"$f":"Table2[[#This Row],[Contract Price]]*Table2[[#This Row],[Quantity Sold]]","v":0},{"$f":"Table2[[#This Row],[Extended Price]]*1%","v":0}]
[9,null,null,null,null,null,null,null,null,null,null,null,{"$f":"Table2[[#This Row],[Contract Price]]*Table2[[#This Row],[Quantity Sold]]","v":0},{"$f":"Table2[[#This Row],[Extended Price]]*1%","v":0}]
[10,null,null,null,null,null,null,null,null,null,null,null,{"$f":"Table2[[#This Row],[Contract Price]]*Table2[[#This Row],[Quantity Sold]]","v":0},{"$f":"Table2[[#This Row],[Extended Price]]*1%","v":0}]
[11,null,null,null,null,null,null,null,null,null,null,null,{"$f":"Table2[[#This Row],[Contract Price]]*Table2[[#This Row],[Quantity Sold]]","v":0},{"$f":"Table2[[#This Row],[Extended Price]]*1%","v":0}]
[12,null,null,null,null,null,null,null,null,null,null,null,{"$f":"Table2[[#This Row],[Contract Price]]*Table2[[#This Row],[Quantity Sold]]","v":0},{"$f":"Table2[[#This Row],[Extended Price]]*1%","v":0}]
[13,null,null,null,null,null,null,null,null,null,null,null,{"$f":"Table2[[#This Row],[Contract Price]]*Table2[[#This Row],[Quantity Sold]]","v":0},{"$f":"Table2[[#This Row],[Extended Price]]*1%","v":0}]
[14,null,null,null,null,null,null,null,null,null,null,null,{"$f":"Table2[[#This Row],[Contract Price]]*Table2[[#This Row],[Quantity Sold]]","v":0},{"$f":"Table2[[#This Row],[Extended Price]]*1%","v":0}]
[15,null,null,null,null,null,null,null,null,null,null,null,{"$f":"Table2[[#This Row],[Contract Price]]*Table2[[#This Row],[Quantity Sold]]","v":0},{"$f":"Table2[[#This Row],[Extended Price]]*1%","v":0}]
[16,null,null,null,null,null,null,null,null,null,null,null,{"$f":"Table2[[#This Row],[Contract Price]]*Table2[[#This Row],[Quantity Sold]]","v":0},{"$f":"Table2[[#This Row],[Extended Price]]*1%","v":0}]
[17,null,null,null,null,null,null,null,null,null,null,null,{"$f":"Table2[[#This Row],[Contract Price]]*Table2[[#This Row],[Quantity Sold]]","v":0},{"$f":"Table2[[#This Row],[Extended Price]]*1%","v":0}]
[18,null,null,null,null,null,null,null,null,null,null,null,{"$f":"Table2[[#This Row],[Contract Price]]*Table2[[#This Row],[Quantity Sold]]","v":0},{"$f":"Table2[[#This Row],[Extended Price]]*1%","v":0}]
[19,null,null,null,null,null,null,null,null,null,null,null,{"$f":"Table2[[#This Row],[Contract Price]]*Table2[[#This Row],[Quantity Sold]]","v":0},{"$f":"Table2[[#This Row],[Extended Price]]*1%","v":0}]
[20,null,null,null,null,null,null,null,null,null,null,null,{"$f":"Table2[[#This Row],[Contract Price]]*Table2[[#This Row],[Quantity Sold]]","v":0},{"$f":"Table2[[#This Row],[Extended Price]]*1%","v":0}]
[21,null,null,null,null,null,null,null,null,null,null,null,{"$f":"Table2[[#This Row],[Contract Price]]*Table2[[#This Row],[Quantity Sold]]","v":0},{"$f":"Table2[[#This Row],[Extended Price]]*1%","v":0}]
[22,null,null,null,null,null,null,null,null,null,null,null,{"$f":"Table2[[#This Row],[Contract Price]]*Table2[[#This Row],[Quantity Sold]]","v":0},{"$f":"Table2[[#This Row],[Extended Price]]*1%","v":0}]
[23,null,null,null,null,null,null,null,null,null,null,null,{"$f":"Table2[[#This Row],[Contract Price]]*Table2[[#This Row],[Quantity Sold]]","v":0},{"$f":"Table2[[#This Row],[Extended Price]]*1%","v":0}]
[24,null,null,null,null,null,null,null,null,null,null,null,{"$f":"Table2[[#This Row],[Contract Price]]*Table2[[#This Row],[Quantity Sold]]","v":0},{"$f":"Table2[[#This Row],[Extended Price]]*1%","v":0}]
[25,null,null,null,null,null,null,null,null,null,null,null,{"$f":"Table2[[#This Row],[Contract Price]]*Table2[[#This Row],[Quantity Sold]]","v":0},{"$f":"Table2[[#This Row],[Extended Price]]*1%","v":0}]
[26,null,null,null,null,null,null,null,null,null,null,null,{"$f":"Table2[[#This Row],[Contract Price]]*Table2[[#This Row],[Quantity Sold]]","v":0},{"$f":"Table2[[#This Row],[Extended Price]]*1%","v":0}]
[27,null,null,null,null,null,null,null,null,null,null,null,{"$f":"Table2[[#This Row],[Contract Price]]*Table2[[#This Row],[Quantity Sold]]","v":0},{"$f":"Table2[[#This Row],[Extended Price]]*1%","v":0}]
[28,null,null,null,null,null,null,null,null,null,null,null,{"$f":"Table2[[#This Row],[Contract Price]]*Table2[[#This Row],[Quantity Sold]]","v":0},{"$f":"Table2[[#This Row],[Extended Price]]*1%","v":0}]
[29,null,null,null,null,null,null,null,null,null,null,null,{"$f":"Table2[[#This Row],[Contract Price]]*Table2[[#This Row],[Quantity Sold]]","v":0},{"$f":"Table2[[#This Row],[Extended Price]]*1%","v":0}]
[30,null,null,null,null,null,null,null,null,null,null,null,{"$f":"Table2[[#This Row],[Contract Price]]*Table2[[#This Row],[Quantity Sold]]","v":0},{"$f":"Table2[[#This Row],[Extended Price]]*1%","v":0}]
[31,null,null,null,null,null,null,null,null,null,null,null,{"$f":"Table2[[#This Row],[Contract Price]]*Table2[[#This Row],[Quantity Sold]]","v":0},{"$f":"Table2[[#This Row],[Extended Price]]*1%","v":0}]
[32,null,null,null,null,null,null,null,null,null,null,null,{"$f":"Table2[[#This Row],[Contract Price]]*Table2[[#This Row],[Quantity Sold]]","v":0},{"$f":"Table2[[#This Row],[Extended Price]]*1%","v":0}]
[33,null,null,null,null,null,null,null,null,null,null,null,{"$f":"Table2[[#This Row],[Contract Price]]*Table2[[#This Row],[Quantity Sold]]","v":0},{"$f":"Table2[[#This Row],[Extended Price]]*1%","v":0}]
[34,null,null,null,null,null,null,null,null,null,null,null,{"$f":"Table2[[#This Row],[Contract Price]]*Table2[[#This Row],[Quantity Sold]]","v":0},{"$f":"Table2[[#This Row],[Extended Price]]*1%","v":0}]
[35,null,null,null,null,null,null,null,null,null,null,null,{"$f":"Table2[[#This Row],[Contract Price]]*Table2[[#This Row],[Quantity Sold]]","v":0},{"$f":"Table2[[#This Row],[Extended Price]]*1%","v":0}]
[36,null,null,null,null,null,null,null,null,null,null,null,{"$f":"Table2[[#This Row],[Contract Price]]*Table2[[#This Row],[Quantity Sold]]","v":0},{"$f":"Table2[[#This Row],[Extended Price]]*1%","v":0}]
[37,null,null,null,null,null,null,null,null,null,null,null,{"$f":"Table2[[#This Row],[Contract Price]]*Table2[[#This Row],[Quantity Sold]]","v":0},{"$f":"Table2[[#This Row],[Extended Price]]*1%","v":0}]
[38,null,null,null,null,null,null,null,null,null,null,null,{"$f":"Table2[[#This Row],[Contract Price]]*Table2[[#This Row],[Quantity Sold]]","v":0},{"$f":"Table2[[#This Row],[Extended Price]]*1%","v":0}]
[39,null,null,null,null,null,null,null,null,null,null,null,{"$f":"Table2[[#This Row],[Contract Price]]*Table2[[#This Row],[Quantity Sold]]","v":0},{"$f":"Table2[[#This Row],[Extended Price]]*1%","v":0}]
[40,null,null,null,null,null,null,null,null,null,null,null,{"$f":"Table2[[#This Row],[Contract Price]]*Table2[[#This Row],[Quantity Sold]]","v":0},{"$f":"Table2[[#This Row],[Extended Price]]*1%","v":0}]
[41,null,null,null,null,null,null,null,null,null,null,null,{"$f":"Table2[[#This Row],[Contract Price]]*Table2[[#This Row],[Quantity Sold]]","v":0},{"$f":"Table2[[#This Row],[Extended Price]]*1%","v":0}]
[42,null,null,null,null,null,null,null,null,null,null,null,{"$f":"Table2[[#This Row],[Contract Price]]*Table2[[#This Row],[Quantity Sold]]","v":0},{"$f":"Table2[[#This Row],[Extended Price]]*1%","v":0}]
[43,null,null,null,null,null,null,null,null,null,null,null,{"$f":"Table2[[#This Row],[Contract Price]]*Table2[[#This Row],[Quantity Sold]]","v":0},{"$f":"Table2[[#This Row],[Extended Price]]*1%","v":0}]
[44,null,null,null,null,null,null,null,null,null,null,null,{"$f":"Table2[[#This Row],[Contract Price]]*Table2[[#This Row],[Quantity Sold]]","v":0},{"$f":"Table2[[#This Row],[Extended Price]]*1%","v":0}]
[45,null,null,null,null,null,null,null,null,null,null,null,{"$f":"Table2[[#This Row],[Contract Price]]*Table2[[#This Row],[Quantity Sold]]","v":0},{"$f":"Table2[[#This Row],[Extended Price]]*1%","v":0}]
[46,null,null,null,null,null,null,null,null,null,null,null,{"$f":"Table2[[#This Row],[Contract Price]]*Table2[[#This Row],[Quantity Sold]]","v":0},{"$f":"Table2[[#This Row],[Extended Price]]*1%","v":0}]
[47,null,null,null,null,null,null,null,null,null,null,null,{"$f":"Table2[[#This Row],[Contract Price]]*Table2[[#This Row],[Quantity Sold]]","v":0},{"$f":"Table2[[#This Row],[Extended Price]]*1%","v":0}]
[48,null,null,null,null,null,null,null,null,null,null,null,{"$f":"Table2[[#This Row],[Contract Price]]*Table2[[#This Row],[Quantity Sold]]","v":0},{"$f":"Table2[[#This Row],[Extended Price]]*1%","v":0}]
[49,null,null,null,null,null,null,null,null,null,null,null,{"$f":"Table2[[#This Row],[Contract Price]]*Table2[[#This Row],[Quantity Sold]]","v":0},{"$f":"Table2[[#This Row],[Extended Price]]*1%","v":0}]
[50,null,null,null,null,null,null,null,null,null,null,null,{"$f":"Table2[[#This Row],[Contract Price]]*Table2[[#This Row],[Quantity Sold]]","v":0},{"$f":"Table2[[#This Row],[Extended Price]]*1%","v":0}]
[51,null,null,null,null,null,null,null,null,null,null,null,{"$f":"Table2[[#This Row],[Contract Price]]*Table2[[#This Row],[Quantity Sold]]","v":0},{"$f":"Table2[[#This Row],[Extended Price]]*1%","v":0}]
[52,null,null,null,null,null,null,null,null,null,null,null,{"$f":"Table2[[#This Row],[Contract Price]]*Table2[[#This Row],[Quantity Sold]]","v":0},{"$f":"Table2[[#This Row],[Extended Price]]*1%","v":0}]
[53,null,null,null,null,null,null,null,null,null,null,null,{"$f":"Table2[[#This Row],[Contract Price]]*Table2[[#This Row],[Quantity Sold]]","v":0},{"$f":"Table2[[#This Row],[Extended Price]]*1%","v":0}]
[54,null,null,null,null,null,null,null,null,null,null,null,{"$f":"Table2[[#This Row],[Contract Price]]*Table2[[#This Row],[Quantity Sold]]","v":0},{"$f":"Table2[[#This Row],[Extended Price]]*1%","v":0}]
[55,null,null,null,null,null,null,null,null,null,null,null,{"$f":"Table2[[#This Row],[Contract Price]]*Table2[[#This Row],[Quantity Sold]]","v":0},{"$f":"Table2[[#This Row],[Extended Price]]*1%","v":0}]
[56,null,null,null,null,null,null,null,null,null,null,null,{"$f":"Table2[[#This Row],[Contract Price]]*Table2[[#This Row],[Quantity Sold]]","v":0},{"$f":"Table2[[#This Row],[Extended Price]]*1%","v":0}]
[57,null,null,null,null,null,null,null,null,null,null,null,{"$f":"Table2[[#This Row],[Contract Price]]*Table2[[#This Row],[Quantity Sold]]","v":0},{"$f":"Table2[[#This Row],[Extended Price]]*1%","v":0}]
[58,null,null,null,null,null,null,null,null,null,null,null,{"$f":"Table2[[#This Row],[Contract Price]]*Table2[[#This Row],[Quantity Sold]]","v":0},{"$f":"Table2[[#This Row],[Extended Price]]*1%","v":0}]
[59,null,null,null,null,null,null,null,null,null,null,null,{"$f":"Table2[[#This Row],[Contract Price]]*Table2[[#This Row],[Quantity Sold]]","v":0},{"$f":"Table2[[#This Row],[Extended Price]]*1%","v":0}]
[60,null,null,null,null,null,null,null,null,null,null,null,{"$f":"Table2[[#This Row],[Contract Price]]*Table2[[#This Row],[Quantity Sold]]","v":0},{"$f":"Table2[[#This Row],[Extended Price]]*1%","v":0}]
[61,null,null,null,null,null,null,null,null,null,null,null,{"$f":"Table2[[#This Row],[Contract Price]]*Table2[[#This Row],[Quantity Sold]]","v":0},{"$f":"Table2[[#This Row],[Extended Price]]*1%","v":0}]
[62,null,null,null,null,null,null,null,null,null,null,null,{"$f":"Table2[[#This Row],[Contract Price]]*Table2[[#This Row],[Quantity Sold]]","v":0},{"$f":"Table2[[#This Row],[Extended Price]]*1%","v":0}]
[63,null,null,null,null,null,null,null,null,null,null,null,{"$f":"Table2[[#This Row],[Contract Price]]*Table2[[#This Row],[Quantity Sold]]","v":0},{"$f":"Table2[[#This Row],[Extended Price]]*1%","v":0}]
[64,null,null,null,null,null,null,null,null,null,null,null,{"$f":"Table2[[#This Row],[Contract Price]]*Table2[[#This Row],[Quantity Sold]]","v":0},{"$f":"Table2[[#This Row],[Extended Price]]*1%","v":0}]
[65,null,null,null,null,null,null,null,null,null,null,null,{"$f":"Table2[[#This Row],[Contract Price]]*Table2[[#This Row],[Quantity Sold]]","v":0},{"$f":"Table2[[#This Row],[Extended Price]]*1%","v":0}]
[66,null,null,null,null,null,null,null,null,null,null,null,{"$f":"Table2[[#This Row],[Contract Price]]*Table2[[#This Row],[Quantity Sold]]","v":0},{"$f":"Table2[[#This Row],[Extended Price]]*1%","v":0}]
[67,null,null,null,null,null,null,null,null,null,null,null,{"$f":"Table2[[#This Row],[Contract Price]]*Table2[[#This Row],[Quantity Sold]]","v":0},{"$f":"Table2[[#This Row],[Extended Price]]*1%","v":0}]
[68,null,null,null,null,null,null,null,null,null,null,null,{"$f":"Table2[[#This Row],[Contract Price]]*Table2[[#This Row],[Quantity Sold]]","v":0},{"$f":"Table2[[#This Row],[Extended Price]]*1%","v":0}]
[69,null,null,null,null,null,null,null,null,null,null,null,{"$f":"Table2[[#This Row],[Contract Price]]*Table2[[#This Row],[Quantity Sold]]","v":0},{"$f":"Table2[[#This Row],[Extended Price]]*1%","v":0}]
[70,null,null,null,null,null,null,null,null,null,null,null,{"$f":"Table2[[#This Row],[Contract Price]]*Table2[[#This Row],[Quantity Sold]]","v":0},{"$f":"Table2[[#This Row],[Extended Price]]*1%","v":0}]
[71,null,null,null,null,null,null,null,null,null,null,null,{"$f":"Table2[[#This Row],[Contract Price]]*Table2[[#This Row],[Quantity Sold]]","v":0},{"$f":"Table2[[#This Row],[Extended Price]]*1%","v":0}]
[72,null,null,null,null,null,null,null,null,null,null,null,{"$f":"Table2[[#This Row],[Contract Price]]*Table2[[#This Row],[Quantity Sold]]","v":0},{"$f":"Table2[[#This Row],[Extended Price]]*1%","v":0}]
[73,null,null,null,null,null,null,null,null,null,null,null,{"$f":"Table2[[#This Row],[Contract Price]]*Table2[[#This Row],[Quantity Sold]]","v":0},{"$f":"Table2[[#This Row],[Extended Price]]*1%","v":0}]
[74,null,null,null,null,null,null,null,null,null,null,null,{"$f":"Table2[[#This Row],[Contract Price]]*Table2[[#This Row],[Quantity Sold]]","v":0},{"$f":"Table2[[#This Row],[Extended Price]]*1%","v":0}]
[75,null,null,null,null,null,null,null,null,null,null,null,{"$f":"Table2[[#This Row],[Contract Price]]*Table2[[#This Row],[Quantity Sold]]","v":0},{"$f":"Table2[[#This Row],[Extended Price]]*1%","v":0}]
[76,null,null,null,null,null,null,null,null,null,null,null,{"$f":"Table2[[#This Row],[Contract Price]]*Table2[[#This Row],[Quantity Sold]]","v":0},{"$f":"Table2[[#This Row],[Extended Price]]*1%","v":0}]
[77,null,null,null,null,null,null,null,null,null,null,null,{"$f":"Table2[[#This Row],[Contract Price]]*Table2[[#This Row],[Quantity Sold]]","v":0},{"$f":"Table2[[#This Row],[Extended Price]]*1%","v":0}]
[78,null,null,null,null,null,null,null,null,null,null,null,{"$f":"Table2[[#This Row],[Contract Price]]*Table2[[#This Row],[Quantity Sold]]","v":0},{"$f":"Table2[[#This Row],[Extended Price]]*1%","v":0}]
[79,null,null,null,null,null,null,null,null,null,null,null,{"$f":"Table2[[#This Row],[Contract Price]]*Table2[[#This Row],[Quantity Sold]]","v":0},{"$f":"Table2[[#This Row],[Extended Price]]*1%","v":0}]
[80,null,null,null,null,null,null,null,null,null,null,null,{"$f":"Table2[[#This Row],[Contract Price]]*Table2[[#This Row],[Quantity Sold]]","v":0},{"$f":"Table2[[#This Row],[Extended Price]]*1%","v":0}]
[81,null,null,null,null,null,null,null,null,null,null,null,{"$f":"Table2[[#This Row],[Contract Price]]*Table2[[#This Row],[Quantity Sold]]","v":0},{"$f":"Table2[[#This Row],[Extended Price]]*1%","v":0}]
[82,null,null,null,null,null,null,null,null,null,null,null,{"$f":"Table2[[#This Row],[Contract Price]]*Table2[[#This Row],[Quantity Sold]]","v":0},{"$f":"Table2[[#This Row],[Extended Price]]*1%","v":0}]
[83,null,null,null,null,null,null,null,null,null,null,null,{"$f":"Table2[[#This Row],[Contract Price]]*Table2[[#This Row],[Quantity Sold]]","v":0},{"$f":"Table2[[#This Row],[Extended Price]]*1%","v":0}]
[84,null,null,null,null,null,null,null,null,null,null,null,{"$f":"Table2[[#This Row],[Contract Price]]*Table2[[#This Row],[Quantity Sold]]","v":0},{"$f":"Table2[[#This Row],[Extended Price]]*1%","v":0}]
[85,null,null,null,null,null,null,null,null,null,null,null,{"$f":"Table2[[#This Row],[Contract Price]]*Table2[[#This Row],[Quantity Sold]]","v":0},{"$f":"Table2[[#This Row],[Extended Price]]*1%","v":0}]
[86,null,null,null,null,null,null,null,null,null,null,null,{"$f":"Table2[[#This Row],[Contract Price]]*Table2[[#This Row],[Quantity Sold]]","v":0},{"$f":"Table2[[#This Row],[Extended Price]]*1%","v":0}]
[87,null,null,null,null,null,null,null,null,null,null,null,{"$f":"Table2[[#This Row],[Contract Price]]*Table2[[#This Row],[Quantity Sold]]","v":0},{"$f":"Table2[[#This Row],[Extended Price]]*1%","v":0}]
[88,null,null,null,null,null,null,null,null,null,null,null,{"$f":"Table2[[#This Row],[Contract Price]]*Table2[[#This Row],[Quantity Sold]]","v":0},{"$f":"Table2[[#This Row],[Extended Price]]*1%","v":0}]
[89,null,null,null,null,null,null,null,null,null,null,null,{"$f":"Table2[[#This Row],[Contract Price]]*Table2[[#This Row],[Quantity Sold]]","v":0},{"$f":"Table2[[#This Row],[Extended Price]]*1%","v":0}]
[90,null,null,null,null,null,null,null,null,null,null,null,{"$f":"Table2[[#This Row],[Contract Price]]*Table2[[#This Row],[Quantity Sold]]","v":0},{"$f":"Table2[[#This Row],[Extended Price]]*1%","v":0}]
[91,null,null,null,null,null,null,null,null,null,null,null,{"$f":"Table2[[#This Row],[Contract Price]]*Table2[[#This Row],[Quantity Sold]]","v":0},{"$f":"Table2[[#This Row],[Extended Price]]*1%","v":0}]
[92,null,null,null,null,null,null,null,null,null,null,null,{"$f":"Table2[[#This Row],[Contract Price]]*Table2[[#This Row],[Quantity Sold]]","v":0},{"$f":"Table2[[#This Row],[Extended Price]]*1%","v":0}]
[93,null,null,null,null,null,null,null,null,null,null,null,{"$f":"Table2[[#This Row],[Contract Price]]*Table2[[#This Row],[Quantity Sold]]","v":0},{"$f":"Table2[[#This Row],[Extended Price]]*1%","v":0}]
[94,null,null,null,null,null,null,null,null,null,null,null,{"$f":"Table2[[#This Row],[Contract Price]]*Table2[[#This Row],[Quantity Sold]]","v":0},{"$f":"Table2[[#This Row],[Extended Price]]*1%","v":0}]
[95,null,null,null,null,null,null,null,null,null,null,null,{"$f":"Table2[[#This Row],[Contract Price]]*Table2[[#This Row],[Quantity Sold]]","v":0},{"$f":"Table2[[#This Row],[Extended Price]]*1%","v":0}]
[96,null,null,null,null,null,null,null,null,null,null,null,{"$f":"Table2[[#This Row],[Contract Price]]*Table2[[#This Row],[Quantity Sold]]","v":0},{"$f":"Table2[[#This Row],[Extended Price]]*1%","v":0}]
[97,null,null,null,null,null,null,null,null,null,null,null,{"$f":"Table2[[#This Row],[Contract Price]]*Table2[[#This Row],[Quantity Sold]]","v":0},{"$f":"Table2[[#This Row],[Extended Price]]*1%","v":0}]
[98,null,null,null,null,null,null,null,null,null,null,null,{"$f":"Table2[[#This Row],[Contract Price]]*Table2[[#This Row],[Quantity Sold]]","v":0},{"$f":"Table2[[#This Row],[Extended Price]]*1%","v":0}]
[99,null,null,null,null,null,null,null,null,null,null,null,{"$f":"Table2[[#This Row],[Contract Price]]*Table2[[#This Row],[Quantity Sold]]","v":0},{"$f":"Table2[[#This Row],[Extended Price]]*1%","v":0}]
[100,null,null,null,null,null,null,null,null,null,null,null,{"$f":"Table2[[#This Row],[Contract Price]]*Table2[[#This Row],[Quantity Sold]]","v":0},{"$f":"Table2[[#This Row],[Extended Price]]*1%","v":0}]
[101,null,null,null,null,null,null,null,null,null,null,null,{"$f":"Table2[[#This Row],[Contract Price]]*Table2[[#This Row],[Quantity Sold]]","v":0},{"$f":"Table2[[#This Row],[Extended Price]]*1%","v":0}]
[102,null,null,null,null,null,null,null,null,null,null,null,{"$f":"Table2[[#This Row],[Contract Price]]*Table2[[#This Row],[Quantity Sold]]","v":0},{"$f":"Table2[[#This Row],[Extended Price]]*1%","v":0}]
[103,null,null,null,null,null,null,null,null,null,null,null,{"$f":"Table2[[#This Row],[Contract Price]]*Table2[[#This Row],[Quantity Sold]]","v":0},{"$f":"Table2[[#This Row],[Extended Price]]*1%","v":0}]
[104,null,null,null,null,null,null,null,null,null,null,null,{"$f":"Table2[[#This Row],[Contract Price]]*Table2[[#This Row],[Quantity Sold]]","v":0},{"$f":"Table2[[#This Row],[Extended Price]]*1%","v":0}]
[105,null,null,null,null,null,null,null,null,null,null,null,{"$f":"Table2[[#This Row],[Contract Price]]*Table2[[#This Row],[Quantity Sold]]","v":0},{"$f":"Table2[[#This Row],[Extended Price]]*1%","v":0}]
[106,null,null,null,null,null,null,null,null,null,null,null,{"$f":"Table2[[#This Row],[Contract Price]]*Table2[[#This Row],[Quantity Sold]]","v":0},{"$f":"Table2[[#This Row],[Extended Price]]*1%","v":0}]
[107,null,null,null,null,null,null,null,null,null,null,null,{"$f":"Table2[[#This Row],[Contract Price]]*Table2[[#This Row],[Quantity Sold]]","v":0},{"$f":"Table2[[#This Row],[Extended Price]]*1%","v":0}]
[108,null,null,null,null,null,null,null,null,null,null,null,{"$f":"Table2[[#This Row],[Contract Price]]*Table2[[#This Row],[Quantity Sold]]","v":0},{"$f":"Table2[[#This Row],[Extended Price]]*1%","v":0}]
[109,null,null,null,null,null,null,null,null,null,null,null,{"$f":"Table2[[#This Row],[Contract Price]]*Table2[[#This Row],[Quantity Sold]]","v":0},{"$f":"Table2[[#This Row],[Extended Price]]*1%","v":0}]
[110,null,null,null,null,null,null,null,null,null,null,null,{"$f":"Table2[[#This Row],[Contract Price]]*Table2[[#This Row],[Quantity Sold]]","v":0},{"$f":"Table2[[#This Row],[Extended Price]]*1%","v":0}]
[111,null,null,null,null,null,null,null,null,null,null,null,{"$f":"Table2[[#This Row],[Contract Price]]*Table2[[#This Row],[Quantity Sold]]","v":0},{"$f":"Table2[[#This Row],[Extended Price]]*1%","v":0}]
[112,null,null,null,null,null,null,null,null,null,null,null,{"$f":"Table2[[#This Row],[Contract Price]]*Table2[[#This Row],[Quantity Sold]]","v":0},{"$f":"Table2[[#This Row],[Extended Price]]*1%","v":0}]
[113,null,null,null,null,null,null,null,null,null,null,null,{"$f":"Table2[[#This Row],[Contract Price]]*Table2[[#This Row],[Quantity Sold]]","v":0},{"$f":"Table2[[#This Row],[Extended Price]]*1%","v":0}]
[114,null,null,null,null,null,null,null,null,null,null,null,{"$f":"Table2[[#This Row],[Contract Price]]*Table2[[#This Row],[Quantity Sold]]","v":0},{"$f":"Table2[[#This Row],[Extended Price]]*1%","v":0}]
[115,null,null,null,null,null,null,null,null,null,null,null,{"$f":"Table2[[#This Row],[Contract Price]]*Table2[[#This Row],[Quantity Sold]]","v":0},{"$f":"Table2[[#This Row],[Extended Price]]*1%","v":0}]
[116,null,null,null,null,null,null,null,null,null,null,null,{"$f":"Table2[[#This Row],[Contract Price]]*Table2[[#This Row],[Quantity Sold]]","v":0},{"$f":"Table2[[#This Row],[Extended Price]]*1%","v":0}]
[117,null,null,null,null,null,null,null,null,null,null,null,{"$f":"Table2[[#This Row],[Contract Price]]*Table2[[#This Row],[Quantity Sold]]","v":0},{"$f":"Table2[[#This Row],[Extended Price]]*1%","v":0}]
[118,null,null,null,null,null,null,null,null,null,null,null,{"$f":"Table2[[#This Row],[Contract Price]]*Table2[[#This Row],[Quantity Sold]]","v":0},{"$f":"Table2[[#This Row],[Extended Price]]*1%","v":0}]
[119,null,null,null,null,null,null,null,null,null,null,null,{"$f":"Table2[[#This Row],[Contract Price]]*Table2[[#This Row],[Quantity Sold]]","v":0},{"$f":"Table2[[#This Row],[Extended Price]]*1%","v":0}]
[120,null,null,null,null,null,null,null,null,null,null,null,{"$f":"Table2[[#This Row],[Contract Price]]*Table2[[#This Row],[Quantity Sold]]","v":0},{"$f":"Table2[[#This Row],[Extended Price]]*1%","v":0}]
[121,null,null,null,null,null,null,null,null,null,null,null,{"$f":"Table2[[#This Row],[Contract Price]]*Table2[[#This Row],[Quantity Sold]]","v":0},{"$f":"Table2[[#This Row],[Extended Price]]*1%","v":0}]
[122,null,null,null,null,null,null,null,null,null,null,null,{"$f":"Table2[[#This Row],[Contract Price]]*Table2[[#This Row],[Quantity Sold]]","v":0},{"$f":"Table2[[#This Row],[Extended Price]]*1%","v":0}]
[123,null,null,null,null,null,null,null,null,null,null,null,{"$f":"Table2[[#This Row],[Contract Price]]*Table2[[#This Row],[Quantity Sold]]","v":0},{"$f":"Table2[[#This Row],[Extended Price]]*1%","v":0}]
[124,null,null,null,null,null,null,null,null,null,null,null,{"$f":"Table2[[#This Row],[Contract Price]]*Table2[[#This Row],[Quantity Sold]]","v":0},{"$f":"Table2[[#This Row],[Extended Price]]*1%","v":0}]
[125,null,null,null,null,null,null,null,null,null,null,null,{"$f":"Table2[[#This Row],[Contract Price]]*Table2[[#This Row],[Quantity Sold]]","v":0},{"$f":"Table2[[#This Row],[Extended Price]]*1%","v":0}]
[126,null,null,null,null,null,null,null,null,null,null,null,{"$f":"Table2[[#This Row],[Contract Price]]*Table2[[#This Row],[Quantity Sold]]","v":0},{"$f":"Table2[[#This Row],[Extended Price]]*1%","v":0}]
[127,null,null,null,null,null,null,null,null,null,null,null,{"$f":"Table2[[#This Row],[Contract Price]]*Table2[[#This Row],[Quantity Sold]]","v":0},{"$f":"Table2[[#This Row],[Extended Price]]*1%","v":0}]
[128,null,null,null,null,null,null,null,null,null,null,null,{"$f":"Table2[[#This Row],[Contract Price]]*Table2[[#This Row],[Quantity Sold]]","v":0},{"$f":"Table2[[#This Row],[Extended Price]]*1%","v":0}]
[129,null,null,null,null,null,null,null,null,null,null,null,{"$f":"Table2[[#This Row],[Contract Price]]*Table2[[#This Row],[Quantity Sold]]","v":0},{"$f":"Table2[[#This Row],[Extended Price]]*1%","v":0}]
[130,null,null,null,null,null,null,null,null,null,null,null,{"$f":"Table2[[#This Row],[Contract Price]]*Table2[[#This Row],[Quantity Sold]]","v":0},{"$f":"Table2[[#This Row],[Extended Price]]*1%","v":0}]
[131,null,null,null,null,null,null,null,null,null,null,null,{"$f":"Table2[[#This Row],[Contract Price]]*Table2[[#This Row],[Quantity Sold]]","v":0},{"$f":"Table2[[#This Row],[Extended Price]]*1%","v":0}]
[132,null,null,null,null,null,null,null,null,null,null,null,{"$f":"Table2[[#This Row],[Contract Price]]*Table2[[#This Row],[Quantity Sold]]","v":0},{"$f":"Table2[[#This Row],[Extended Price]]*1%","v":0}]
[133,null,null,null,null,null,null,null,null,null,null,null,{"$f":"Table2[[#This Row],[Contract Price]]*Table2[[#This Row],[Quantity Sold]]","v":0},{"$f":"Table2[[#This Row],[Extended Price]]*1%","v":0}]
[134,null,null,null,null,null,null,null,null,null,null,null,{"$f":"Table2[[#This Row],[Contract Price]]*Table2[[#This Row],[Quantity Sold]]","v":0},{"$f":"Table2[[#This Row],[Extended Price]]*1%","v":0}]
[135,null,null,null,null,null,null,null,null,null,null,null,{"$f":"Table2[[#This Row],[Contract Price]]*Table2[[#This Row],[Quantity Sold]]","v":0},{"$f":"Table2[[#This Row],[Extended Price]]*1%","v":0}]
[136,null,null,null,null,null,null,null,null,null,null,null,{"$f":"Table2[[#This Row],[Contract Price]]*Table2[[#This Row],[Quantity Sold]]","v":0},{"$f":"Table2[[#This Row],[Extended Price]]*1%","v":0}]
[137,null,null,null,null,null,null,null,null,null,null,null,{"$f":"Table2[[#This Row],[Contract Price]]*Table2[[#This Row],[Quantity Sold]]","v":0},{"$f":"Table2[[#This Row],[Extended Price]]*1%","v":0}]
[138,null,null,null,null,null,null,null,null,null,null,null,{"$f":"Table2[[#This Row],[Contract Price]]*Table2[[#This Row],[Quantity Sold]]","v":0},{"$f":"Table2[[#This Row],[Extended Price]]*1%","v":0}]
[139,null,null,null,null,null,null,null,null,null,null,null,{"$f":"Table2[[#This Row],[Contract Price]]*Table2[[#This Row],[Quantity Sold]]","v":0},{"$f":"Table2[[#This Row],[Extended Price]]*1%","v":0}]
[140,null,null,null,null,null,null,null,null,null,null,null,{"$f":"Table2[[#This Row],[Contract Price]]*Table2[[#This Row],[Quantity Sold]]","v":0},{"$f":"Table2[[#This Row],[Extended Price]]*1%","v":0}]
[141,null,null,null,null,null,null,null,null,null,null,null,{"$f":"Table2[[#This Row],[Contract Price]]*Table2[[#This Row],[Quantity Sold]]","v":0},{"$f":"Table2[[#This Row],[Extended Price]]*1%","v":0}]
[142,null,null,null,null,null,null,null,null,null,null,null,{"$f":"Table2[[#This Row],[Contract Price]]*Table2[[#This Row],[Quantity Sold]]","v":0},{"$f":"Table2[[#This Row],[Extended Price]]*1%","v":0}]
[143,null,null,null,null,null,null,null,null,null,null,null,{"$f":"Table2[[#This Row],[Contract Price]]*Table2[[#This Row],[Quantity Sold]]","v":0},{"$f":"Table2[[#This Row],[Extended Price]]*1%","v":0}]
[144,null,null,null,null,null,null,null,null,null,null,null,{"$f":"Table2[[#This Row],[Contract Price]]*Table2[[#This Row],[Quantity Sold]]","v":0},{"$f":"Table2[[#This Row],[Extended Price]]*1%","v":0}]
[145,null,null,null,null,null,null,null,null,null,null,null,{"$f":"Table2[[#This Row],[Contract Price]]*Table2[[#This Row],[Quantity Sold]]","v":0},{"$f":"Table2[[#This Row],[Extended Price]]*1%","v":0}]
[146,null,null,null,null,null,null,null,null,null,null,null,{"$f":"Table2[[#This Row],[Contract Price]]*Table2[[#This Row],[Quantity Sold]]","v":0},{"$f":"Table2[[#This Row],[Extended Price]]*1%","v":0}]
[147,null,null,null,null,null,null,null,null,null,null,null,{"$f":"Table2[[#This Row],[Contract Price]]*Table2[[#This Row],[Quantity Sold]]","v":0},{"$f":"Table2[[#This Row],[Extended Price]]*1%","v":0}]
[148,null,null,null,null,null,null,null,null,null,null,null,{"$f":"Table2[[#This Row],[Contract Price]]*Table2[[#This Row],[Quantity Sold]]","v":0},{"$f":"Table2[[#This Row],[Extended Price]]*1%","v":0}]
[149,null,null,null,null,null,null,null,null,null,null,null,{"$f":"Table2[[#This Row],[Contract Price]]*Table2[[#This Row],[Quantity Sold]]","v":0},{"$f":"Table2[[#This Row],[Extended Price]]*1%","v":0}]
[150,null,null,null,null,null,null,null,null,null,null,null,{"$f":"Table2[[#This Row],[Contract Price]]*Table2[[#This Row],[Quantity Sold]]","v":0},{"$f":"Table2[[#This Row],[Extended Price]]*1%","v":0}]
[151,null,null,null,null,null,null,null,null,null,null,null,{"$f":"Table2[[#This Row],[Contract Price]]*Table2[[#This Row],[Quantity Sold]]","v":0},{"$f":"Table2[[#This Row],[Extended Price]]*1%","v":0}]
[152,null,null,null,null,null,null,null,null,null,null,null,{"$f":"Table2[[#This Row],[Contract Price]]*Table2[[#This Row],[Quantity Sold]]","v":0},{"$f":"Table2[[#This Row],[Extended Price]]*1%","v":0}]
[153,null,null,null,null,null,null,null,null,null,null,null,{"$f":"Table2[[#This Row],[Contract Price]]*Table2[[#This Row],[Quantity Sold]]","v":0},{"$f":"Table2[[#This Row],[Extended Price]]*1%","v":0}]
[154,null,null,null,null,null,null,null,null,null,null,null,{"$f":"Table2[[#This Row],[Contract Price]]*Table2[[#This Row],[Quantity Sold]]","v":0},{"$f":"Table2[[#This Row],[Extended Price]]*1%","v":0}]
[155,null,null,null,null,null,null,null,null,null,null,null,{"$f":"Table2[[#This Row],[Contract Price]]*Table2[[#This Row],[Quantity Sold]]","v":0},{"$f":"Table2[[#This Row],[Extended Price]]*1%","v":0}]
[156,null,null,null,null,null,null,null,null,null,null,null,{"$f":"Table2[[#This Row],[Contract Price]]*Table2[[#This Row],[Quantity Sold]]","v":0},{"$f":"Table2[[#This Row],[Extended Price]]*1%","v":0}]
[157,null,null,null,null,null,null,null,null,null,null,null,{"$f":"Table2[[#This Row],[Contract Price]]*Table2[[#This Row],[Quantity Sold]]","v":0},{"$f":"Table2[[#This Row],[Extended Price]]*1%","v":0}]
[158,null,null,null,null,null,null,null,null,null,null,null,{"$f":"Table2[[#This Row],[Contract Price]]*Table2[[#This Row],[Quantity Sold]]","v":0},{"$f":"Table2[[#This Row],[Extended Price]]*1%","v":0}]
[159,null,null,null,null,null,null,null,null,null,null,null,{"$f":"Table2[[#This Row],[Contract Price]]*Table2[[#This Row],[Quantity Sold]]","v":0},{"$f":"Table2[[#This Row],[Extended Price]]*1%","v":0}]
[160,null,null,null,null,null,null,null,null,null,null,null,{"$f":"Table2[[#This Row],[Contract Price]]*Table2[[#This Row],[Quantity Sold]]","v":0},{"$f":"Table2[[#This Row],[Extended Price]]*1%","v":0}]
[161,null,null,null,null,null,null,null,null,null,null,null,{"$f":"Table2[[#This Row],[Contract Price]]*Table2[[#This Row],[Quantity Sold]]","v":0},{"$f":"Table2[[#This Row],[Extended Price]]*1%","v":0}]
[162,null,null,null,null,null,null,null,null,null,null,null,{"$f":"Table2[[#This Row],[Contract Price]]*Table2[[#This Row],[Quantity Sold]]","v":0},{"$f":"Table2[[#This Row],[Extended Price]]*1%","v":0}]
[163,null,null,null,null,null,null,null,null,null,null,null,{"$f":"Table2[[#This Row],[Contract Price]]*Table2[[#This Row],[Quantity Sold]]","v":0},{"$f":"Table2[[#This Row],[Extended Price]]*1%","v":0}]
[164,null,null,null,null,null,null,null,null,null,null,null,{"$f":"Table2[[#This Row],[Contract Price]]*Table2[[#This Row],[Quantity Sold]]","v":0},{"$f":"Table2[[#This Row],[Extended Price]]*1%","v":0}]
[165,null,null,null,null,null,null,null,null,null,null,null,{"$f":"Table2[[#This Row],[Contract Price]]*Table2[[#This Row],[Quantity Sold]]","v":0},{"$f":"Table2[[#This Row],[Extended Price]]*1%","v":0}]
[166,null,null,null,null,null,null,null,null,null,null,null,{"$f":"Table2[[#This Row],[Contract Price]]*Table2[[#This Row],[Quantity Sold]]","v":0},{"$f":"Table2[[#This Row],[Extended Price]]*1%","v":0}]
[167,null,null,null,null,null,null,null,null,null,null,null,{"$f":"Table2[[#This Row],[Contract Price]]*Table2[[#This Row],[Quantity Sold]]","v":0},{"$f":"Table2[[#This Row],[Extended Price]]*1%","v":0}]
[168,null,null,null,null,null,null,null,null,null,null,null,{"$f":"Table2[[#This Row],[Contract Price]]*Table2[[#This Row],[Quantity Sold]]","v":0},{"$f":"Table2[[#This Row],[Extended Price]]*1%","v":0}]
[169,null,null,null,null,null,null,null,null,null,null,null,{"$f":"Table2[[#This Row],[Contract Price]]*Table2[[#This Row],[Quantity Sold]]","v":0},{"$f":"Table2[[#This Row],[Extended Price]]*1%","v":0}]
[170,null,null,null,null,null,null,null,null,null,null,null,{"$f":"Table2[[#This Row],[Contract Price]]*Table2[[#This Row],[Quantity Sold]]","v":0},{"$f":"Table2[[#This Row],[Extended Price]]*1%","v":0}]
[171,null,null,null,null,null,null,null,null,null,null,null,{"$f":"Table2[[#This Row],[Contract Price]]*Table2[[#This Row],[Quantity Sold]]","v":0},{"$f":"Table2[[#This Row],[Extended Price]]*1%","v":0}]
[172,null,null,null,null,null,null,null,null,null,null,null,{"$f":"Table2[[#This Row],[Contract Price]]*Table2[[#This Row],[Quantity Sold]]","v":0},{"$f":"Table2[[#This Row],[Extended Price]]*1%","v":0}]
[173,null,null,null,null,null,null,null,null,null,null,null,{"$f":"Table2[[#This Row],[Contract Price]]*Table2[[#This Row],[Quantity Sold]]","v":0},{"$f":"Table2[[#This Row],[Extended Price]]*1%","v":0}]
[174,null,null,null,null,null,null,null,null,null,null,null,{"$f":"Table2[[#This Row],[Contract Price]]*Table2[[#This Row],[Quantity Sold]]","v":0},{"$f":"Table2[[#This Row],[Extended Price]]*1%","v":0}]
[175,null,null,null,null,null,null,null,null,null,null,null,{"$f":"Table2[[#This Row],[Contract Price]]*Table2[[#This Row],[Quantity Sold]]","v":0},{"$f":"Table2[[#This Row],[Extended Price]]*1%","v":0}]
[176,null,null,null,null,null,null,null,null,null,null,null,{"$f":"Table2[[#This Row],[Contract Price]]*Table2[[#This Row],[Quantity Sold]]","v":0},{"$f":"Table2[[#This Row],[Extended Price]]*1%","v":0}]
[177,null,null,null,null,null,null,null,null,null,null,null,{"$f":"Table2[[#This Row],[Contract Price]]*Table2[[#This Row],[Quantity Sold]]","v":0},{"$f":"Table2[[#This Row],[Extended Price]]*1%","v":0}]
[178,null,null,null,null,null,null,null,null,null,null,null,{"$f":"Table2[[#This Row],[Contract Price]]*Table2[[#This Row],[Quantity Sold]]","v":0},{"$f":"Table2[[#This Row],[Extended Price]]*1%","v":0}]
[179,null,null,null,null,null,null,null,null,null,null,null,{"$f":"Table2[[#This Row],[Contract Price]]*Table2[[#This Row],[Quantity Sold]]","v":0},{"$f":"Table2[[#This Row],[Extended Price]]*1%","v":0}]
[180,null,null,null,null,null,null,null,null,null,null,null,{"$f":"Table2[[#This Row],[Contract Price]]*Table2[[#This Row],[Quantity Sold]]","v":0},{"$f":"Table2[[#This Row],[Extended Price]]*1%","v":0}]
[181,null,null,null,null,null,null,null,null,null,null,null,{"$f":"Table2[[#This Row],[Contract Price]]*Table2[[#This Row],[Quantity Sold]]","v":0},{"$f":"Table2[[#This Row],[Extended Price]]*1%","v":0}]
[182,null,null,null,null,null,null,null,null,null,null,null,{"$f":"Table2[[#This Row],[Contract Price]]*Table2[[#This Row],[Quantity Sold]]","v":0},{"$f":"Table2[[#This Row],[Extended Price]]*1%","v":0}]
[183,null,null,null,null,null,null,null,null,null,null,null,{"$f":"Table2[[#This Row],[Contract Price]]*Table2[[#This Row],[Quantity Sold]]","v":0},{"$f":"Table2[[#This Row],[Extended Price]]*1%","v":0}]
[184,null,null,null,null,null,null,null,null,null,null,null,{"$f":"Table2[[#This Row],[Contract Price]]*Table2[[#This Row],[Quantity Sold]]","v":0},{"$f":"Table2[[#This Row],[Extended Price]]*1%","v":0}]
[185,null,null,null,null,null,null,null,null,null,null,null,{"$f":"Table2[[#This Row],[Contract Price]]*Table2[[#This Row],[Quantity Sold]]","v":0},{"$f":"Table2[[#This Row],[Extended Price]]*1%","v":0}]
[186,null,null,null,null,null,null,null,null,null,null,null,{"$f":"Table2[[#This Row],[Contract Price]]*Table2[[#This Row],[Quantity Sold]]","v":0},{"$f":"Table2[[#This Row],[Extended Price]]*1%","v":0}]
[187,null,null,null,null,null,null,null,null,null,null,null,{"$f":"Table2[[#This Row],[Contract Price]]*Table2[[#This Row],[Quantity Sold]]","v":0},{"$f":"Table2[[#This Row],[Extended Price]]*1%","v":0}]
[188,null,null,null,null,null,null,null,null,null,null,null,{"$f":"Table2[[#This Row],[Contract Price]]*Table2[[#This Row],[Quantity Sold]]","v":0},{"$f":"Table2[[#This Row],[Extended Price]]*1%","v":0}]
[189,null,null,null,null,null,null,null,null,null,null,null,{"$f":"Table2[[#This Row],[Contract Price]]*Table2[[#This Row],[Quantity Sold]]","v":0},{"$f":"Table2[[#This Row],[Extended Price]]*1%","v":0}]
[190,null,null,null,null,null,null,null,null,null,null,null,{"$f":"Table2[[#This Row],[Contract Price]]*Table2[[#This Row],[Quantity Sold]]","v":0},{"$f":"Table2[[#This Row],[Extended Price]]*1%","v":0}]
[191,null,null,null,null,null,null,null,null,null,null,null,{"$f":"Table2[[#This Row],[Contract Price]]*Table2[[#This Row],[Quantity Sold]]","v":0},{"$f":"Table2[[#This Row],[Extended Price]]*1%","v":0}]
[192,null,null,null,null,null,null,null,null,null,null,null,{"$f":"Table2[[#This Row],[Contract Price]]*Table2[[#This Row],[Quantity Sold]]","v":0},{"$f":"Table2[[#This Row],[Extended Price]]*1%","v":0}]
[193,null,null,null,null,null,null,null,null,null,null,null,{"$f":"Table2[[#This Row],[Contract Price]]*Table2[[#This Row],[Quantity Sold]]","v":0},{"$f":"Table2[[#This Row],[Extended Price]]*1%","v":0}]
[194,null,null,null,null,null,null,null,null,null,null,null,{"$f":"Table2[[#This Row],[Contract Price]]*Table2[[#This Row],[Quantity Sold]]","v":0},{"$f":"Table2[[#This Row],[Extended Price]]*1%","v":0}]
[195,null,null,null,null,null,null,null,null,null,null,null,{"$f":"Table2[[#This Row],[Contract Price]]*Table2[[#This Row],[Quantity Sold]]","v":0},{"$f":"Table2[[#This Row],[Extended Price]]*1%","v":0}]
[196,null,null,null,null,null,null,null,null,null,null,null,{"$f":"Table2[[#This Row],[Contract Price]]*Table2[[#This Row],[Quantity Sold]]","v":0},{"$f":"Table2[[#This Row],[Extended Price]]*1%","v":0}]
[197,null,null,null,null,null,null,null,null,null,null,null,{"$f":"Table2[[#This Row],[Contract Price]]*Table2[[#This Row],[Quantity Sold]]","v":0},{"$f":"Table2[[#This Row],[Extended Price]]*1%","v":0}]
[198,null,null,null,null,null,null,null,null,null,null,null,{"$f":"Table2[[#This Row],[Contract Price]]*Table2[[#This Row],[Quantity Sold]]","v":0},{"$f":"Table2[[#This Row],[Extended Price]]*1%","v":0}]
[199,null,null,null,null,null,null,null,null,null,null,null,{"$f":"Table2[[#This Row],[Contract Price]]*Table2[[#This Row],[Quantity Sold]]","v":0},{"$f":"Table2[[#This Row],[Extended Price]]*1%","v":0}]
[200,null,null,null,null,null,null,null,null,null,null,null,{"$f":"Table2[[#This Row],[Contract Price]]*Table2[[#This Row],[Quantity Sold]]","v":0},{"$f":"Table2[[#This Row],[Extended Price]]*1%","v":0}]
[201,null,null,null,null,null,null,null,null,null,null,null,{"$f":"Table2[[#This Row],[Contract Price]]*Table2[[#This Row],[Quantity Sold]]","v":0},{"$f":"Table2[[#This Row],[Extended Price]]*1%","v":0}]
[202,null,null,null,null,null,null,null,null,null,null,null,{"$f":"Table2[[#This Row],[Contract Price]]*Table2[[#This Row],[Quantity Sold]]","v":0},{"$f":"Table2[[#This Row],[Extended Price]]*1%","v":0}]
[203,null,null,null,null,null,null,null,null,null,null,null,{"$f":"Table2[[#This Row],[Contract Price]]*Table2[[#This Row],[Quantity Sold]]","v":0},{"$f":"Table2[[#This Row],[Extended Price]]*1%","v":0}]
[204,null,null,null,null,null,null,null,null,null,null,null,{"$f":"Table2[[#This Row],[Contract Price]]*Table2[[#This Row],[Quantity Sold]]","v":0},{"$f":"Table2[[#This Row],[Extended Price]]*1%","v":0}]
[205,null,null,null,null,null,null,null,null,null,null,null,{"$f":"Table2[[#This Row],[Contract Price]]*Table2[[#This Row],[Quantity Sold]]","v":0},{"$f":"Table2[[#This Row],[Extended Price]]*1%","v":0}]
[206,null,null,null,null,null,null,null,null,null,null,null,{"$f":"Table2[[#This Row],[Contract Price]]*Table2[[#This Row],[Quantity Sold]]","v":0},{"$f":"Table2[[#This Row],[Extended Price]]*1%","v":0}]
[207,null,null,null,null,null,null,null,null,null,null,null,{"$f":"Table2[[#This Row],[Contract Price]]*Table2[[#This Row],[Quantity Sold]]","v":0},{"$f":"Table2[[#This Row],[Extended Price]]*1%","v":0}]
[208,null,null,null,null,null,null,null,null,null,null,null,{"$f":"Table2[[#This Row],[Contract Price]]*Table2[[#This Row],[Quantity Sold]]","v":0},{"$f":"Table2[[#This Row],[Extended Price]]*1%","v":0}]
[209,null,null,null,null,null,null,null,null,null,null,null,{"$f":"Table2[[#This Row],[Contract Price]]*Table2[[#This Row],[Quantity Sold]]","v":0},{"$f":"Table2[[#This Row],[Extended Price]]*1%","v":0}]
[210,null,null,null,null,null,null,null,null,null,null,null,{"$f":"Table2[[#This Row],[Contract Price]]*Table2[[#This Row],[Quantity Sold]]","v":0},{"$f":"Table2[[#This Row],[Extended Price]]*1%","v":0}]
[211,null,null,null,null,null,null,null,null,null,null,null,{"$f":"Table2[[#This Row],[Contract Price]]*Table2[[#This Row],[Quantity Sold]]","v":0},{"$f":"Table2[[#This Row],[Extended Price]]*1%","v":0}]
[212,null,null,null,null,null,null,null,null,null,null,null,{"$f":"Table2[[#This Row],[Contract Price]]*Table2[[#This Row],[Quantity Sold]]","v":0},{"$f":"Table2[[#This Row],[Extended Price]]*1%","v":0}]
[213,null,null,null,null,null,null,null,null,null,null,null,{"$f":"Table2[[#This Row],[Contract Price]]*Table2[[#This Row],[Quantity Sold]]","v":0},{"$f":"Table2[[#This Row],[Extended Price]]*1%","v":0}]
[214,null,null,null,null,null,null,null,null,null,null,null,{"$f":"Table2[[#This Row],[Contract Price]]*Table2[[#This Row],[Quantity Sold]]","v":0},{"$f":"Table2[[#This Row],[Extended Price]]*1%","v":0}]
[215,null,null,null,null,null,null,null,null,null,null,null,{"$f":"Table2[[#This Row],[Contract Price]]*Table2[[#This Row],[Quantity Sold]]","v":0},{"$f":"Table2[[#This Row],[Extended Price]]*1%","v":0}]
[216,null,null,null,null,null,null,null,null,null,null,null,{"$f":"Table2[[#This Row],[Contract Price]]*Table2[[#This Row],[Quantity Sold]]","v":0},{"$f":"Table2[[#This Row],[Extended Price]]*1%","v":0}]
[217,null,null,null,null,null,null,null,null,null,null,null,{"$f":"Table2[[#This Row],[Contract Price]]*Table2[[#This Row],[Quantity Sold]]","v":0},{"$f":"Table2[[#This Row],[Extended Price]]*1%","v":0}]
[218,null,null,null,null,null,null,null,null,null,null,null,{"$f":"Table2[[#This Row],[Contract Price]]*Table2[[#This Row],[Quantity Sold]]","v":0},{"$f":"Table2[[#This Row],[Extended Price]]*1%","v":0}]
[219,null,null,null,null,null,null,null,null,null,null,null,{"$f":"Table2[[#This Row],[Contract Price]]*Table2[[#This Row],[Quantity Sold]]","v":0},{"$f":"Table2[[#This Row],[Extended Price]]*1%","v":0}]
[220,null,null,null,null,null,null,null,null,null,null,null,{"$f":"Table2[[#This Row],[Contract Price]]*Table2[[#This Row],[Quantity Sold]]","v":0},{"$f":"Table2[[#This Row],[Extended Price]]*1%","v":0}]
[221,null,null,null,null,null,null,null,null,null,null,null,{"$f":"Table2[[#This Row],[Contract Price]]*Table2[[#This Row],[Quantity Sold]]","v":0},{"$f":"Table2[[#This Row],[Extended Price]]*1%","v":0}]
[222,null,null,null,null,null,null,null,null,null,null,null,{"$f":"Table2[[#This Row],[Contract Price]]*Table2[[#This Row],[Quantity Sold]]","v":0},{"$f":"Table2[[#This Row],[Extended Price]]*1%","v":0}]
[223,null,null,null,null,null,null,null,null,null,null,null,{"$f":"Table2[[#This Row],[Contract Price]]*Table2[[#This Row],[Quantity Sold]]","v":0},{"$f":"Table2[[#This Row],[Extended Price]]*1%","v":0}]
[224,null,null,null,null,null,null,null,null,null,null,null,{"$f":"Table2[[#This Row],[Contract Price]]*Table2[[#This Row],[Quantity Sold]]","v":0},{"$f":"Table2[[#This Row],[Extended Price]]*1%","v":0}]
[225,null,null,null,null,null,null,null,null,null,null,null,{"$f":"Table2[[#This Row],[Contract Price]]*Table2[[#This Row],[Quantity Sold]]","v":0},{"$f":"Table2[[#This Row],[Extended Price]]*1%","v":0}]
[226,null,null,null,null,null,null,null,null,null,null,null,{"$f":"Table2[[#This Row],[Contract Price]]*Table2[[#This Row],[Quantity Sold]]","v":0},{"$f":"Table2[[#This Row],[Extended Price]]*1%","v":0}]
[227,null,null,null,null,null,null,null,null,null,null,null,{"$f":"Table2[[#This Row],[Contract Price]]*Table2[[#This Row],[Quantity Sold]]","v":0},{"$f":"Table2[[#This Row],[Extended Price]]*1%","v":0}]
[228,null,null,null,null,null,null,null,null,null,null,null,{"$f":"Table2[[#This Row],[Contract Price]]*Table2[[#This Row],[Quantity Sold]]","v":0},{"$f":"Table2[[#This Row],[Extended Price]]*1%","v":0}]
[229,null,null,null,null,null,null,null,null,null,null,null,{"$f":"Table2[[#This Row],[Contract Price]]*Table2[[#This Row],[Quantity Sold]]","v":0},{"$f":"Table2[[#This Row],[Extended Price]]*1%","v":0}]
[230,null,null,null,null,null,null,null,null,null,null,null,{"$f":"Table2[[#This Row],[Contract Price]]*Table2[[#This Row],[Quantity Sold]]","v":0},{"$f":"Table2[[#This Row],[Extended Price]]*1%","v":0}]
[231,null,null,null,null,null,null,null,null,null,null,null,{"$f":"Table2[[#This Row],[Contract Price]]*Table2[[#This Row],[Quantity Sold]]","v":0},{"$f":"Table2[[#This Row],[Extended Price]]*1%","v":0}]
[232,null,null,null,null,null,null,null,null,null,null,null,{"$f":"Table2[[#This Row],[Contract Price]]*Table2[[#This Row],[Quantity Sold]]","v":0},{"$f":"Table2[[#This Row],[Extended Price]]*1%","v":0}]
[233,null,null,null,null,null,null,null,null,null,null,null,{"$f":"Table2[[#This Row],[Contract Price]]*Table2[[#This Row],[Quantity Sold]]","v":0},{"$f":"Table2[[#This Row],[Extended Price]]*1%","v":0}]
[234,null,null,null,null,null,null,null,null,null,null,null,{"$f":"Table2[[#This Row],[Contract Price]]*Table2[[#This Row],[Quantity Sold]]","v":0},{"$f":"Table2[[#This Row],[Extended Price]]*1%","v":0}]
[235,null,null,null,null,null,null,null,null,null,null,null,{"$f":"Table2[[#This Row],[Contract Price]]*Table2[[#This Row],[Quantity Sold]]","v":0},{"$f":"Table2[[#This Row],[Extended Price]]*1%","v":0}]
[236,null,null,null,null,null,null,null,null,null,null,null,{"$f":"Table2[[#This Row],[Contract Price]]*Table2[[#This Row],[Quantity Sold]]","v":0},{"$f":"Table2[[#This Row],[Extended Price]]*1%","v":0}]
[237,null,null,null,null,null,null,null,null,null,null,null,{"$f":"Table2[[#This Row],[Contract Price]]*Table2[[#This Row],[Quantity Sold]]","v":0},{"$f":"Table2[[#This Row],[Extended Price]]*1%","v":0}]
[238,null,null,null,null,null,null,null,null,null,null,null,{"$f":"Table2[[#This Row],[Contract Price]]*Table2[[#This Row],[Quantity Sold]]","v":0},{"$f":"Table2[[#This Row],[Extended Price]]*1%","v":0}]
[239,null,null,null,null,null,null,null,null,null,null,null,{"$f":"Table2[[#This Row],[Contract Price]]*Table2[[#This Row],[Quantity Sold]]","v":0},{"$f":"Table2[[#This Row],[Extended Price]]*1%","v":0}]
[240,null,null,null,null,null,null,null,null,null,null,null,{"$f":"Table2[[#This Row],[Contract Price]]*Table2[[#This Row],[Quantity Sold]]","v":0},{"$f":"Table2[[#This Row],[Extended Price]]*1%","v":0}]
[241,null,null,null,null,null,null,null,null,null,null,null,{"$f":"Table2[[#This Row],[Contract Price]]*Table2[[#This Row],[Quantity Sold]]","v":0},{"$f":"Table2[[#This Row],[Extended Price]]*1%","v":0}]
[242,null,null,null,null,null,null,null,null,null,null,null,{"$f":"Table2[[#This Row],[Contract Price]]*Table2[[#This Row],[Quantity Sold]]","v":0},{"$f":"Table2[[#This Row],[Extended Price]]*1%","v":0}]
[243,null,null,null,null,null,null,null,null,null,null,null,{"$f":"Table2[[#This Row],[Contract Price]]*Table2[[#This Row],[Quantity Sold]]","v":0},{"$f":"Table2[[#This Row],[Extended Price]]*1%","v":0}]
[244,null,null,null,null,null,null,null,null,null,null,null,{"$f":"Table2[[#This Row],[Contract Price]]*Table2[[#This Row],[Quantity Sold]]","v":0},{"$f":"Table2[[#This Row],[Extended Price]]*1%","v":0}]
[245,null,null,null,null,null,null,null,null,null,null,null,{"$f":"Table2[[#This Row],[Contract Price]]*Table2[[#This Row],[Quantity Sold]]","v":0},{"$f":"Table2[[#This Row],[Extended Price]]*1%","v":0}]
[246,null,null,null,null,null,null,null,null,null,null,null,{"$f":"Table2[[#This Row],[Contract Price]]*Table2[[#This Row],[Quantity Sold]]","v":0},{"$f":"Table2[[#This Row],[Extended Price]]*1%","v":0}]
[247,null,null,null,null,null,null,null,null,null,null,null,{"$f":"Table2[[#This Row],[Contract Price]]*Table2[[#This Row],[Quantity Sold]]","v":0},{"$f":"Table2[[#This Row],[Extended Price]]*1%","v":0}]
[248,null,null,null,null,null,null,null,null,null,null,null,{"$f":"Table2[[#This Row],[Contract Price]]*Table2[[#This Row],[Quantity Sold]]","v":0},{"$f":"Table2[[#This Row],[Extended Price]]*1%","v":0}]
[249,null,null,null,null,null,null,null,null,null,null,null,{"$f":"Table2[[#This Row],[Contract Price]]*Table2[[#This Row],[Quantity Sold]]","v":0},{"$f":"Table2[[#This Row],[Extended Price]]*1%","v":0}]
[250,null,null,null,null,null,null,null,null,null,null,null,{"$f":"Table2[[#This Row],[Contract Price]]*Table2[[#This Row],[Quantity Sold]]","v":0},{"$f":"Table2[[#This Row],[Extended Price]]*1%","v":0}]
[251,null,null,null,null,null,null,null,null,null,null,null,{"$f":"Table2[[#This Row],[Contract Price]]*Table2[[#This Row],[Quantity Sold]]","v":0},{"$f":"Table2[[#This Row],[Extended Price]]*1%","v":0}]
[252,null,null,null,null,null,null,null,null,null,null,null,{"$f":"Table2[[#This Row],[Contract Price]]*Table2[[#This Row],[Quantity Sold]]","v":0},{"$f":"Table2[[#This Row],[Extended Price]]*1%","v":0}]
[253,null,null,null,null,null,null,null,null,null,null,null,{"$f":"Table2[[#This Row],[Contract Price]]*Table2[[#This Row],[Quantity Sold]]","v":0},{"$f":"Table2[[#This Row],[Extended Price]]*1%","v":0}]
[254,null,null,null,null,null,null,null,null,null,null,null,{"$f":"Table2[[#This Row],[Contract Price]]*Table2[[#This Row],[Quantity Sold]]","v":0},{"$f":"Table2[[#This Row],[Extended Price]]*1%","v":0}]
[255,null,null,null,null,null,null,null,null,null,null,null,{"$f":"Table2[[#This Row],[Contract Price]]*Table2[[#This Row],[Quantity Sold]]","v":0},{"$f":"Table2[[#This Row],[Extended Price]]*1%","v":0}]
[256,null,null,null,null,null,null,null,null,null,null,null,{"$f":"Table2[[#This Row],[Contract Price]]*Table2[[#This Row],[Quantity Sold]]","v":0},{"$f":"Table2[[#This Row],[Extended Price]]*1%","v":0}]
[257,null,null,null,null,null,null,null,null,null,null,null,{"$f":"Table2[[#This Row],[Contract Price]]*Table2[[#This Row],[Quantity Sold]]","v":0},{"$f":"Table2[[#This Row],[Extended Price]]*1%","v":0}]
[258,null,null,null,null,null,null,null,null,null,null,null,{"$f":"Table2[[#This Row],[Contract Price]]*Table2[[#This Row],[Quantity Sold]]","v":0},{"$f":"Table2[[#This Row],[Extended Price]]*1%","v":0}]
[259,null,null,null,null,null,null,null,null,null,null,null,{"$f":"Table2[[#This Row],[Contract Price]]*Table2[[#This Row],[Quantity Sold]]","v":0},{"$f":"Table2[[#This Row],[Extended Price]]*1%","v":0}]
[260,null,null,null,null,null,null,null,null,null,null,null,{"$f":"Table2[[#This Row],[Contract Price]]*Table2[[#This Row],[Quantity Sold]]","v":0},{"$f":"Table2[[#This Row],[Extended Price]]*1%","v":0}]
[261,null,null,null,null,null,null,null,null,null,null,null,{"$f":"Table2[[#This Row],[Contract Price]]*Table2[[#This Row],[Quantity Sold]]","v":0},{"$f":"Table2[[#This Row],[Extended Price]]*1%","v":0}]
[262,null,null,null,null,null,null,null,null,null,null,null,{"$f":"Table2[[#This Row],[Contract Price]]*Table2[[#This Row],[Quantity Sold]]","v":0},{"$f":"Table2[[#This Row],[Extended Price]]*1%","v":0}]
[263,null,null,null,null,null,null,null,null,null,null,null,{"$f":"Table2[[#This Row],[Contract Price]]*Table2[[#This Row],[Quantity Sold]]","v":0},{"$f":"Table2[[#This Row],[Extended Price]]*1%","v":0}]
[264,null,null,null,null,null,null,null,null,null,null,null,{"$f":"Table2[[#This Row],[Contract Price]]*Table2[[#This Row],[Quantity Sold]]","v":0},{"$f":"Table2[[#This Row],[Extended Price]]*1%","v":0}]
[265,null,null,null,null,null,null,null,null,null,null,null,{"$f":"Table2[[#This Row],[Contract Price]]*Table2[[#This Row],[Quantity Sold]]","v":0},{"$f":"Table2[[#This Row],[Extended Price]]*1%","v":0}]
[266,null,null,null,null,null,null,null,null,null,null,null,{"$f":"Table2[[#This Row],[Contract Price]]*Table2[[#This Row],[Quantity Sold]]","v":0},{"$f":"Table2[[#This Row],[Extended Price]]*1%","v":0}]
[267,null,null,null,null,null,null,null,null,null,null,null,{"$f":"Table2[[#This Row],[Contract Price]]*Table2[[#This Row],[Quantity Sold]]","v":0},{"$f":"Table2[[#This Row],[Extended Price]]*1%","v":0}]
[268,null,null,null,null,null,null,null,null,null,null,null,{"$f":"Table2[[#This Row],[Contract Price]]*Table2[[#This Row],[Quantity Sold]]","v":0},{"$f":"Table2[[#This Row],[Extended Price]]*1%","v":0}]
[269,null,null,null,null,null,null,null,null,null,null,null,{"$f":"Table2[[#This Row],[Contract Price]]*Table2[[#This Row],[Quantity Sold]]","v":0},{"$f":"Table2[[#This Row],[Extended Price]]*1%","v":0}]
[270,null,null,null,null,null,null,null,null,null,null,null,{"$f":"Table2[[#This Row],[Contract Price]]*Table2[[#This Row],[Quantity Sold]]","v":0},{"$f":"Table2[[#This Row],[Extended Price]]*1%","v":0}]
[271,null,null,null,null,null,null,null,null,null,null,null,{"$f":"Table2[[#This Row],[Contract Price]]*Table2[[#This Row],[Quantity Sold]]","v":0},{"$f":"Table2[[#This Row],[Extended Price]]*1%","v":0}]
[272,null,null,null,null,null,null,null,null,null,null,null,{"$f":"Table2[[#This Row],[Contract Price]]*Table2[[#This Row],[Quantity Sold]]","v":0},{"$f":"Table2[[#This Row],[Extended Price]]*1%","v":0}]
[273,null,null,null,null,null,null,null,null,null,null,null,{"$f":"Table2[[#This Row],[Contract Price]]*Table2[[#This Row],[Quantity Sold]]","v":0},{"$f":"Table2[[#This Row],[Extended Price]]*1%","v":0}]
[274,null,null,null,null,null,null,null,null,null,null,null,{"$f":"Table2[[#This Row],[Contract Price]]*Table2[[#This Row],[Quantity Sold]]","v":0},{"$f":"Table2[[#This Row],[Extended Price]]*1%","v":0}]
[275,null,null,null,null,null,null,null,null,null,null,null,{"$f":"Table2[[#This Row],[Contract Price]]*Table2[[#This Row],[Quantity Sold]]","v":0},{"$f":"Table2[[#This Row],[Extended Price]]*1%","v":0}]
[276,null,null,null,null,null,null,null,null,null,null,null,{"$f":"Table2[[#This Row],[Contract Price]]*Table2[[#This Row],[Quantity Sold]]","v":0},{"$f":"Table2[[#This Row],[Extended Price]]*1%","v":0}]
[277,null,null,null,null,null,null,null,null,null,null,null,{"$f":"Table2[[#This Row],[Contract Price]]*Table2[[#This Row],[Quantity Sold]]","v":0},{"$f":"Table2[[#This Row],[Extended Price]]*1%","v":0}]
[278,null,null,null,null,null,null,null,null,null,null,null,{"$f":"Table2[[#This Row],[Contract Price]]*Table2[[#This Row],[Quantity Sold]]","v":0},{"$f":"Table2[[#This Row],[Extended Price]]*1%","v":0}]
[279,null,null,null,null,null,null,null,null,null,null,null,{"$f":"Table2[[#This Row],[Contract Price]]*Table2[[#This Row],[Quantity Sold]]","v":0},{"$f":"Table2[[#This Row],[Extended Price]]*1%","v":0}]
[280,null,null,null,null,null,null,null,null,null,null,null,{"$f":"Table2[[#This Row],[Contract Price]]*Table2[[#This Row],[Quantity Sold]]","v":0},{"$f":"Table2[[#This Row],[Extended Price]]*1%","v":0}]
[281,null,null,null,null,null,null,null,null,null,null,null,{"$f":"Table2[[#This Row],[Contract Price]]*Table2[[#This Row],[Quantity Sold]]","v":0},{"$f":"Table2[[#This Row],[Extended Price]]*1%","v":0}]
[282,null,null,null,null,null,null,null,null,null,null,null,{"$f":"Table2[[#This Row],[Contract Price]]*Table2[[#This Row],[Quantity Sold]]","v":0},{"$f":"Table2[[#This Row],[Extended Price]]*1%","v":0}]
[283,null,null,null,null,null,null,null,null,null,null,null,{"$f":"Table2[[#This Row],[Contract Price]]*Table2[[#This Row],[Quantity Sold]]","v":0},{"$f":"Table2[[#This Row],[Extended Price]]*1%","v":0}]
[284,null,null,null,null,null,null,null,null,null,null,null,{"$f":"Table2[[#This Row],[Contract Price]]*Table2[[#This Row],[Quantity Sold]]","v":0},{"$f":"Table2[[#This Row],[Extended Price]]*1%","v":0}]
[285,null,null,null,null,null,null,null,null,null,null,null,{"$f":"Table2[[#This Row],[Contract Price]]*Table2[[#This Row],[Quantity Sold]]","v":0},{"$f":"Table2[[#This Row],[Extended Price]]*1%","v":0}]
[286,null,null,null,null,null,null,null,null,null,null,null,{"$f":"Table2[[#This Row],[Contract Price]]*Table2[[#This Row],[Quantity Sold]]","v":0},{"$f":"Table2[[#This Row],[Extended Price]]*1%","v":0}]
[287,null,null,null,null,null,null,null,null,null,null,null,{"$f":"Table2[[#This Row],[Contract Price]]*Table2[[#This Row],[Quantity Sold]]","v":0},{"$f":"Table2[[#This Row],[Extended Price]]*1%","v":0}]
[288,null,null,null,null,null,null,null,null,null,null,null,{"$f":"Table2[[#This Row],[Contract Price]]*Table2[[#This Row],[Quantity Sold]]","v":0},{"$f":"Table2[[#This Row],[Extended Price]]*1%","v":0}]
[289,null,null,null,null,null,null,null,null,null,null,null,{"$f":"Table2[[#This Row],[Contract Price]]*Table2[[#This Row],[Quantity Sold]]","v":0},{"$f":"Table2[[#This Row],[Extended Price]]*1%","v":0}]
[290,null,null,null,null,null,null,null,null,null,null,null,{"$f":"Table2[[#This Row],[Contract Price]]*Table2[[#This Row],[Quantity Sold]]","v":0},{"$f":"Table2[[#This Row],[Extended Price]]*1%","v":0}]
[291,null,null,null,null,null,null,null,null,null,null,null,{"$f":"Table2[[#This Row],[Contract Price]]*Table2[[#This Row],[Quantity Sold]]","v":0},{"$f":"Table2[[#This Row],[Extended Price]]*1%","v":0}]
[292,null,null,null,null,null,null,null,null,null,null,null,{"$f":"Table2[[#This Row],[Contract Price]]*Table2[[#This Row],[Quantity Sold]]","v":0},{"$f":"Table2[[#This Row],[Extended Price]]*1%","v":0}]
[293,null,null,null,null,null,null,null,null,null,null,null,{"$f":"Table2[[#This Row],[Contract Price]]*Table2[[#This Row],[Quantity Sold]]","v":0},{"$f":"Table2[[#This Row],[Extended Price]]*1%","v":0}]
[294,null,null,null,null,null,null,null,null,null,null,null,{"$f":"Table2[[#This Row],[Contract Price]]*Table2[[#This Row],[Quantity Sold]]","v":0},{"$f":"Table2[[#This Row],[Extended Price]]*1%","v":0}]
[295,null,null,null,null,null,null,null,null,null,null,null,{"$f":"Table2[[#This Row],[Contract Price]]*Table2[[#This Row],[Quantity Sold]]","v":0},{"$f":"Table2[[#This Row],[Extended Price]]*1%","v":0}]
[296,null,null,null,null,null,null,null,null,null,null,null,{"$f":"Table2[[#This Row],[Contract Price]]*Table2[[#This Row],[Quantity Sold]]","v":0},{"$f":"Table2[[#This Row],[Extended Price]]*1%","v":0}]
[297,null,null,null,null,null,null,null,null,null,null,null,{"$f":"Table2[[#This Row],[Contract Price]]*Table2[[#This Row],[Quantity Sold]]","v":0},{"$f":"Table2[[#This Row],[Extended Price]]*1%","v":0}]
[298,null,null,null,null,null,null,null,null,null,null,null,{"$f":"Table2[[#This Row],[Contract Price]]*Table2[[#This Row],[Quantity Sold]]","v":0},{"$f":"Table2[[#This Row],[Extended Price]]*1%","v":0}]
[299,null,null,null,null,null,null,null,null,null,null,null,{"$f":"Table2[[#This Row],[Contract Price]]*Table2[[#This Row],[Quantity Sold]]","v":0},{"$f":"Table2[[#This Row],[Extended Price]]*1%","v":0}]
[300,null,null,null,null,null,null,null,null,null,null,null,{"$f":"Table2[[#This Row],[Contract Price]]*Table2[[#This Row],[Quantity Sold]]","v":0},{"$f":"Table2[[#This Row],[Extended Price]]*1%","v":0}]
[301,null,null,null,null,null,null,null,null,null,null,null,{"$f":"Table2[[#This Row],[Contract Price]]*Table2[[#This Row],[Quantity Sold]]","v":0},{"$f":"Table2[[#This Row],[Extended Price]]*1%","v":0}]
[302,null,null,null,null,null,null,null,null,null,null,null,{"$f":"Table2[[#This Row],[Contract Price]]*Table2[[#This Row],[Quantity Sold]]","v":0},{"$f":"Table2[[#This Row],[Extended Price]]*1%","v":0}]
[303,null,null,null,null,null,null,null,null,null,null,null,{"$f":"Table2[[#This Row],[Contract Price]]*Table2[[#This Row],[Quantity Sold]]","v":0},{"$f":"Table2[[#This Row],[Extended Price]]*1%","v":0}]
[304,null,null,null,null,null,null,null,null,null,null,null,{"$f":"Table2[[#This Row],[Contract Price]]*Table2[[#This Row],[Quantity Sold]]","v":0},{"$f":"Table2[[#This Row],[Extended Price]]*1%","v":0}]
[305,null,null,null,null,null,null,null,null,null,null,null,{"$f":"Table2[[#This Row],[Contract Price]]*Table2[[#This Row],[Quantity Sold]]","v":0},{"$f":"Table2[[#This Row],[Extended Price]]*1%","v":0}]
[306,null,null,null,null,null,null,null,null,null,null,null,{"$f":"Table2[[#This Row],[Contract Price]]*Table2[[#This Row],[Quantity Sold]]","v":0},{"$f":"Table2[[#This Row],[Extended Price]]*1%","v":0}]
[307,null,null,null,null,null,null,null,null,null,null,null,{"$f":"Table2[[#This Row],[Contract Price]]*Table2[[#This Row],[Quantity Sold]]","v":0},{"$f":"Table2[[#This Row],[Extended Price]]*1%","v":0}]
[308,null,null,null,null,null,null,null,null,null,null,null,{"$f":"Table2[[#This Row],[Contract Price]]*Table2[[#This Row],[Quantity Sold]]","v":0},{"$f":"Table2[[#This Row],[Extended Price]]*1%","v":0}]
[309,null,null,null,null,null,null,null,null,null,null,null,{"$f":"Table2[[#This Row],[Contract Price]]*Table2[[#This Row],[Quantity Sold]]","v":0},{"$f":"Table2[[#This Row],[Extended Price]]*1%","v":0}]
[310,null,null,null,null,null,null,null,null,null,null,null,{"$f":"Table2[[#This Row],[Contract Price]]*Table2[[#This Row],[Quantity Sold]]","v":0},{"$f":"Table2[[#This Row],[Extended Price]]*1%","v":0}]
[311,null,null,null,null,null,null,null,null,null,null,null,{"$f":"Table2[[#This Row],[Contract Price]]*Table2[[#This Row],[Quantity Sold]]","v":0},{"$f":"Table2[[#This Row],[Extended Price]]*1%","v":0}]
[312,null,null,null,null,null,null,null,null,null,null,null,{"$f":"Table2[[#This Row],[Contract Price]]*Table2[[#This Row],[Quantity Sold]]","v":0},{"$f":"Table2[[#This Row],[Extended Price]]*1%","v":0}]
[313,null,null,null,null,null,null,null,null,null,null,null,{"$f":"Table2[[#This Row],[Contract Price]]*Table2[[#This Row],[Quantity Sold]]","v":0},{"$f":"Table2[[#This Row],[Extended Price]]*1%","v":0}]
[314,null,null,null,null,null,null,null,null,null,null,null,{"$f":"Table2[[#This Row],[Contract Price]]*Table2[[#This Row],[Quantity Sold]]","v":0},{"$f":"Table2[[#This Row],[Extended Price]]*1%","v":0}]
[315,null,null,null,null,null,null,null,null,null,null,null,{"$f":"Table2[[#This Row],[Contract Price]]*Table2[[#This Row],[Quantity Sold]]","v":0},{"$f":"Table2[[#This Row],[Extended Price]]*1%","v":0}]
[316,null,null,null,null,null,null,null,null,null,null,null,{"$f":"Table2[[#This Row],[Contract Price]]*Table2[[#This Row],[Quantity Sold]]","v":0},{"$f":"Table2[[#This Row],[Extended Price]]*1%","v":0}]
[317,null,null,null,null,null,null,null,null,null,null,null,{"$f":"Table2[[#This Row],[Contract Price]]*Table2[[#This Row],[Quantity Sold]]","v":0},{"$f":"Table2[[#This Row],[Extended Price]]*1%","v":0}]
[318,null,null,null,null,null,null,null,null,null,null,null,{"$f":"Table2[[#This Row],[Contract Price]]*Table2[[#This Row],[Quantity Sold]]","v":0},{"$f":"Table2[[#This Row],[Extended Price]]*1%","v":0}]
[319,null,null,null,null,null,null,null,null,null,null,null,{"$f":"Table2[[#This Row],[Contract Price]]*Table2[[#This Row],[Quantity Sold]]","v":0},{"$f":"Table2[[#This Row],[Extended Price]]*1%","v":0}]
[320,null,null,null,null,null,null,null,null,null,null,null,{"$f":"Table2[[#This Row],[Contract Price]]*Table2[[#This Row],[Quantity Sold]]","v":0},{"$f":"Table2[[#This Row],[Extended Price]]*1%","v":0}]
[321,null,null,null,null,null,null,null,null,null,null,null,{"$f":"Table2[[#This Row],[Contract Price]]*Table2[[#This Row],[Quantity Sold]]","v":0},{"$f":"Table2[[#This Row],[Extended Price]]*1%","v":0}]
[322,null,null,null,null,null,null,null,null,null,null,null,{"$f":"Table2[[#This Row],[Contract Price]]*Table2[[#This Row],[Quantity Sold]]","v":0},{"$f":"Table2[[#This Row],[Extended Price]]*1%","v":0}]
[323,null,null,null,null,null,null,null,null,null,null,null,{"$f":"Table2[[#This Row],[Contract Price]]*Table2[[#This Row],[Quantity Sold]]","v":0},{"$f":"Table2[[#This Row],[Extended Price]]*1%","v":0}]
[324,null,null,null,null,null,null,null,null,null,null,null,{"$f":"Table2[[#This Row],[Contract Price]]*Table2[[#This Row],[Quantity Sold]]","v":0},{"$f":"Table2[[#This Row],[Extended Price]]*1%","v":0}]
[325,null,null,null,null,null,null,null,null,null,null,null,{"$f":"Table2[[#This Row],[Contract Price]]*Table2[[#This Row],[Quantity Sold]]","v":0},{"$f":"Table2[[#This Row],[Extended Price]]*1%","v":0}]
[326,null,null,null,null,null,null,null,null,null,null,null,{"$f":"Table2[[#This Row],[Contract Price]]*Table2[[#This Row],[Quantity Sold]]","v":0},{"$f":"Table2[[#This Row],[Extended Price]]*1%","v":0}]
[327,null,null,null,null,null,null,null,null,null,null,null,{"$f":"Table2[[#This Row],[Contract Price]]*Table2[[#This Row],[Quantity Sold]]","v":0},{"$f":"Table2[[#This Row],[Extended Price]]*1%","v":0}]
[328,null,null,null,null,null,null,null,null,null,null,null,{"$f":"Table2[[#This Row],[Contract Price]]*Table2[[#This Row],[Quantity Sold]]","v":0},{"$f":"Table2[[#This Row],[Extended Price]]*1%","v":0}]
[329,null,null,null,null,null,null,null,null,null,null,null,{"$f":"Table2[[#This Row],[Contract Price]]*Table2[[#This Row],[Quantity Sold]]","v":0},{"$f":"Table2[[#This Row],[Extended Price]]*1%","v":0}]
[330,null,null,null,null,null,null,null,null,null,null,null,{"$f":"Table2[[#This Row],[Contract Price]]*Table2[[#This Row],[Quantity Sold]]","v":0},{"$f":"Table2[[#This Row],[Extended Price]]*1%","v":0}]
[331,null,null,null,null,null,null,null,null,null,null,null,{"$f":"Table2[[#This Row],[Contract Price]]*Table2[[#This Row],[Quantity Sold]]","v":0},{"$f":"Table2[[#This Row],[Extended Price]]*1%","v":0}]
[332,null,null,null,null,null,null,null,null,null,null,null,{"$f":"Table2[[#This Row],[Contract Price]]*Table2[[#This Row],[Quantity Sold]]","v":0},{"$f":"Table2[[#This Row],[Extended Price]]*1%","v":0}]
[333,null,null,null,null,null,null,null,null,null,null,null,{"$f":"Table2[[#This Row],[Contract Price]]*Table2[[#This Row],[Quantity Sold]]","v":0},{"$f":"Table2[[#This Row],[Extended Price]]*1%","v":0}]
[334,null,null,null,null,null,null,null,null,null,null,null,{"$f":"Table2[[#This Row],[Contract Price]]*Table2[[#This Row],[Quantity Sold]]","v":0},{"$f":"Table2[[#This Row],[Extended Price]]*1%","v":0}]
[335,null,null,null,null,null,null,null,null,null,null,null,{"$f":"Table2[[#This Row],[Contract Price]]*Table2[[#This Row],[Quantity Sold]]","v":0},{"$f":"Table2[[#This Row],[Extended Price]]*1%","v":0}]
[336,null,null,null,null,null,null,null,null,null,null,null,{"$f":"Table2[[#This Row],[Contract Price]]*Table2[[#This Row],[Quantity Sold]]","v":0},{"$f":"Table2[[#This Row],[Extended Price]]*1%","v":0}]
[337,null,null,null,null,null,null,null,null,null,null,null,{"$f":"Table2[[#This Row],[Contract Price]]*Table2[[#This Row],[Quantity Sold]]","v":0},{"$f":"Table2[[#This Row],[Extended Price]]*1%","v":0}]
[338,null,null,null,null,null,null,null,null,null,null,null,{"$f":"Table2[[#This Row],[Contract Price]]*Table2[[#This Row],[Quantity Sold]]","v":0},{"$f":"Table2[[#This Row],[Extended Price]]*1%","v":0}]
[339,null,null,null,null,null,null,null,null,null,null,null,{"$f":"Table2[[#This Row],[Contract Price]]*Table2[[#This Row],[Quantity Sold]]","v":0},{"$f":"Table2[[#This Row],[Extended Price]]*1%","v":0}]
[340,null,null,null,null,null,null,null,null,null,null,null,{"$f":"Table2[[#This Row],[Contract Price]]*Table2[[#This Row],[Quantity Sold]]","v":0},{"$f":"Table2[[#This Row],[Extended Price]]*1%","v":0}]
[341,null,null,null,null,null,null,null,null,null,null,null,{"$f":"Table2[[#This Row],[Contract Price]]*Table2[[#This Row],[Quantity Sold]]","v":0},{"$f":"Table2[[#This Row],[Extended Price]]*1%","v":0}]
[342,null,null,null,null,null,null,null,null,null,null,null,{"$f":"Table2[[#This Row],[Contract Price]]*Table2[[#This Row],[Quantity Sold]]","v":0},{"$f":"Table2[[#This Row],[Extended Price]]*1%","v":0}]
[343,null,null,null,null,null,null,null,null,null,null,null,{"$f":"Table2[[#This Row],[Contract Price]]*Table2[[#This Row],[Quantity Sold]]","v":0},{"$f":"Table2[[#This Row],[Extended Price]]*1%","v":0}]
[344,null,null,null,null,null,null,null,null,null,null,null,{"$f":"Table2[[#This Row],[Contract Price]]*Table2[[#This Row],[Quantity Sold]]","v":0},{"$f":"Table2[[#This Row],[Extended Price]]*1%","v":0}]
[345,null,null,null,null,null,null,null,null,null,null,null,{"$f":"Table2[[#This Row],[Contract Price]]*Table2[[#This Row],[Quantity Sold]]","v":0},{"$f":"Table2[[#This Row],[Extended Price]]*1%","v":0}]
[346,null,null,null,null,null,null,null,null,null,null,null,{"$f":"Table2[[#This Row],[Contract Price]]*Table2[[#This Row],[Quantity Sold]]","v":0},{"$f":"Table2[[#This Row],[Extended Price]]*1%","v":0}]
[347,null,null,null,null,null,null,null,null,null,null,null,{"$f":"Table2[[#This Row],[Contract Price]]*Table2[[#This Row],[Quantity Sold]]","v":0},{"$f":"Table2[[#This Row],[Extended Price]]*1%","v":0}]
[348,null,null,null,null,null,null,null,null,null,null,null,{"$f":"Table2[[#This Row],[Contract Price]]*Table2[[#This Row],[Quantity Sold]]","v":0},{"$f":"Table2[[#This Row],[Extended Price]]*1%","v":0}]
[349,null,null,null,null,null,null,null,null,null,null,null,{"$f":"Table2[[#This Row],[Contract Price]]*Table2[[#This Row],[Quantity Sold]]","v":0},{"$f":"Table2[[#This Row],[Extended Price]]*1%","v":0}]
[350,null,null,null,null,null,null,null,null,null,null,null,{"$f":"Table2[[#This Row],[Contract Price]]*Table2[[#This Row],[Quantity Sold]]","v":0},{"$f":"Table2[[#This Row],[Extended Price]]*1%","v":0}]
[351,null,null,null,null,null,null,null,null,null,null,null,{"$f":"Table2[[#This Row],[Contract Price]]*Table2[[#This Row],[Quantity Sold]]","v":0},{"$f":"Table2[[#This Row],[Extended Price]]*1%","v":0}]
[352,null,null,null,null,null,null,null,null,null,null,null,{"$f":"Table2[[#This Row],[Contract Price]]*Table2[[#This Row],[Quantity Sold]]","v":0},{"$f":"Table2[[#This Row],[Extended Price]]*1%","v":0}]
[353,null,null,null,null,null,null,null,null,null,null,null,{"$f":"Table2[[#This Row],[Contract Price]]*Table2[[#This Row],[Quantity Sold]]","v":0},{"$f":"Table2[[#This Row],[Extended Price]]*1%","v":0}]
[354,null,null,null,null,null,null,null,null,null,null,null,{"$f":"Table2[[#This Row],[Contract Price]]*Table2[[#This Row],[Quantity Sold]]","v":0},{"$f":"Table2[[#This Row],[Extended Price]]*1%","v":0}]
[355,null,null,null,null,null,null,null,null,null,null,null,{"$f":"Table2[[#This Row],[Contract Price]]*Table2[[#This Row],[Quantity Sold]]","v":0},{"$f":"Table2[[#This Row],[Extended Price]]*1%","v":0}]
[356,null,null,null,null,null,null,null,null,null,null,null,{"$f":"Table2[[#This Row],[Contract Price]]*Table2[[#This Row],[Quantity Sold]]","v":0},{"$f":"Table2[[#This Row],[Extended Price]]*1%","v":0}]
[357,null,null,null,null,null,null,null,null,null,null,null,{"$f":"Table2[[#This Row],[Contract Price]]*Table2[[#This Row],[Quantity Sold]]","v":0},{"$f":"Table2[[#This Row],[Extended Price]]*1%","v":0}]
[358,null,null,null,null,null,null,null,null,null,null,null,{"$f":"Table2[[#This Row],[Contract Price]]*Table2[[#This Row],[Quantity Sold]]","v":0},{"$f":"Table2[[#This Row],[Extended Price]]*1%","v":0}]
[359,null,null,null,null,null,null,null,null,null,null,null,{"$f":"Table2[[#This Row],[Contract Price]]*Table2[[#This Row],[Quantity Sold]]","v":0},{"$f":"Table2[[#This Row],[Extended Price]]*1%","v":0}]
[360,null,null,null,null,null,null,null,null,null,null,null,{"$f":"Table2[[#This Row],[Contract Price]]*Table2[[#This Row],[Quantity Sold]]","v":0},{"$f":"Table2[[#This Row],[Extended Price]]*1%","v":0}]
[361,null,null,null,null,null,null,null,null,null,null,null,{"$f":"Table2[[#This Row],[Contract Price]]*Table2[[#This Row],[Quantity Sold]]","v":0},{"$f":"Table2[[#This Row],[Extended Price]]*1%","v":0}]
[362,null,null,null,null,null,null,null,null,null,null,null,{"$f":"Table2[[#This Row],[Contract Price]]*Table2[[#This Row],[Quantity Sold]]","v":0},{"$f":"Table2[[#This Row],[Extended Price]]*1%","v":0}]
[363,null,null,null,null,null,null,null,null,null,null,null,{"$f":"Table2[[#This Row],[Contract Price]]*Table2[[#This Row],[Quantity Sold]]","v":0},{"$f":"Table2[[#This Row],[Extended Price]]*1%","v":0}]
[364,null,null,null,null,null,null,null,null,null,null,null,{"$f":"Table2[[#This Row],[Contract Price]]*Table2[[#This Row],[Quantity Sold]]","v":0},{"$f":"Table2[[#This Row],[Extended Price]]*1%","v":0}]
[365,null,null,null,null,null,null,null,null,null,null,null,{"$f":"Table2[[#This Row],[Contract Price]]*Table2[[#This Row],[Quantity Sold]]","v":0},{"$f":"Table2[[#This Row],[Extended Price]]*1%","v":0}]
[366,null,null,null,null,null,null,null,null,null,null,null,{"$f":"Table2[[#This Row],[Contract Price]]*Table2[[#This Row],[Quantity Sold]]","v":0},{"$f":"Table2[[#This Row],[Extended Price]]*1%","v":0}]
[367,null,null,null,null,null,null,null,null,null,null,null,{"$f":"Table2[[#This Row],[Contract Price]]*Table2[[#This Row],[Quantity Sold]]","v":0},{"$f":"Table2[[#This Row],[Extended Price]]*1%","v":0}]
[368,null,null,null,null,null,null,null,null,null,null,null,{"$f":"Table2[[#This Row],[Contract Price]]*Table2[[#This Row],[Quantity Sold]]","v":0},{"$f":"Table2[[#This Row],[Extended Price]]*1%","v":0}]
[369,null,null,null,null,null,null,null,null,null,null,null,{"$f":"Table2[[#This Row],[Contract Price]]*Table2[[#This Row],[Quantity Sold]]","v":0},{"$f":"Table2[[#This Row],[Extended Price]]*1%","v":0}]
[370,null,null,null,null,null,null,null,null,null,null,null,{"$f":"Table2[[#This Row],[Contract Price]]*Table2[[#This Row],[Quantity Sold]]","v":0},{"$f":"Table2[[#This Row],[Extended Price]]*1%","v":0}]
[371,null,null,null,null,null,null,null,null,null,null,null,{"$f":"Table2[[#This Row],[Contract Price]]*Table2[[#This Row],[Quantity Sold]]","v":0},{"$f":"Table2[[#This Row],[Extended Price]]*1%","v":0}]
[372,null,null,null,null,null,null,null,null,null,null,null,{"$f":"Table2[[#This Row],[Contract Price]]*Table2[[#This Row],[Quantity Sold]]","v":0},{"$f":"Table2[[#This Row],[Extended Price]]*1%","v":0}]
[373,null,null,null,null,null,null,null,null,null,null,null,{"$f":"Table2[[#This Row],[Contract Price]]*Table2[[#This Row],[Quantity Sold]]","v":0},{"$f":"Table2[[#This Row],[Extended Price]]*1%","v":0}]
[374,null,null,null,null,null,null,null,null,null,null,null,{"$f":"Table2[[#This Row],[Contract Price]]*Table2[[#This Row],[Quantity Sold]]","v":0},{"$f":"Table2[[#This Row],[Extended Price]]*1%","v":0}]
[375,null,null,null,null,null,null,null,null,null,null,null,{"$f":"Table2[[#This Row],[Contract Price]]*Table2[[#This Row],[Quantity Sold]]","v":0},{"$f":"Table2[[#This Row],[Extended Price]]*1%","v":0}]
[376,null,null,null,null,null,null,null,null,null,null,null,{"$f":"Table2[[#This Row],[Contract Price]]*Table2[[#This Row],[Quantity Sold]]","v":0},{"$f":"Table2[[#This Row],[Extended Price]]*1%","v":0}]
[377,null,null,null,null,null,null,null,null,null,null,null,{"$f":"Table2[[#This Row],[Contract Price]]*Table2[[#This Row],[Quantity Sold]]","v":0},{"$f":"Table2[[#This Row],[Extended Price]]*1%","v":0}]
[378,null,null,null,null,null,null,null,null,null,null,null,{"$f":"Table2[[#This Row],[Contract Price]]*Table2[[#This Row],[Quantity Sold]]","v":0},{"$f":"Table2[[#This Row],[Extended Price]]*1%","v":0}]
[379,null,null,null,null,null,null,null,null,null,null,null,{"$f":"Table2[[#This Row],[Contract Price]]*Table2[[#This Row],[Quantity Sold]]","v":0},{"$f":"Table2[[#This Row],[Extended Price]]*1%","v":0}]
[380,null,null,null,null,null,null,null,null,null,null,null,{"$f":"Table2[[#This Row],[Contract Price]]*Table2[[#This Row],[Quantity Sold]]","v":0},{"$f":"Table2[[#This Row],[Extended Price]]*1%","v":0}]
[381,null,null,null,null,null,null,null,null,null,null,null,{"$f":"Table2[[#This Row],[Contract Price]]*Table2[[#This Row],[Quantity Sold]]","v":0},{"$f":"Table2[[#This Row],[Extended Price]]*1%","v":0}]
[382,null,null,null,null,null,null,null,null,null,null,null,{"$f":"Table2[[#This Row],[Contract Price]]*Table2[[#This Row],[Quantity Sold]]","v":0},{"$f":"Table2[[#This Row],[Extended Price]]*1%","v":0}]
[383,null,null,null,null,null,null,null,null,null,null,null,{"$f":"Table2[[#This Row],[Contract Price]]*Table2[[#This Row],[Quantity Sold]]","v":0},{"$f":"Table2[[#This Row],[Extended Price]]*1%","v":0}]
[384,null,null,null,null,null,null,null,null,null,null,null,{"$f":"Table2[[#This Row],[Contract Price]]*Table2[[#This Row],[Quantity Sold]]","v":0},{"$f":"Table2[[#This Row],[Extended Price]]*1%","v":0}]
[385,null,null,null,null,null,null,null,null,null,null,null,{"$f":"Table2[[#This Row],[Contract Price]]*Table2[[#This Row],[Quantity Sold]]","v":0},{"$f":"Table2[[#This Row],[Extended Price]]*1%","v":0}]
[386,null,null,null,null,null,null,null,null,null,null,null,{"$f":"Table2[[#This Row],[Contract Price]]*Table2[[#This Row],[Quantity Sold]]","v":0},{"$f":"Table2[[#This Row],[Extended Price]]*1%","v":0}]
[387,null,null,null,null,null,null,null,null,null,null,null,{"$f":"Table2[[#This Row],[Contract Price]]*Table2[[#This Row],[Quantity Sold]]","v":0},{"$f":"Table2[[#This Row],[Extended Price]]*1%","v":0}]
[388,null,null,null,null,null,null,null,null,null,null,null,{"$f":"Table2[[#This Row],[Contract Price]]*Table2[[#This Row],[Quantity Sold]]","v":0},{"$f":"Table2[[#This Row],[Extended Price]]*1%","v":0}]
[389,null,null,null,null,null,null,null,null,null,null,null,{"$f":"Table2[[#This Row],[Contract Price]]*Table2[[#This Row],[Quantity Sold]]","v":0},{"$f":"Table2[[#This Row],[Extended Price]]*1%","v":0}]
[390,null,null,null,null,null,null,null,null,null,null,null,{"$f":"Table2[[#This Row],[Contract Price]]*Table2[[#This Row],[Quantity Sold]]","v":0},{"$f":"Table2[[#This Row],[Extended Price]]*1%","v":0}]
[391,null,null,null,null,null,null,null,null,null,null,null,{"$f":"Table2[[#This Row],[Contract Price]]*Table2[[#This Row],[Quantity Sold]]","v":0},{"$f":"Table2[[#This Row],[Extended Price]]*1%","v":0}]
[392,null,null,null,null,null,null,null,null,null,null,null,{"$f":"Table2[[#This Row],[Contract Price]]*Table2[[#This Row],[Quantity Sold]]","v":0},{"$f":"Table2[[#This Row],[Extended Price]]*1%","v":0}]
[393,null,null,null,null,null,null,null,null,null,null,null,{"$f":"Table2[[#This Row],[Contract Price]]*Table2[[#This Row],[Quantity Sold]]","v":0},{"$f":"Table2[[#This Row],[Extended Price]]*1%","v":0}]
[394,null,null,null,null,null,null,null,null,null,null,null,{"$f":"Table2[[#This Row],[Contract Price]]*Table2[[#This Row],[Quantity Sold]]","v":0},{"$f":"Table2[[#This Row],[Extended Price]]*1%","v":0}]
[395,null,null,null,null,null,null,null,null,null,null,null,{"$f":"Table2[[#This Row],[Contract Price]]*Table2[[#This Row],[Quantity Sold]]","v":0},{"$f":"Table2[[#This Row],[Extended Price]]*1%","v":0}]
[396,null,null,null,null,null,null,null,null,null,null,null,{"$f":"Table2[[#This Row],[Contract Price]]*Table2[[#This Row],[Quantity Sold]]","v":0},{"$f":"Table2[[#This Row],[Extended Price]]*1%","v":0}]
[397,null,null,null,null,null,null,null,null,null,null,null,{"$f":"Table2[[#This Row],[Contract Price]]*Table2[[#This Row],[Quantity Sold]]","v":0},{"$f":"Table2[[#This Row],[Extended Price]]*1%","v":0}]
[398,null,null,null,null,null,null,null,null,null,null,null,{"$f":"Table2[[#This Row],[Contract Price]]*Table2[[#This Row],[Quantity Sold]]","v":0},{"$f":"Table2[[#This Row],[Extended Price]]*1%","v":0}]
[399,null,null,null,null,null,null,null,null,null,null,null,{"$f":"Table2[[#This Row],[Contract Price]]*Table2[[#This Row],[Quantity Sold]]","v":0},{"$f":"Table2[[#This Row],[Extended Price]]*1%","v":0}]
[400,null,null,null,null,null,null,null,null,null,null,null,{"$f":"Table2[[#This Row],[Contract Price]]*Table2[[#This Row],[Quantity Sold]]","v":0},{"$f":"Table2[[#This Row],[Extended Price]]*1%","v":0}]
[401,null,null,null,null,null,null,null,null,null,null,null,{"$f":"Table2[[#This Row],[Contract Price]]*Table2[[#This Row],[Quantity Sold]]","v":0},{"$f":"Table2[[#This Row],[Extended Price]]*1%","v":0}]
[402,null,null,null,null,null,null,null,null,null,null,null,{"$f":"Table2[[#This Row],[Contract Price]]*Table2[[#This Row],[Quantity Sold]]","v":0},{"$f":"Table2[[#This Row],[Extended Price]]*1%","v":0}]
[403,null,null,null,null,null,null,null,null,null,null,null,{"$f":"Table2[[#This Row],[Contract Price]]*Table2[[#This Row],[Quantity Sold]]","v":0},{"$f":"Table2[[#This Row],[Extended Price]]*1%","v":0}]
[404,null,null,null,null,null,null,null,null,null,null,null,{"$f":"Table2[[#This Row],[Contract Price]]*Table2[[#This Row],[Quantity Sold]]","v":0},{"$f":"Table2[[#This Row],[Extended Price]]*1%","v":0}]
[405,null,null,null,null,null,null,null,null,null,null,null,{"$f":"Table2[[#This Row],[Contract Price]]*Table2[[#This Row],[Quantity Sold]]","v":0},{"$f":"Table2[[#This Row],[Extended Price]]*1%","v":0}]
[406,null,null,null,null,null,null,null,null,null,null,null,{"$f":"Table2[[#This Row],[Contract Price]]*Table2[[#This Row],[Quantity Sold]]","v":0},{"$f":"Table2[[#This Row],[Extended Price]]*1%","v":0}]
[407,null,null,null,null,null,null,null,null,null,null,null,{"$f":"Table2[[#This Row],[Contract Price]]*Table2[[#This Row],[Quantity Sold]]","v":0},{"$f":"Table2[[#This Row],[Extended Price]]*1%","v":0}]
[408,null,null,null,null,null,null,null,null,null,null,null,{"$f":"Table2[[#This Row],[Contract Price]]*Table2[[#This Row],[Quantity Sold]]","v":0},{"$f":"Table2[[#This Row],[Extended Price]]*1%","v":0}]
[409,null,null,null,null,null,null,null,null,null,null,null,{"$f":"Table2[[#This Row],[Contract Price]]*Table2[[#This Row],[Quantity Sold]]","v":0},{"$f":"Table2[[#This Row],[Extended Price]]*1%","v":0}]
[410,null,null,null,null,null,null,null,null,null,null,null,{"$f":"Table2[[#This Row],[Contract Price]]*Table2[[#This Row],[Quantity Sold]]","v":0},{"$f":"Table2[[#This Row],[Extended Price]]*1%","v":0}]
[411,null,null,null,null,null,null,null,null,null,null,null,{"$f":"Table2[[#This Row],[Contract Price]]*Table2[[#This Row],[Quantity Sold]]","v":0},{"$f":"Table2[[#This Row],[Extended Price]]*1%","v":0}]
[412,null,null,null,null,null,null,null,null,null,null,null,{"$f":"Table2[[#This Row],[Contract Price]]*Table2[[#This Row],[Quantity Sold]]","v":0},{"$f":"Table2[[#This Row],[Extended Price]]*1%","v":0}]
[413,null,null,null,null,null,null,null,null,null,null,null,{"$f":"Table2[[#This Row],[Contract Price]]*Table2[[#This Row],[Quantity Sold]]","v":0},{"$f":"Table2[[#This Row],[Extended Price]]*1%","v":0}]
[414,null,null,null,null,null,null,null,null,null,null,null,{"$f":"Table2[[#This Row],[Contract Price]]*Table2[[#This Row],[Quantity Sold]]","v":0},{"$f":"Table2[[#This Row],[Extended Price]]*1%","v":0}]
[415,null,null,null,null,null,null,null,null,null,null,null,{"$f":"Table2[[#This Row],[Contract Price]]*Table2[[#This Row],[Quantity Sold]]","v":0},{"$f":"Table2[[#This Row],[Extended Price]]*1%","v":0}]
[416,null,null,null,null,null,null,null,null,null,null,null,{"$f":"Table2[[#This Row],[Contract Price]]*Table2[[#This Row],[Quantity Sold]]","v":0},{"$f":"Table2[[#This Row],[Extended Price]]*1%","v":0}]
[417,null,null,null,null,null,null,null,null,null,null,null,{"$f":"Table2[[#This Row],[Contract Price]]*Table2[[#This Row],[Quantity Sold]]","v":0},{"$f":"Table2[[#This Row],[Extended Price]]*1%","v":0}]
[418,null,null,null,null,null,null,null,null,null,null,null,{"$f":"Table2[[#This Row],[Contract Price]]*Table2[[#This Row],[Quantity Sold]]","v":0},{"$f":"Table2[[#This Row],[Extended Price]]*1%","v":0}]
[419,null,null,null,null,null,null,null,null,null,null,null,{"$f":"Table2[[#This Row],[Contract Price]]*Table2[[#This Row],[Quantity Sold]]","v":0},{"$f":"Table2[[#This Row],[Extended Price]]*1%","v":0}]
[420,null,null,null,null,null,null,null,null,null,null,null,{"$f":"Table2[[#This Row],[Contract Price]]*Table2[[#This Row],[Quantity Sold]]","v":0},{"$f":"Table2[[#This Row],[Extended Price]]*1%","v":0}]
[421,null,null,null,null,null,null,null,null,null,null,null,{"$f":"Table2[[#This Row],[Contract Price]]*Table2[[#This Row],[Quantity Sold]]","v":0},{"$f":"Table2[[#This Row],[Extended Price]]*1%","v":0}]
[422,null,null,null,null,null,null,null,null,null,null,null,{"$f":"Table2[[#This Row],[Contract Price]]*Table2[[#This Row],[Quantity Sold]]","v":0},{"$f":"Table2[[#This Row],[Extended Price]]*1%","v":0}]
[423,null,null,null,null,null,null,null,null,null,null,null,{"$f":"Table2[[#This Row],[Contract Price]]*Table2[[#This Row],[Quantity Sold]]","v":0},{"$f":"Table2[[#This Row],[Extended Price]]*1%","v":0}]
[424,null,null,null,null,null,null,null,null,null,null,null,{"$f":"Table2[[#This Row],[Contract Price]]*Table2[[#This Row],[Quantity Sold]]","v":0},{"$f":"Table2[[#This Row],[Extended Price]]*1%","v":0}]
[425,null,null,null,null,null,null,null,null,null,null,null,{"$f":"Table2[[#This Row],[Contract Price]]*Table2[[#This Row],[Quantity Sold]]","v":0},{"$f":"Table2[[#This Row],[Extended Price]]*1%","v":0}]
[426,null,null,null,null,null,null,null,null,null,null,null,{"$f":"Table2[[#This Row],[Contract Price]]*Table2[[#This Row],[Quantity Sold]]","v":0},{"$f":"Table2[[#This Row],[Extended Price]]*1%","v":0}]
[427,null,null,null,null,null,null,null,null,null,null,null,{"$f":"Table2[[#This Row],[Contract Price]]*Table2[[#This Row],[Quantity Sold]]","v":0},{"$f":"Table2[[#This Row],[Extended Price]]*1%","v":0}]
[428,null,null,null,null,null,null,null,null,null,null,null,{"$f":"Table2[[#This Row],[Contract Price]]*Table2[[#This Row],[Quantity Sold]]","v":0},{"$f":"Table2[[#This Row],[Extended Price]]*1%","v":0}]
[429,null,null,null,null,null,null,null,null,null,null,null,{"$f":"Table2[[#This Row],[Contract Price]]*Table2[[#This Row],[Quantity Sold]]","v":0},{"$f":"Table2[[#This Row],[Extended Price]]*1%","v":0}]
[430,null,null,null,null,null,null,null,null,null,null,null,{"$f":"Table2[[#This Row],[Contract Price]]*Table2[[#This Row],[Quantity Sold]]","v":0},{"$f":"Table2[[#This Row],[Extended Price]]*1%","v":0}]
[431,null,null,null,null,null,null,null,null,null,null,null,{"$f":"Table2[[#This Row],[Contract Price]]*Table2[[#This Row],[Quantity Sold]]","v":0},{"$f":"Table2[[#This Row],[Extended Price]]*1%","v":0}]
[432,null,null,null,null,null,null,null,null,null,null,null,{"$f":"Table2[[#This Row],[Contract Price]]*Table2[[#This Row],[Quantity Sold]]","v":0},{"$f":"Table2[[#This Row],[Extended Price]]*1%","v":0}]
[433,null,null,null,null,null,null,null,null,null,null,null,{"$f":"Table2[[#This Row],[Contract Price]]*Table2[[#This Row],[Quantity Sold]]","v":0},{"$f":"Table2[[#This Row],[Extended Price]]*1%","v":0}]
[434,null,null,null,null,null,null,null,null,null,null,null,{"$f":"Table2[[#This Row],[Contract Price]]*Table2[[#This Row],[Quantity Sold]]","v":0},{"$f":"Table2[[#This Row],[Extended Price]]*1%","v":0}]
[435,null,null,null,null,null,null,null,null,null,null,null,{"$f":"Table2[[#This Row],[Contract Price]]*Table2[[#This Row],[Quantity Sold]]","v":0},{"$f":"Table2[[#This Row],[Extended Price]]*1%","v":0}]
[436,null,null,null,null,null,null,null,null,null,null,null,{"$f":"Table2[[#This Row],[Contract Price]]*Table2[[#This Row],[Quantity Sold]]","v":0},{"$f":"Table2[[#This Row],[Extended Price]]*1%","v":0}]
[437,null,null,null,null,null,null,null,null,null,null,null,{"$f":"Table2[[#This Row],[Contract Price]]*Table2[[#This Row],[Quantity Sold]]","v":0},{"$f":"Table2[[#This Row],[Extended Price]]*1%","v":0}]
[438,null,null,null,null,null,null,null,null,null,null,null,{"$f":"Table2[[#This Row],[Contract Price]]*Table2[[#This Row],[Quantity Sold]]","v":0},{"$f":"Table2[[#This Row],[Extended Price]]*1%","v":0}]
[439,null,null,null,null,null,null,null,null,null,null,null,{"$f":"Table2[[#This Row],[Contract Price]]*Table2[[#This Row],[Quantity Sold]]","v":0},{"$f":"Table2[[#This Row],[Extended Price]]*1%","v":0}]
[440,null,null,null,null,null,null,null,null,null,null,null,{"$f":"Table2[[#This Row],[Contract Price]]*Table2[[#This Row],[Quantity Sold]]","v":0},{"$f":"Table2[[#This Row],[Extended Price]]*1%","v":0}]
[441,null,null,null,null,null,null,null,null,null,null,null,{"$f":"Table2[[#This Row],[Contract Price]]*Table2[[#This Row],[Quantity Sold]]","v":0},{"$f":"Table2[[#This Row],[Extended Price]]*1%","v":0}]
[442,null,null,null,null,null,null,null,null,null,null,null,{"$f":"Table2[[#This Row],[Contract Price]]*Table2[[#This Row],[Quantity Sold]]","v":0},{"$f":"Table2[[#This Row],[Extended Price]]*1%","v":0}]
[443,null,null,null,null,null,null,null,null,null,null,null,{"$f":"Table2[[#This Row],[Contract Price]]*Table2[[#This Row],[Quantity Sold]]","v":0},{"$f":"Table2[[#This Row],[Extended Price]]*1%","v":0}]
[444,null,null,null,null,null,null,null,null,null,null,null,{"$f":"Table2[[#This Row],[Contract Price]]*Table2[[#This Row],[Quantity Sold]]","v":0},{"$f":"Table2[[#This Row],[Extended Price]]*1%","v":0}]
[445,null,null,null,null,null,null,null,null,null,null,null,{"$f":"Table2[[#This Row],[Contract Price]]*Table2[[#This Row],[Quantity Sold]]","v":0},{"$f":"Table2[[#This Row],[Extended Price]]*1%","v":0}]
[446,null,null,null,null,null,null,null,null,null,null,null,{"$f":"Table2[[#This Row],[Contract Price]]*Table2[[#This Row],[Quantity Sold]]","v":0},{"$f":"Table2[[#This Row],[Extended Price]]*1%","v":0}]
[447,null,null,null,null,null,null,null,null,null,null,null,{"$f":"Table2[[#This Row],[Contract Price]]*Table2[[#This Row],[Quantity Sold]]","v":0},{"$f":"Table2[[#This Row],[Extended Price]]*1%","v":0}]
[448,null,null,null,null,null,null,null,null,null,null,null,{"$f":"Table2[[#This Row],[Contract Price]]*Table2[[#This Row],[Quantity Sold]]","v":0},{"$f":"Table2[[#This Row],[Extended Price]]*1%","v":0}]
[449,null,null,null,null,null,null,null,null,null,null,null,{"$f":"Table2[[#This Row],[Contract Price]]*Table2[[#This Row],[Quantity Sold]]","v":0},{"$f":"Table2[[#This Row],[Extended Price]]*1%","v":0}]
[450,null,null,null,null,null,null,null,null,null,null,null,{"$f":"Table2[[#This Row],[Contract Price]]*Table2[[#This Row],[Quantity Sold]]","v":0},{"$f":"Table2[[#This Row],[Extended Price]]*1%","v":0}]
[451,null,null,null,null,null,null,null,null,null,null,null,{"$f":"Table2[[#This Row],[Contract Price]]*Table2[[#This Row],[Quantity Sold]]","v":0},{"$f":"Table2[[#This Row],[Extended Price]]*1%","v":0}]
[452,null,null,null,null,null,null,null,null,null,null,null,{"$f":"Table2[[#This Row],[Contract Price]]*Table2[[#This Row],[Quantity Sold]]","v":0},{"$f":"Table2[[#This Row],[Extended Price]]*1%","v":0}]
[453,null,null,null,null,null,null,null,null,null,null,null,{"$f":"Table2[[#This Row],[Contract Price]]*Table2[[#This Row],[Quantity Sold]]","v":0},{"$f":"Table2[[#This Row],[Extended Price]]*1%","v":0}]
[454,null,null,null,null,null,null,null,null,null,null,null,{"$f":"Table2[[#This Row],[Contract Price]]*Table2[[#This Row],[Quantity Sold]]","v":0},{"$f":"Table2[[#This Row],[Extended Price]]*1%","v":0}]
[455,null,null,null,null,null,null,null,null,null,null,null,{"$f":"Table2[[#This Row],[Contract Price]]*Table2[[#This Row],[Quantity Sold]]","v":0},{"$f":"Table2[[#This Row],[Extended Price]]*1%","v":0}]
[456,null,null,null,null,null,null,null,null,null,null,null,{"$f":"Table2[[#This Row],[Contract Price]]*Table2[[#This Row],[Quantity Sold]]","v":0},{"$f":"Table2[[#This Row],[Extended Price]]*1%","v":0}]
[457,null,null,null,null,null,null,null,null,null,null,null,{"$f":"Table2[[#This Row],[Contract Price]]*Table2[[#This Row],[Quantity Sold]]","v":0},{"$f":"Table2[[#This Row],[Extended Price]]*1%","v":0}]
[458,null,null,null,null,null,null,null,null,null,null,null,{"$f":"Table2[[#This Row],[Contract Price]]*Table2[[#This Row],[Quantity Sold]]","v":0},{"$f":"Table2[[#This Row],[Extended Price]]*1%","v":0}]
[459,null,null,null,null,null,null,null,null,null,null,null,{"$f":"Table2[[#This Row],[Contract Price]]*Table2[[#This Row],[Quantity Sold]]","v":0},{"$f":"Table2[[#This Row],[Extended Price]]*1%","v":0}]
[460,null,null,null,null,null,null,null,null,null,null,null,{"$f":"Table2[[#This Row],[Contract Price]]*Table2[[#This Row],[Quantity Sold]]","v":0},{"$f":"Table2[[#This Row],[Extended Price]]*1%","v":0}]
[461,null,null,null,null,null,null,null,null,null,null,null,{"$f":"Table2[[#This Row],[Contract Price]]*Table2[[#This Row],[Quantity Sold]]","v":0},{"$f":"Table2[[#This Row],[Extended Price]]*1%","v":0}]
[462,null,null,null,null,null,null,null,null,null,null,null,{"$f":"Table2[[#This Row],[Contract Price]]*Table2[[#This Row],[Quantity Sold]]","v":0},{"$f":"Table2[[#This Row],[Extended Price]]*1%","v":0}]
[463,null,null,null,null,null,null,null,null,null,null,null,{"$f":"Table2[[#This Row],[Contract Price]]*Table2[[#This Row],[Quantity Sold]]","v":0},{"$f":"Table2[[#This Row],[Extended Price]]*1%","v":0}]
[464,null,null,null,null,null,null,null,null,null,null,null,{"$f":"Table2[[#This Row],[Contract Price]]*Table2[[#This Row],[Quantity Sold]]","v":0},{"$f":"Table2[[#This Row],[Extended Price]]*1%","v":0}]
[465,null,null,null,null,null,null,null,null,null,null,null,{"$f":"Table2[[#This Row],[Contract Price]]*Table2[[#This Row],[Quantity Sold]]","v":0},{"$f":"Table2[[#This Row],[Extended Price]]*1%","v":0}]
[466,null,null,null,null,null,null,null,null,null,null,null,{"$f":"Table2[[#This Row],[Contract Price]]*Table2[[#This Row],[Quantity Sold]]","v":0},{"$f":"Table2[[#This Row],[Extended Price]]*1%","v":0}]
[467,null,null,null,null,null,null,null,null,null,null,null,{"$f":"Table2[[#This Row],[Contract Price]]*Table2[[#This Row],[Quantity Sold]]","v":0},{"$f":"Table2[[#This Row],[Extended Price]]*1%","v":0}]
[468,null,null,null,null,null,null,null,null,null,null,null,{"$f":"Table2[[#This Row],[Contract Price]]*Table2[[#This Row],[Quantity Sold]]","v":0},{"$f":"Table2[[#This Row],[Extended Price]]*1%","v":0}]
[469,null,null,null,null,null,null,null,null,null,null,null,{"$f":"Table2[[#This Row],[Contract Price]]*Table2[[#This Row],[Quantity Sold]]","v":0},{"$f":"Table2[[#This Row],[Extended Price]]*1%","v":0}]
[470,null,null,null,null,null,null,null,null,null,null,null,{"$f":"Table2[[#This Row],[Contract Price]]*Table2[[#This Row],[Quantity Sold]]","v":0},{"$f":"Table2[[#This Row],[Extended Price]]*1%","v":0}]
[471,null,null,null,null,null,null,null,null,null,null,null,{"$f":"Table2[[#This Row],[Contract Price]]*Table2[[#This Row],[Quantity Sold]]","v":0},{"$f":"Table2[[#This Row],[Extended Price]]*1%","v":0}]
[472,null,null,null,null,null,null,null,null,null,null,null,{"$f":"Table2[[#This Row],[Contract Price]]*Table2[[#This Row],[Quantity Sold]]","v":0},{"$f":"Table2[[#This Row],[Extended Price]]*1%","v":0}]
[473,null,null,null,null,null,null,null,null,null,null,null,{"$f":"Table2[[#This Row],[Contract Price]]*Table2[[#This Row],[Quantity Sold]]","v":0},{"$f":"Table2[[#This Row],[Extended Price]]*1%","v":0}]
[474,null,null,null,null,null,null,null,null,null,null,null,{"$f":"Table2[[#This Row],[Contract Price]]*Table2[[#This Row],[Quantity Sold]]","v":0},{"$f":"Table2[[#This Row],[Extended Price]]*1%","v":0}]
[475,null,null,null,null,null,null,null,null,null,null,null,{"$f":"Table2[[#This Row],[Contract Price]]*Table2[[#This Row],[Quantity Sold]]","v":0},{"$f":"Table2[[#This Row],[Extended Price]]*1%","v":0}]
[476,null,null,null,null,null,null,null,null,null,null,null,{"$f":"Table2[[#This Row],[Contract Price]]*Table2[[#This Row],[Quantity Sold]]","v":0},{"$f":"Table2[[#This Row],[Extended Price]]*1%","v":0}]
[477,null,null,null,null,null,null,null,null,null,null,null,{"$f":"Table2[[#This Row],[Contract Price]]*Table2[[#This Row],[Quantity Sold]]","v":0},{"$f":"Table2[[#This Row],[Extended Price]]*1%","v":0}]
[478,null,null,null,null,null,null,null,null,null,null,null,{"$f":"Table2[[#This Row],[Contract Price]]*Table2[[#This Row],[Quantity Sold]]","v":0},{"$f":"Table2[[#This Row],[Extended Price]]*1%","v":0}]
[479,null,null,null,null,null,null,null,null,null,null,null,{"$f":"Table2[[#This Row],[Contract Price]]*Table2[[#This Row],[Quantity Sold]]","v":0},{"$f":"Table2[[#This Row],[Extended Price]]*1%","v":0}]
[480,null,null,null,null,null,null,null,null,null,null,null,{"$f":"Table2[[#This Row],[Contract Price]]*Table2[[#This Row],[Quantity Sold]]","v":0},{"$f":"Table2[[#This Row],[Extended Price]]*1%","v":0}]
[481,null,null,null,null,null,null,null,null,null,null,null,{"$f":"Table2[[#This Row],[Contract Price]]*Table2[[#This Row],[Quantity Sold]]","v":0},{"$f":"Table2[[#This Row],[Extended Price]]*1%","v":0}]
[482,null,null,null,null,null,null,null,null,null,null,null,{"$f":"Table2[[#This Row],[Contract Price]]*Table2[[#This Row],[Quantity Sold]]","v":0},{"$f":"Table2[[#This Row],[Extended Price]]*1%","v":0}]
[483,null,null,null,null,null,null,null,null,null,null,null,{"$f":"Table2[[#This Row],[Contract Price]]*Table2[[#This Row],[Quantity Sold]]","v":0},{"$f":"Table2[[#This Row],[Extended Price]]*1%","v":0}]
[484,null,null,null,null,null,null,null,null,null,null,null,{"$f":"Table2[[#This Row],[Contract Price]]*Table2[[#This Row],[Quantity Sold]]","v":0},{"$f":"Table2[[#This Row],[Extended Price]]*1%","v":0}]
[485,null,null,null,null,null,null,null,null,null,null,null,{"$f":"Table2[[#This Row],[Contract Price]]*Table2[[#This Row],[Quantity Sold]]","v":0},{"$f":"Table2[[#This Row],[Extended Price]]*1%","v":0}]
[486,null,null,null,null,null,null,null,null,null,null,null,{"$f":"Table2[[#This Row],[Contract Price]]*Table2[[#This Row],[Quantity Sold]]","v":0},{"$f":"Table2[[#This Row],[Extended Price]]*1%","v":0}]
[487,null,null,null,null,null,null,null,null,null,null,null,{"$f":"Table2[[#This Row],[Contract Price]]*Table2[[#This Row],[Quantity Sold]]","v":0},{"$f":"Table2[[#This Row],[Extended Price]]*1%","v":0}]
[488,null,null,null,null,null,null,null,null,null,null,null,{"$f":"Table2[[#This Row],[Contract Price]]*Table2[[#This Row],[Quantity Sold]]","v":0},{"$f":"Table2[[#This Row],[Extended Price]]*1%","v":0}]
[489,null,null,null,null,null,null,null,null,null,null,null,{"$f":"Table2[[#This Row],[Contract Price]]*Table2[[#This Row],[Quantity Sold]]","v":0},{"$f":"Table2[[#This Row],[Extended Price]]*1%","v":0}]
[490,null,null,null,null,null,null,null,null,null,null,null,{"$f":"Table2[[#This Row],[Contract Price]]*Table2[[#This Row],[Quantity Sold]]","v":0},{"$f":"Table2[[#This Row],[Extended Price]]*1%","v":0}]
[491,null,null,null,null,null,null,null,null,null,null,null,{"$f":"Table2[[#This Row],[Contract Price]]*Table2[[#This Row],[Quantity Sold]]","v":0},{"$f":"Table2[[#This Row],[Extended Price]]*1%","v":0}]
[492,null,null,null,null,null,null,null,null,null,null,null,{"$f":"Table2[[#This Row],[Contract Price]]*Table2[[#This Row],[Quantity Sold]]","v":0},{"$f":"Table2[[#This Row],[Extended Price]]*1%","v":0}]
[493,null,null,null,null,null,null,null,null,null,null,null,{"$f":"Table2[[#This Row],[Contract Price]]*Table2[[#This Row],[Quantity Sold]]","v":0},{"$f":"Table2[[#This Row],[Extended Price]]*1%","v":0}]
[494,null,null,null,null,null,null,null,null,null,null,null,{"$f":"Table2[[#This Row],[Contract Price]]*Table2[[#This Row],[Quantity Sold]]","v":0},{"$f":"Table2[[#This Row],[Extended Price]]*1%","v":0}]
[495,null,null,null,null,null,null,null,null,null,null,null,{"$f":"Table2[[#This Row],[Contract Price]]*Table2[[#This Row],[Quantity Sold]]","v":0},{"$f":"Table2[[#This Row],[Extended Price]]*1%","v":0}]
[496,null,null,null,null,null,null,null,null,null,null,null,{"$f":"Table2[[#This Row],[Contract Price]]*Table2[[#This Row],[Quantity Sold]]","v":0},{"$f":"Table2[[#This Row],[Extended Price]]*1%","v":0}]
[497,null,null,null,null,null,null,null,null,null,null,null,{"$f":"Table2[[#This Row],[Contract Price]]*Table2[[#This Row],[Quantity Sold]]","v":0},{"$f":"Table2[[#This Row],[Extended Price]]*1%","v":0}]
[498,null,null,null,null,null,null,null,null,null,null,null,{"$f":"Table2[[#This Row],[Contract Price]]*Table2[[#This Row],[Quantity Sold]]","v":0},{"$f":"Table2[[#This Row],[Extended Price]]*1%","v":0}]
[499,null,null,null,null,null,null,null,null,null,null,null,{"$f":"Table2[[#This Row],[Contract Price]]*Table2[[#This Row],[Quantity Sold]]","v":0},{"$f":"Table2[[#This Row],[Extended Price]]*1%","v":0}]
[500,null,null,null,null,null,null,null,null,null,null,null,{"$f":"Table2[[#This Row],[Contract Price]]*Table2[[#This Row],[Quantity Sold]]","v":0},{"$f":"Table2[[#This Row],[Extended Price]]*1%","v":0}]
[501,null,null,null,null,null,null,null,null,null,null,null,{"$f":"Table2[[#This Row],[Contract Price]]*Table2[[#This Row],[Quantity Sold]]","v":0},{"$f":"Table2[[#This Row],[Extended Price]]*1%","v":0}]
[502,null,null,null,null,null,null,null,null,null,null,null,{"$f":"Table2[[#This Row],[Contract Price]]*Table2[[#This Row],[Quantity Sold]]","v":0},{"$f":"Table2[[#This Row],[Extended Price]]*1%","v":0}]
[503,null,null,null,null,null,null,null,null,null,null,null,{"$f":"Table2[[#This Row],[Contract Price]]*Table2[[#This Row],[Quantity Sold]]","v":0},{"$f":"Table2[[#This Row],[Extended Price]]*1%","v":0}]
[504,null,null,null,null,null,null,null,null,null,null,null,{"$f":"Table2[[#This Row],[Contract Price]]*Table2[[#This Row],[Quantity Sold]]","v":0},{"$f":"Table2[[#This Row],[Extended Price]]*1%","v":0}]
[505,null,null,null,null,null,null,null,null,null,null,null,{"$f":"Table2[[#This Row],[Contract Price]]*Table2[[#This Row],[Quantity Sold]]","v":0},{"$f":"Table2[[#This Row],[Extended Price]]*1%","v":0}]
[506,null,null,null,null,null,null,null,null,null,null,null,{"$f":"Table2[[#This Row],[Contract Price]]*Table2[[#This Row],[Quantity Sold]]","v":0},{"$f":"Table2[[#This Row],[Extended Price]]*1%","v":0}]
[507,null,null,null,null,null,null,null,null,null,null,null,{"$f":"Table2[[#This Row],[Contract Price]]*Table2[[#This Row],[Quantity Sold]]","v":0},{"$f":"Table2[[#This Row],[Extended Price]]*1%","v":0}]
[508,null,null,null,null,null,null,null,null,null,null,null,{"$f":"Table2[[#This Row],[Contract Price]]*Table2[[#This Row],[Quantity Sold]]","v":0},{"$f":"Table2[[#This Row],[Extended Price]]*1%","v":0}]
[509,null,null,null,null,null,null,null,null,null,null,null,{"$f":"Table2[[#This Row],[Contract Price]]*Table2[[#This Row],[Quantity Sold]]","v":0},{"$f":"Table2[[#This Row],[Extended Price]]*1%","v":0}]
[510,null,null,null,null,null,null,null,null,null,null,null,{"$f":"Table2[[#This Row],[Contract Price]]*Table2[[#This Row],[Quantity Sold]]","v":0},{"$f":"Table2[[#This Row],[Extended Price]]*1%","v":0}]
[511,null,null,null,null,null,null,null,null,null,null,null,{"$f":"Table2[[#This Row],[Contract Price]]*Table2[[#This Row],[Quantity Sold]]","v":0},{"$f":"Table2[[#This Row],[Extended Price]]*1%","v":0}]
[512,null,null,null,null,null,null,null,null,null,null,null,{"$f":"Table2[[#This Row],[Contract Price]]*Table2[[#This Row],[Quantity Sold]]","v":0},{"$f":"Table2[[#This Row],[Extended Price]]*1%","v":0}]
[513,null,null,null,null,null,null,null,null,null,null,null,{"$f":"Table2[[#This Row],[Contract Price]]*Table2[[#This Row],[Quantity Sold]]","v":0},{"$f":"Table2[[#This Row],[Extended Price]]*1%","v":0}]
[514,null,null,null,null,null,null,null,null,null,null,null,{"$f":"Table2[[#This Row],[Contract Price]]*Table2[[#This Row],[Quantity Sold]]","v":0},{"$f":"Table2[[#This Row],[Extended Price]]*1%","v":0}]
[515,null,null,null,null,null,null,null,null,null,null,null,{"$f":"Table2[[#This Row],[Contract Price]]*Table2[[#This Row],[Quantity Sold]]","v":0},{"$f":"Table2[[#This Row],[Extended Price]]*1%","v":0}]
[516,null,null,null,null,null,null,null,null,null,null,null,{"$f":"Table2[[#This Row],[Contract Price]]*Table2[[#This Row],[Quantity Sold]]","v":0},{"$f":"Table2[[#This Row],[Extended Price]]*1%","v":0}]
[517,null,null,null,null,null,null,null,null,null,null,null,{"$f":"Table2[[#This Row],[Contract Price]]*Table2[[#This Row],[Quantity Sold]]","v":0},{"$f":"Table2[[#This Row],[Extended Price]]*1%","v":0}]
[518,null,null,null,null,null,null,null,null,null,null,null,{"$f":"Table2[[#This Row],[Contract Price]]*Table2[[#This Row],[Quantity Sold]]","v":0},{"$f":"Table2[[#This Row],[Extended Price]]*1%","v":0}]
[519,null,null,null,null,null,null,null,null,null,null,null,{"$f":"Table2[[#This Row],[Contract Price]]*Table2[[#This Row],[Quantity Sold]]","v":0},{"$f":"Table2[[#This Row],[Extended Price]]*1%","v":0}]
[520,null,null,null,null,null,null,null,null,null,null,null,{"$f":"Table2[[#This Row],[Contract Price]]*Table2[[#This Row],[Quantity Sold]]","v":0},{"$f":"Table2[[#This Row],[Extended Price]]*1%","v":0}]
[521,null,null,null,null,null,null,null,null,null,null,null,{"$f":"Table2[[#This Row],[Contract Price]]*Table2[[#This Row],[Quantity Sold]]","v":0},{"$f":"Table2[[#This Row],[Extended Price]]*1%","v":0}]
[522,null,null,null,null,null,null,null,null,null,null,null,{"$f":"Table2[[#This Row],[Contract Price]]*Table2[[#This Row],[Quantity Sold]]","v":0},{"$f":"Table2[[#This Row],[Extended Price]]*1%","v":0}]
[523,null,null,null,null,null,null,null,null,null,null,null,{"$f":"Table2[[#This Row],[Contract Price]]*Table2[[#This Row],[Quantity Sold]]","v":0},{"$f":"Table2[[#This Row],[Extended Price]]*1%","v":0}]
[524,null,null,null,null,null,null,null,null,null,null,null,{"$f":"Table2[[#This Row],[Contract Price]]*Table2[[#This Row],[Quantity Sold]]","v":0},{"$f":"Table2[[#This Row],[Extended Price]]*1%","v":0}]
[525,null,null,null,null,null,null,null,null,null,null,null,{"$f":"Table2[[#This Row],[Contract Price]]*Table2[[#This Row],[Quantity Sold]]","v":0},{"$f":"Table2[[#This Row],[Extended Price]]*1%","v":0}]
[526,null,null,null,null,null,null,null,null,null,null,null,{"$f":"Table2[[#This Row],[Contract Price]]*Table2[[#This Row],[Quantity Sold]]","v":0},{"$f":"Table2[[#This Row],[Extended Price]]*1%","v":0}]
[527,null,null,null,null,null,null,null,null,null,null,null,{"$f":"Table2[[#This Row],[Contract Price]]*Table2[[#This Row],[Quantity Sold]]","v":0},{"$f":"Table2[[#This Row],[Extended Price]]*1%","v":0}]
[528,null,null,null,null,null,null,null,null,null,null,null,{"$f":"Table2[[#This Row],[Contract Price]]*Table2[[#This Row],[Quantity Sold]]","v":0},{"$f":"Table2[[#This Row],[Extended Price]]*1%","v":0}]
[529,null,null,null,null,null,null,null,null,null,null,null,{"$f":"Table2[[#This Row],[Contract Price]]*Table2[[#This Row],[Quantity Sold]]","v":0},{"$f":"Table2[[#This Row],[Extended Price]]*1%","v":0}]
[530,null,null,null,null,null,null,null,null,null,null,null,{"$f":"Table2[[#This Row],[Contract Price]]*Table2[[#This Row],[Quantity Sold]]","v":0},{"$f":"Table2[[#This Row],[Extended Price]]*1%","v":0}]
[531,null,null,null,null,null,null,null,null,null,null,null,{"$f":"Table2[[#This Row],[Contract Price]]*Table2[[#This Row],[Quantity Sold]]","v":0},{"$f":"Table2[[#This Row],[Extended Price]]*1%","v":0}]
[532,null,null,null,null,null,null,null,null,null,null,null,{"$f":"Table2[[#This Row],[Contract Price]]*Table2[[#This Row],[Quantity Sold]]","v":0},{"$f":"Table2[[#This Row],[Extended Price]]*1%","v":0}]
[533,null,null,null,null,null,null,null,null,null,null,null,{"$f":"Table2[[#This Row],[Contract Price]]*Table2[[#This Row],[Quantity Sold]]","v":0},{"$f":"Table2[[#This Row],[Extended Price]]*1%","v":0}]
[534,null,null,null,null,null,null,null,null,null,null,null,{"$f":"Table2[[#This Row],[Contract Price]]*Table2[[#This Row],[Quantity Sold]]","v":0},{"$f":"Table2[[#This Row],[Extended Price]]*1%","v":0}]
[535,null,null,null,null,null,null,null,null,null,null,null,{"$f":"Table2[[#This Row],[Contract Price]]*Table2[[#This Row],[Quantity Sold]]","v":0},{"$f":"Table2[[#This Row],[Extended Price]]*1%","v":0}]
[536,null,null,null,null,null,null,null,null,null,null,null,{"$f":"Table2[[#This Row],[Contract Price]]*Table2[[#This Row],[Quantity Sold]]","v":0},{"$f":"Table2[[#This Row],[Extended Price]]*1%","v":0}]
[537,null,null,null,null,null,null,null,null,null,null,null,{"$f":"Table2[[#This Row],[Contract Price]]*Table2[[#This Row],[Quantity Sold]]","v":0},{"$f":"Table2[[#This Row],[Extended Price]]*1%","v":0}]
[538,null,null,null,null,null,null,null,null,null,null,null,{"$f":"Table2[[#This Row],[Contract Price]]*Table2[[#This Row],[Quantity Sold]]","v":0},{"$f":"Table2[[#This Row],[Extended Price]]*1%","v":0}]
[539,null,null,null,null,null,null,null,null,null,null,null,{"$f":"Table2[[#This Row],[Contract Price]]*Table2[[#This Row],[Quantity Sold]]","v":0},{"$f":"Table2[[#This Row],[Extended Price]]*1%","v":0}]
[540,null,null,null,null,null,null,null,null,null,null,null,{"$f":"Table2[[#This Row],[Contract Price]]*Table2[[#This Row],[Quantity Sold]]","v":0},{"$f":"Table2[[#This Row],[Extended Price]]*1%","v":0}]
[541,null,null,null,null,null,null,null,null,null,null,null,{"$f":"Table2[[#This Row],[Contract Price]]*Table2[[#This Row],[Quantity Sold]]","v":0},{"$f":"Table2[[#This Row],[Extended Price]]*1%","v":0}]
[542,null,null,null,null,null,null,null,null,null,null,null,{"$f":"Table2[[#This Row],[Contract Price]]*Table2[[#This Row],[Quantity Sold]]","v":0},{"$f":"Table2[[#This Row],[Extended Price]]*1%","v":0}]
[543,null,null,null,null,null,null,null,null,null,null,null,{"$f":"Table2[[#This Row],[Contract Price]]*Table2[[#This Row],[Quantity Sold]]","v":0},{"$f":"Table2[[#This Row],[Extended Price]]*1%","v":0}]
[544,null,null,null,null,null,null,null,null,null,null,null,{"$f":"Table2[[#This Row],[Contract Price]]*Table2[[#This Row],[Quantity Sold]]","v":0},{"$f":"Table2[[#This Row],[Extended Price]]*1%","v":0}]
[545,null,null,null,null,null,null,null,null,null,null,null,{"$f":"Table2[[#This Row],[Contract Price]]*Table2[[#This Row],[Quantity Sold]]","v":0},{"$f":"Table2[[#This Row],[Extended Price]]*1%","v":0}]
[546,null,null,null,null,null,null,null,null,null,null,null,{"$f":"Table2[[#This Row],[Contract Price]]*Table2[[#This Row],[Quantity Sold]]","v":0},{"$f":"Table2[[#This Row],[Extended Price]]*1%","v":0}]
[547,null,null,null,null,null,null,null,null,null,null,null,{"$f":"Table2[[#This Row],[Contract Price]]*Table2[[#This Row],[Quantity Sold]]","v":0},{"$f":"Table2[[#This Row],[Extended Price]]*1%","v":0}]
[548,null,null,null,null,null,null,null,null,null,null,null,{"$f":"Table2[[#This Row],[Contract Price]]*Table2[[#This Row],[Quantity Sold]]","v":0},{"$f":"Table2[[#This Row],[Extended Price]]*1%","v":0}]
[549,null,null,null,null,null,null,null,null,null,null,null,{"$f":"Table2[[#This Row],[Contract Price]]*Table2[[#This Row],[Quantity Sold]]","v":0},{"$f":"Table2[[#This Row],[Extended Price]]*1%","v":0}]
[550,null,null,null,null,null,null,null,null,null,null,null,{"$f":"Table2[[#This Row],[Contract Price]]*Table2[[#This Row],[Quantity Sold]]","v":0},{"$f":"Table2[[#This Row],[Extended Price]]*1%","v":0}]
[551,null,null,null,null,null,null,null,null,null,null,null,{"$f":"Table2[[#This Row],[Contract Price]]*Table2[[#This Row],[Quantity Sold]]","v":0},{"$f":"Table2[[#This Row],[Extended Price]]*1%","v":0}]
[552,null,null,null,null,null,null,null,null,null,null,null,{"$f":"Table2[[#This Row],[Contract Price]]*Table2[[#This Row],[Quantity Sold]]","v":0},{"$f":"Table2[[#This Row],[Extended Price]]*1%","v":0}]
[553,null,null,null,null,null,null,null,null,null,null,null,{"$f":"Table2[[#This Row],[Contract Price]]*Table2[[#This Row],[Quantity Sold]]","v":0},{"$f":"Table2[[#This Row],[Extended Price]]*1%","v":0}]
[554,null,null,null,null,null,null,null,null,null,null,null,{"$f":"Table2[[#This Row],[Contract Price]]*Table2[[#This Row],[Quantity Sold]]","v":0},{"$f":"Table2[[#This Row],[Extended Price]]*1%","v":0}]
[555,null,null,null,null,null,null,null,null,null,null,null,{"$f":"Table2[[#This Row],[Contract Price]]*Table2[[#This Row],[Quantity Sold]]","v":0},{"$f":"Table2[[#This Row],[Extended Price]]*1%","v":0}]
[556,null,null,null,null,null,null,null,null,null,null,null,{"$f":"Table2[[#This Row],[Contract Price]]*Table2[[#This Row],[Quantity Sold]]","v":0},{"$f":"Table2[[#This Row],[Extended Price]]*1%","v":0}]
[557,null,null,null,null,null,null,null,null,null,null,null,{"$f":"Table2[[#This Row],[Contract Price]]*Table2[[#This Row],[Quantity Sold]]","v":0},{"$f":"Table2[[#This Row],[Extended Price]]*1%","v":0}]
[558,null,null,null,null,null,null,null,null,null,null,null,{"$f":"Table2[[#This Row],[Contract Price]]*Table2[[#This Row],[Quantity Sold]]","v":0},{"$f":"Table2[[#This Row],[Extended Price]]*1%","v":0}]
[559,null,null,null,null,null,null,null,null,null,null,null,{"$f":"Table2[[#This Row],[Contract Price]]*Table2[[#This Row],[Quantity Sold]]","v":0},{"$f":"Table2[[#This Row],[Extended Price]]*1%","v":0}]
[560,null,null,null,null,null,null,null,null,null,null,null,{"$f":"Table2[[#This Row],[Contract Price]]*Table2[[#This Row],[Quantity Sold]]","v":0},{"$f":"Table2[[#This Row],[Extended Price]]*1%","v":0}]
[561,null,null,null,null,null,null,null,null,null,null,null,{"$f":"Table2[[#This Row],[Contract Price]]*Table2[[#This Row],[Quantity Sold]]","v":0},{"$f":"Table2[[#This Row],[Extended Price]]*1%","v":0}]
[562,null,null,null,null,null,null,null,null,null,null,null,{"$f":"Table2[[#This Row],[Contract Price]]*Table2[[#This Row],[Quantity Sold]]","v":0},{"$f":"Table2[[#This Row],[Extended Price]]*1%","v":0}]
[563,null,null,null,null,null,null,null,null,null,null,null,{"$f":"Table2[[#This Row],[Contract Price]]*Table2[[#This Row],[Quantity Sold]]","v":0},{"$f":"Table2[[#This Row],[Extended Price]]*1%","v":0}]
[564,null,null,null,null,null,null,null,null,null,null,null,{"$f":"Table2[[#This Row],[Contract Price]]*Table2[[#This Row],[Quantity Sold]]","v":0},{"$f":"Table2[[#This Row],[Extended Price]]*1%","v":0}]
[565,null,null,null,null,null,null,null,null,null,null,null,{"$f":"Table2[[#This Row],[Contract Price]]*Table2[[#This Row],[Quantity Sold]]","v":0},{"$f":"Table2[[#This Row],[Extended Price]]*1%","v":0}]
[566,null,null,null,null,null,null,null,null,null,null,null,{"$f":"Table2[[#This Row],[Contract Price]]*Table2[[#This Row],[Quantity Sold]]","v":0},{"$f":"Table2[[#This Row],[Extended Price]]*1%","v":0}]
[567,null,null,null,null,null,null,null,null,null,null,null,{"$f":"Table2[[#This Row],[Contract Price]]*Table2[[#This Row],[Quantity Sold]]","v":0},{"$f":"Table2[[#This Row],[Extended Price]]*1%","v":0}]
[568,null,null,null,null,null,null,null,null,null,null,null,{"$f":"Table2[[#This Row],[Contract Price]]*Table2[[#This Row],[Quantity Sold]]","v":0},{"$f":"Table2[[#This Row],[Extended Price]]*1%","v":0}]
[569,null,null,null,null,null,null,null,null,null,null,null,{"$f":"Table2[[#This Row],[Contract Price]]*Table2[[#This Row],[Quantity Sold]]","v":0},{"$f":"Table2[[#This Row],[Extended Price]]*1%","v":0}]
[570,null,null,null,null,null,null,null,null,null,null,null,{"$f":"Table2[[#This Row],[Contract Price]]*Table2[[#This Row],[Quantity Sold]]","v":0},{"$f":"Table2[[#This Row],[Extended Price]]*1%","v":0}]
[571,null,null,null,null,null,null,null,null,null,null,null,{"$f":"Table2[[#This Row],[Contract Price]]*Table2[[#This Row],[Quantity Sold]]","v":0},{"$f":"Table2[[#This Row],[Extended Price]]*1%","v":0}]
[572,null,null,null,null,null,null,null,null,null,null,null,{"$f":"Table2[[#This Row],[Contract Price]]*Table2[[#This Row],[Quantity Sold]]","v":0},{"$f":"Table2[[#This Row],[Extended Price]]*1%","v":0}]
[573,null,null,null,null,null,null,null,null,null,null,null,{"$f":"Table2[[#This Row],[Contract Price]]*Table2[[#This Row],[Quantity Sold]]","v":0},{"$f":"Table2[[#This Row],[Extended Price]]*1%","v":0}]
[574,null,null,null,null,null,null,null,null,null,null,null,{"$f":"Table2[[#This Row],[Contract Price]]*Table2[[#This Row],[Quantity Sold]]","v":0},{"$f":"Table2[[#This Row],[Extended Price]]*1%","v":0}]
[575,null,null,null,null,null,null,null,null,null,null,null,{"$f":"Table2[[#This Row],[Contract Price]]*Table2[[#This Row],[Quantity Sold]]","v":0},{"$f":"Table2[[#This Row],[Extended Price]]*1%","v":0}]
[576,null,null,null,null,null,null,null,null,null,null,null,{"$f":"Table2[[#This Row],[Contract Price]]*Table2[[#This Row],[Quantity Sold]]","v":0},{"$f":"Table2[[#This Row],[Extended Price]]*1%","v":0}]
[577,null,null,null,null,null,null,null,null,null,null,null,{"$f":"Table2[[#This Row],[Contract Price]]*Table2[[#This Row],[Quantity Sold]]","v":0},{"$f":"Table2[[#This Row],[Extended Price]]*1%","v":0}]
[578,null,null,null,null,null,null,null,null,null,null,null,{"$f":"Table2[[#This Row],[Contract Price]]*Table2[[#This Row],[Quantity Sold]]","v":0},{"$f":"Table2[[#This Row],[Extended Price]]*1%","v":0}]
[579,null,null,null,null,null,null,null,null,null,null,null,{"$f":"Table2[[#This Row],[Contract Price]]*Table2[[#This Row],[Quantity Sold]]","v":0},{"$f":"Table2[[#This Row],[Extended Price]]*1%","v":0}]
[580,null,null,null,null,null,null,null,null,null,null,null,{"$f":"Table2[[#This Row],[Contract Price]]*Table2[[#This Row],[Quantity Sold]]","v":0},{"$f":"Table2[[#This Row],[Extended Price]]*1%","v":0}]
[581,null,null,null,null,null,null,null,null,null,null,null,{"$f":"Table2[[#This Row],[Contract Price]]*Table2[[#This Row],[Quantity Sold]]","v":0},{"$f":"Table2[[#This Row],[Extended Price]]*1%","v":0}]
[582,null,null,null,null,null,null,null,null,null,null,null,{"$f":"Table2[[#This Row],[Contract Price]]*Table2[[#This Row],[Quantity Sold]]","v":0},{"$f":"Table2[[#This Row],[Extended Price]]*1%","v":0}]
[583,null,null,null,null,null,null,null,null,null,null,null,{"$f":"Table2[[#This Row],[Contract Price]]*Table2[[#This Row],[Quantity Sold]]","v":0},{"$f":"Table2[[#This Row],[Extended Price]]*1%","v":0}]
[584,null,null,null,null,null,null,null,null,null,null,null,{"$f":"Table2[[#This Row],[Contract Price]]*Table2[[#This Row],[Quantity Sold]]","v":0},{"$f":"Table2[[#This Row],[Extended Price]]*1%","v":0}]
[585,null,null,null,null,null,null,null,null,null,null,null,{"$f":"Table2[[#This Row],[Contract Price]]*Table2[[#This Row],[Quantity Sold]]","v":0},{"$f":"Table2[[#This Row],[Extended Price]]*1%","v":0}]
[586,null,null,null,null,null,null,null,null,null,null,null,{"$f":"Table2[[#This Row],[Contract Price]]*Table2[[#This Row],[Quantity Sold]]","v":0},{"$f":"Table2[[#This Row],[Extended Price]]*1%","v":0}]
[587,null,null,null,null,null,null,null,null,null,null,null,{"$f":"Table2[[#This Row],[Contract Price]]*Table2[[#This Row],[Quantity Sold]]","v":0},{"$f":"Table2[[#This Row],[Extended Price]]*1%","v":0}]
[588,null,null,null,null,null,null,null,null,null,null,null,{"$f":"Table2[[#This Row],[Contract Price]]*Table2[[#This Row],[Quantity Sold]]","v":0},{"$f":"Table2[[#This Row],[Extended Price]]*1%","v":0}]
[589,null,null,null,null,null,null,null,null,null,null,null,{"$f":"Table2[[#This Row],[Contract Price]]*Table2[[#This Row],[Quantity Sold]]","v":0},{"$f":"Table2[[#This Row],[Extended Price]]*1%","v":0}]
[590,null,null,null,null,null,null,null,null,null,null,null,{"$f":"Table2[[#This Row],[Contract Price]]*Table2[[#This Row],[Quantity Sold]]","v":0},{"$f":"Table2[[#This Row],[Extended Price]]*1%","v":0}]
[591,null,null,null,null,null,null,null,null,null,null,null,{"$f":"Table2[[#This Row],[Contract Price]]*Table2[[#This Row],[Quantity Sold]]","v":0},{"$f":"Table2[[#This Row],[Extended Price]]*1%","v":0}]
[592,null,null,null,null,null,null,null,null,null,null,null,{"$f":"Table2[[#This Row],[Contract Price]]*Table2[[#This Row],[Quantity Sold]]","v":0},{"$f":"Table2[[#This Row],[Extended Price]]*1%","v":0}]
[593,null,null,null,null,null,null,null,null,null,null,null,{"$f":"Table2[[#This Row],[Contract Price]]*Table2[[#This Row],[Quantity Sold]]","v":0},{"$f":"Table2[[#This Row],[Extended Price]]*1%","v":0}]
[594,null,null,null,null,null,null,null,null,null,null,null,{"$f":"Table2[[#This Row],[Contract Price]]*Table2[[#This Row],[Quantity Sold]]","v":0},{"$f":"Table2[[#This Row],[Extended Price]]*1%","v":0}]
[595,null,null,null,null,null,null,null,null,null,null,null,{"$f":"Table2[[#This Row],[Contract Price]]*Table2[[#This Row],[Quantity Sold]]","v":0},{"$f":"Table2[[#This Row],[Extended Price]]*1%","v":0}]
[596,null,null,null,null,null,null,null,null,null,null,null,{"$f":"Table2[[#This Row],[Contract Price]]*Table2[[#This Row],[Quantity Sold]]","v":0},{"$f":"Table2[[#This Row],[Extended Price]]*1%","v":0}]
[597,null,null,null,null,null,null,null,null,null,null,null,{"$f":"Table2[[#This Row],[Contract Price]]*Table2[[#This Row],[Quantity Sold]]","v":0},{"$f":"Table2[[#This Row],[Extended Price]]*1%","v":0}]
[598,null,null,null,null,null,null,null,null,null,null,null,{"$f":"Table2[[#This Row],[Contract Price]]*Table2[[#This Row],[Quantity Sold]]","v":0},{"$f":"Table2[[#This Row],[Extended Price]]*1%","v":0}]
[599,null,null,null,null,null,null,null,null,null,null,null,{"$f":"Table2[[#This Row],[Contract Price]]*Table2[[#This Row],[Quantity Sold]]","v":0},{"$f":"Table2[[#This Row],[Extended Price]]*1%","v":0}]
[600,null,null,null,null,null,null,null,null,null,null,null,{"$f":"Table2[[#This Row],[Contract Price]]*Table2[[#This Row],[Quantity Sold]]","v":0},{"$f":"Table2[[#This Row],[Extended Price]]*1%","v":0}]
[601,null,null,null,null,null,null,null,null,null,null,null,{"$f":"Table2[[#This Row],[Contract Price]]*Table2[[#This Row],[Quantity Sold]]","v":0},{"$f":"Table2[[#This Row],[Extended Price]]*1%","v":0}]
[602,null,null,null,null,null,null,null,null,null,null,null,{"$f":"Table2[[#This Row],[Contract Price]]*Table2[[#This Row],[Quantity Sold]]","v":0},{"$f":"Table2[[#This Row],[Extended Price]]*1%","v":0}]
[603,null,null,null,null,null,null,null,null,null,null,null,{"$f":"Table2[[#This Row],[Contract Price]]*Table2[[#This Row],[Quantity Sold]]","v":0},{"$f":"Table2[[#This Row],[Extended Price]]*1%","v":0}]
[604,null,null,null,null,null,null,null,null,null,null,null,{"$f":"Table2[[#This Row],[Contract Price]]*Table2[[#This Row],[Quantity Sold]]","v":0},{"$f":"Table2[[#This Row],[Extended Price]]*1%","v":0}]
[605,null,null,null,null,null,null,null,null,null,null,null,{"$f":"Table2[[#This Row],[Contract Price]]*Table2[[#This Row],[Quantity Sold]]","v":0},{"$f":"Table2[[#This Row],[Extended Price]]*1%","v":0}]
[606,null,null,null,null,null,null,null,null,null,null,null,{"$f":"Table2[[#This Row],[Contract Price]]*Table2[[#This Row],[Quantity Sold]]","v":0},{"$f":"Table2[[#This Row],[Extended Price]]*1%","v":0}]
[607,null,null,null,null,null,null,null,null,null,null,null,{"$f":"Table2[[#This Row],[Contract Price]]*Table2[[#This Row],[Quantity Sold]]","v":0},{"$f":"Table2[[#This Row],[Extended Price]]*1%","v":0}]
[608,null,null,null,null,null,null,null,null,null,null,null,{"$f":"Table2[[#This Row],[Contract Price]]*Table2[[#This Row],[Quantity Sold]]","v":0},{"$f":"Table2[[#This Row],[Extended Price]]*1%","v":0}]
[609,null,null,null,null,null,null,null,null,null,null,null,{"$f":"Table2[[#This Row],[Contract Price]]*Table2[[#This Row],[Quantity Sold]]","v":0},{"$f":"Table2[[#This Row],[Extended Price]]*1%","v":0}]
[610,null,null,null,null,null,null,null,null,null,null,null,{"$f":"Table2[[#This Row],[Contract Price]]*Table2[[#This Row],[Quantity Sold]]","v":0},{"$f":"Table2[[#This Row],[Extended Price]]*1%","v":0}]
[611,null,null,null,null,null,null,null,null,null,null,null,{"$f":"Table2[[#This Row],[Contract Price]]*Table2[[#This Row],[Quantity Sold]]","v":0},{"$f":"Table2[[#This Row],[Extended Price]]*1%","v":0}]
[612,null,null,null,null,null,null,null,null,null,null,null,{"$f":"Table2[[#This Row],[Contract Price]]*Table2[[#This Row],[Quantity Sold]]","v":0},{"$f":"Table2[[#This Row],[Extended Price]]*1%","v":0}]
[613,null,null,null,null,null,null,null,null,null,null,null,{"$f":"Table2[[#This Row],[Contract Price]]*Table2[[#This Row],[Quantity Sold]]","v":0},{"$f":"Table2[[#This Row],[Extended Price]]*1%","v":0}]
[614,null,null,null,null,null,null,null,null,null,null,null,{"$f":"Table2[[#This Row],[Contract Price]]*Table2[[#This Row],[Quantity Sold]]","v":0},{"$f":"Table2[[#This Row],[Extended Price]]*1%","v":0}]
[615,null,null,null,null,null,null,null,null,null,null,null,{"$f":"Table2[[#This Row],[Contract Price]]*Table2[[#This Row],[Quantity Sold]]","v":0},{"$f":"Table2[[#This Row],[Extended Price]]*1%","v":0}]
[616,null,null,null,null,null,null,null,null,null,null,null,{"$f":"Table2[[#This Row],[Contract Price]]*Table2[[#This Row],[Quantity Sold]]","v":0},{"$f":"Table2[[#This Row],[Extended Price]]*1%","v":0}]
[617,null,null,null,null,null,null,null,null,null,null,null,{"$f":"Table2[[#This Row],[Contract Price]]*Table2[[#This Row],[Quantity Sold]]","v":0},{"$f":"Table2[[#This Row],[Extended Price]]*1%","v":0}]
[618,null,null,null,null,null,null,null,null,null,null,null,{"$f":"Table2[[#This Row],[Contract Price]]*Table2[[#This Row],[Quantity Sold]]","v":0},{"$f":"Table2[[#This Row],[Extended Price]]*1%","v":0}]
[619,null,null,null,null,null,null,null,null,null,null,null,{"$f":"Table2[[#This Row],[Contract Price]]*Table2[[#This Row],[Quantity Sold]]","v":0},{"$f":"Table2[[#This Row],[Extended Price]]*1%","v":0}]
[620,null,null,null,null,null,null,null,null,null,null,null,{"$f":"Table2[[#This Row],[Contract Price]]*Table2[[#This Row],[Quantity Sold]]","v":0},{"$f":"Table2[[#This Row],[Extended Price]]*1%","v":0}]
[621,null,null,null,null,null,null,null,null,null,null,null,{"$f":"Table2[[#This Row],[Contract Price]]*Table2[[#This Row],[Quantity Sold]]","v":0},{"$f":"Table2[[#This Row],[Extended Price]]*1%","v":0}]
[622,null,null,null,null,null,null,null,null,null,null,null,{"$f":"Table2[[#This Row],[Contract Price]]*Table2[[#This Row],[Quantity Sold]]","v":0},{"$f":"Table2[[#This Row],[Extended Price]]*1%","v":0}]
[623,null,null,null,null,null,null,null,null,null,null,null,{"$f":"Table2[[#This Row],[Contract Price]]*Table2[[#This Row],[Quantity Sold]]","v":0},{"$f":"Table2[[#This Row],[Extended Price]]*1%","v":0}]
[624,null,null,null,null,null,null,null,null,null,null,null,{"$f":"Table2[[#This Row],[Contract Price]]*Table2[[#This Row],[Quantity Sold]]","v":0},{"$f":"Table2[[#This Row],[Extended Price]]*1%","v":0}]
[625,null,null,null,null,null,null,null,null,null,null,null,{"$f":"Table2[[#This Row],[Contract Price]]*Table2[[#This Row],[Quantity Sold]]","v":0},{"$f":"Table2[[#This Row],[Extended Price]]*1%","v":0}]
[626,null,null,null,null,null,null,null,null,null,null,null,{"$f":"Table2[[#This Row],[Contract Price]]*Table2[[#This Row],[Quantity Sold]]","v":0},{"$f":"Table2[[#This Row],[Extended Price]]*1%","v":0}]
[627,null,null,null,null,null,null,null,null,null,null,null,{"$f":"Table2[[#This Row],[Contract Price]]*Table2[[#This Row],[Quantity Sold]]","v":0},{"$f":"Table2[[#This Row],[Extended Price]]*1%","v":0}]
[628,null,null,null,null,null,null,null,null,null,null,null,{"$f":"Table2[[#This Row],[Contract Price]]*Table2[[#This Row],[Quantity Sold]]","v":0},{"$f":"Table2[[#This Row],[Extended Price]]*1%","v":0}]
[629,null,null,null,null,null,null,null,null,null,null,null,{"$f":"Table2[[#This Row],[Contract Price]]*Table2[[#This Row],[Quantity Sold]]","v":0},{"$f":"Table2[[#This Row],[Extended Price]]*1%","v":0}]
[630,null,null,null,null,null,null,null,null,null,null,null,{"$f":"Table2[[#This Row],[Contract Price]]*Table2[[#This Row],[Quantity Sold]]","v":0},{"$f":"Table2[[#This Row],[Extended Price]]*1%","v":0}]
[631,null,null,null,null,null,null,null,null,null,null,null,{"$f":"Table2[[#This Row],[Contract Price]]*Table2[[#This Row],[Quantity Sold]]","v":0},{"$f":"Table2[[#This Row],[Extended Price]]*1%","v":0}]
[632,null,null,null,null,null,null,null,null,null,null,null,{"$f":"Table2[[#This Row],[Contract Price]]*Table2[[#This Row],[Quantity Sold]]","v":0},{"$f":"Table2[[#This Row],[Extended Price]]*1%","v":0}]
[633,null,null,null,null,null,null,null,null,null,null,null,{"$f":"Table2[[#This Row],[Contract Price]]*Table2[[#This Row],[Quantity Sold]]","v":0},{"$f":"Table2[[#This Row],[Extended Price]]*1%","v":0}]
[634,null,null,null,null,null,null,null,null,null,null,null,{"$f":"Table2[[#This Row],[Contract Price]]*Table2[[#This Row],[Quantity Sold]]","v":0},{"$f":"Table2[[#This Row],[Extended Price]]*1%","v":0}]
[635,null,null,null,null,null,null,null,null,null,null,null,{"$f":"Table2[[#This Row],[Contract Price]]*Table2[[#This Row],[Quantity Sold]]","v":0},{"$f":"Table2[[#This Row],[Extended Price]]*1%","v":0}]
[636,null,null,null,null,null,null,null,null,null,null,null,{"$f":"Table2[[#This Row],[Contract Price]]*Table2[[#This Row],[Quantity Sold]]","v":0},{"$f":"Table2[[#This Row],[Extended Price]]*1%","v":0}]
[637,null,null,null,null,null,null,null,null,null,null,null,{"$f":"Table2[[#This Row],[Contract Price]]*Table2[[#This Row],[Quantity Sold]]","v":0},{"$f":"Table2[[#This Row],[Extended Price]]*1%","v":0}]
[638,null,null,null,null,null,null,null,null,null,null,null,{"$f":"Table2[[#This Row],[Contract Price]]*Table2[[#This Row],[Quantity Sold]]","v":0},{"$f":"Table2[[#This Row],[Extended Price]]*1%","v":0}]
[639,null,null,null,null,null,null,null,null,null,null,null,{"$f":"Table2[[#This Row],[Contract Price]]*Table2[[#This Row],[Quantity Sold]]","v":0},{"$f":"Table2[[#This Row],[Extended Price]]*1%","v":0}]
[640,null,null,null,null,null,null,null,null,null,null,null,{"$f":"Table2[[#This Row],[Contract Price]]*Table2[[#This Row],[Quantity Sold]]","v":0},{"$f":"Table2[[#This Row],[Extended Price]]*1%","v":0}]
[641,null,null,null,null,null,null,null,null,null,null,null,{"$f":"Table2[[#This Row],[Contract Price]]*Table2[[#This Row],[Quantity Sold]]","v":0},{"$f":"Table2[[#This Row],[Extended Price]]*1%","v":0}]
[642,null,null,null,null,null,null,null,null,null,null,null,{"$f":"Table2[[#This Row],[Contract Price]]*Table2[[#This Row],[Quantity Sold]]","v":0},{"$f":"Table2[[#This Row],[Extended Price]]*1%","v":0}]
[643,null,null,null,null,null,null,null,null,null,null,null,{"$f":"Table2[[#This Row],[Contract Price]]*Table2[[#This Row],[Quantity Sold]]","v":0},{"$f":"Table2[[#This Row],[Extended Price]]*1%","v":0}]
[644,null,null,null,null,null,null,null,null,null,null,null,{"$f":"Table2[[#This Row],[Contract Price]]*Table2[[#This Row],[Quantity Sold]]","v":0},{"$f":"Table2[[#This Row],[Extended Price]]*1%","v":0}]
[645,null,null,null,null,null,null,null,null,null,null,null,{"$f":"Table2[[#This Row],[Contract Price]]*Table2[[#This Row],[Quantity Sold]]","v":0},{"$f":"Table2[[#This Row],[Extended Price]]*1%","v":0}]
[646,null,null,null,null,null,null,null,null,null,null,null,{"$f":"Table2[[#This Row],[Contract Price]]*Table2[[#This Row],[Quantity Sold]]","v":0},{"$f":"Table2[[#This Row],[Extended Price]]*1%","v":0}]
[647,null,null,null,null,null,null,null,null,null,null,null,{"$f":"Table2[[#This Row],[Contract Price]]*Table2[[#This Row],[Quantity Sold]]","v":0},{"$f":"Table2[[#This Row],[Extended Price]]*1%","v":0}]
[648,null,null,null,null,null,null,null,null,null,null,null,{"$f":"Table2[[#This Row],[Contract Price]]*Table2[[#This Row],[Quantity Sold]]","v":0},{"$f":"Table2[[#This Row],[Extended Price]]*1%","v":0}]
[649,null,null,null,null,null,null,null,null,null,null,null,{"$f":"Table2[[#This Row],[Contract Price]]*Table2[[#This Row],[Quantity Sold]]","v":0},{"$f":"Table2[[#This Row],[Extended Price]]*1%","v":0}]
[650,null,null,null,null,null,null,null,null,null,null,null,{"$f":"Table2[[#This Row],[Contract Price]]*Table2[[#This Row],[Quantity Sold]]","v":0},{"$f":"Table2[[#This Row],[Extended Price]]*1%","v":0}]
[651,null,null,null,null,null,null,null,null,null,null,null,{"$f":"Table2[[#This Row],[Contract Price]]*Table2[[#This Row],[Quantity Sold]]","v":0},{"$f":"Table2[[#This Row],[Extended Price]]*1%","v":0}]
[652,null,null,null,null,null,null,null,null,null,null,null,{"$f":"Table2[[#This Row],[Contract Price]]*Table2[[#This Row],[Quantity Sold]]","v":0},{"$f":"Table2[[#This Row],[Extended Price]]*1%","v":0}]
[653,null,null,null,null,null,null,null,null,null,null,null,{"$f":"Table2[[#This Row],[Contract Price]]*Table2[[#This Row],[Quantity Sold]]","v":0},{"$f":"Table2[[#This Row],[Extended Price]]*1%","v":0}]
[654,null,null,null,null,null,null,null,null,null,null,null,{"$f":"Table2[[#This Row],[Contract Price]]*Table2[[#This Row],[Quantity Sold]]","v":0},{"$f":"Table2[[#This Row],[Extended Price]]*1%","v":0}]
[655,null,null,null,null,null,null,null,null,null,null,null,{"$f":"Table2[[#This Row],[Contract Price]]*Table2[[#This Row],[Quantity Sold]]","v":0},{"$f":"Table2[[#This Row],[Extended Price]]*1%","v":0}]
[656,null,null,null,null,null,null,null,null,null,null,null,{"$f":"Table2[[#This Row],[Contract Price]]*Table2[[#This Row],[Quantity Sold]]","v":0},{"$f":"Table2[[#This Row],[Extended Price]]*1%","v":0}]
[657,null,null,null,null,null,null,null,null,null,null,null,{"$f":"Table2[[#This Row],[Contract Price]]*Table2[[#This Row],[Quantity Sold]]","v":0},{"$f":"Table2[[#This Row],[Extended Price]]*1%","v":0}]
[658,null,null,null,null,null,null,null,null,null,null,null,{"$f":"Table2[[#This Row],[Contract Price]]*Table2[[#This Row],[Quantity Sold]]","v":0},{"$f":"Table2[[#This Row],[Extended Price]]*1%","v":0}]
[659,null,null,null,null,null,null,null,null,null,null,null,{"$f":"Table2[[#This Row],[Contract Price]]*Table2[[#This Row],[Quantity Sold]]","v":0},{"$f":"Table2[[#This Row],[Extended Price]]*1%","v":0}]
[660,null,null,null,null,null,null,null,null,null,null,null,{"$f":"Table2[[#This Row],[Contract Price]]*Table2[[#This Row],[Quantity Sold]]","v":0},{"$f":"Table2[[#This Row],[Extended Price]]*1%","v":0}]
[661,null,null,null,null,null,null,null,null,null,null,null,{"$f":"Table2[[#This Row],[Contract Price]]*Table2[[#This Row],[Quantity Sold]]","v":0},{"$f":"Table2[[#This Row],[Extended Price]]*1%","v":0}]
[662,null,null,null,null,null,null,null,null,null,null,null,{"$f":"Table2[[#This Row],[Contract Price]]*Table2[[#This Row],[Quantity Sold]]","v":0},{"$f":"Table2[[#This Row],[Extended Price]]*1%","v":0}]
[663,null,null,null,null,null,null,null,null,null,null,null,{"$f":"Table2[[#This Row],[Contract Price]]*Table2[[#This Row],[Quantity Sold]]","v":0},{"$f":"Table2[[#This Row],[Extended Price]]*1%","v":0}]
[664,null,null,null,null,null,null,null,null,null,null,null,{"$f":"Table2[[#This Row],[Contract Price]]*Table2[[#This Row],[Quantity Sold]]","v":0},{"$f":"Table2[[#This Row],[Extended Price]]*1%","v":0}]
[665,null,null,null,null,null,null,null,null,null,null,null,{"$f":"Table2[[#This Row],[Contract Price]]*Table2[[#This Row],[Quantity Sold]]","v":0},{"$f":"Table2[[#This Row],[Extended Price]]*1%","v":0}]
[666,null,null,null,null,null,null,null,null,null,null,null,{"$f":"Table2[[#This Row],[Contract Price]]*Table2[[#This Row],[Quantity Sold]]","v":0},{"$f":"Table2[[#This Row],[Extended Price]]*1%","v":0}]
[667,null,null,null,null,null,null,null,null,null,null,null,{"$f":"Table2[[#This Row],[Contract Price]]*Table2[[#This Row],[Quantity Sold]]","v":0},{"$f":"Table2[[#This Row],[Extended Price]]*1%","v":0}]
[668,null,null,null,null,null,null,null,null,null,null,null,{"$f":"Table2[[#This Row],[Contract Price]]*Table2[[#This Row],[Quantity Sold]]","v":0},{"$f":"Table2[[#This Row],[Extended Price]]*1%","v":0}]
[669,null,null,null,null,null,null,null,null,null,null,null,{"$f":"Table2[[#This Row],[Contract Price]]*Table2[[#This Row],[Quantity Sold]]","v":0},{"$f":"Table2[[#This Row],[Extended Price]]*1%","v":0}]
[670,null,null,null,null,null,null,null,null,null,null,null,{"$f":"Table2[[#This Row],[Contract Price]]*Table2[[#This Row],[Quantity Sold]]","v":0},{"$f":"Table2[[#This Row],[Extended Price]]*1%","v":0}]
[671,null,null,null,null,null,null,null,null,null,null,null,{"$f":"Table2[[#This Row],[Contract Price]]*Table2[[#This Row],[Quantity Sold]]","v":0},{"$f":"Table2[[#This Row],[Extended Price]]*1%","v":0}]
[672,null,null,null,null,null,null,null,null,null,null,null,{"$f":"Table2[[#This Row],[Contract Price]]*Table2[[#This Row],[Quantity Sold]]","v":0},{"$f":"Table2[[#This Row],[Extended Price]]*1%","v":0}]
[673,null,null,null,null,null,null,null,null,null,null,null,{"$f":"Table2[[#This Row],[Contract Price]]*Table2[[#This Row],[Quantity Sold]]","v":0},{"$f":"Table2[[#This Row],[Extended Price]]*1%","v":0}]
[674,null,null,null,null,null,null,null,null,null,null,null,{"$f":"Table2[[#This Row],[Contract Price]]*Table2[[#This Row],[Quantity Sold]]","v":0},{"$f":"Table2[[#This Row],[Extended Price]]*1%","v":0}]
[675,null,null,null,null,null,null,null,null,null,null,null,{"$f":"Table2[[#This Row],[Contract Price]]*Table2[[#This Row],[Quantity Sold]]","v":0},{"$f":"Table2[[#This Row],[Extended Price]]*1%","v":0}]
[676,null,null,null,null,null,null,null,null,null,null,null,{"$f":"Table2[[#This Row],[Contract Price]]*Table2[[#This Row],[Quantity Sold]]","v":0},{"$f":"Table2[[#This Row],[Extended Price]]*1%","v":0}]
[677,null,null,null,null,null,null,null,null,null,null,null,{"$f":"Table2[[#This Row],[Contract Price]]*Table2[[#This Row],[Quantity Sold]]","v":0},{"$f":"Table2[[#This Row],[Extended Price]]*1%","v":0}]
[678,null,null,null,null,null,null,null,null,null,null,null,{"$f":"Table2[[#This Row],[Contract Price]]*Table2[[#This Row],[Quantity Sold]]","v":0},{"$f":"Table2[[#This Row],[Extended Price]]*1%","v":0}]
[679,null,null,null,null,null,null,null,null,null,null,null,{"$f":"Table2[[#This Row],[Contract Price]]*Table2[[#This Row],[Quantity Sold]]","v":0},{"$f":"Table2[[#This Row],[Extended Price]]*1%","v":0}]
[680,null,null,null,null,null,null,null,null,null,null,null,{"$f":"Table2[[#This Row],[Contract Price]]*Table2[[#This Row],[Quantity Sold]]","v":0},{"$f":"Table2[[#This Row],[Extended Price]]*1%","v":0}]
[681,null,null,null,null,null,null,null,null,null,null,null,{"$f":"Table2[[#This Row],[Contract Price]]*Table2[[#This Row],[Quantity Sold]]","v":0},{"$f":"Table2[[#This Row],[Extended Price]]*1%","v":0}]
[682,null,null,null,null,null,null,null,null,null,null,null,{"$f":"Table2[[#This Row],[Contract Price]]*Table2[[#This Row],[Quantity Sold]]","v":0},{"$f":"Table2[[#This Row],[Extended Price]]*1%","v":0}]
[683,null,null,null,null,null,null,null,null,null,null,null,{"$f":"Table2[[#This Row],[Contract Price]]*Table2[[#This Row],[Quantity Sold]]","v":0},{"$f":"Table2[[#This Row],[Extended Price]]*1%","v":0}]
[684,null,null,null,null,null,null,null,null,null,null,null,{"$f":"Table2[[#This Row],[Contract Price]]*Table2[[#This Row],[Quantity Sold]]","v":0},{"$f":"Table2[[#This Row],[Extended Price]]*1%","v":0}]
[685,null,null,null,null,null,null,null,null,null,null,null,{"$f":"Table2[[#This Row],[Contract Price]]*Table2[[#This Row],[Quantity Sold]]","v":0},{"$f":"Table2[[#This Row],[Extended Price]]*1%","v":0}]
[686,null,null,null,null,null,null,null,null,null,null,null,{"$f":"Table2[[#This Row],[Contract Price]]*Table2[[#This Row],[Quantity Sold]]","v":0},{"$f":"Table2[[#This Row],[Extended Price]]*1%","v":0}]
[687,null,null,null,null,null,null,null,null,null,null,null,{"$f":"Table2[[#This Row],[Contract Price]]*Table2[[#This Row],[Quantity Sold]]","v":0},{"$f":"Table2[[#This Row],[Extended Price]]*1%","v":0}]
[688,null,null,null,null,null,null,null,null,null,null,null,{"$f":"Table2[[#This Row],[Contract Price]]*Table2[[#This Row],[Quantity Sold]]","v":0},{"$f":"Table2[[#This Row],[Extended Price]]*1%","v":0}]
[689,null,null,null,null,null,null,null,null,null,null,null,{"$f":"Table2[[#This Row],[Contract Price]]*Table2[[#This Row],[Quantity Sold]]","v":0},{"$f":"Table2[[#This Row],[Extended Price]]*1%","v":0}]
[690,null,null,null,null,null,null,null,null,null,null,null,{"$f":"Table2[[#This Row],[Contract Price]]*Table2[[#This Row],[Quantity Sold]]","v":0},{"$f":"Table2[[#This Row],[Extended Price]]*1%","v":0}]
[691,null,null,null,null,null,null,null,null,null,null,null,{"$f":"Table2[[#This Row],[Contract Price]]*Table2[[#This Row],[Quantity Sold]]","v":0},{"$f":"Table2[[#This Row],[Extended Price]]*1%","v":0}]
[692,null,null,null,null,null,null,null,null,null,null,null,{"$f":"Table2[[#This Row],[Contract Price]]*Table2[[#This Row],[Quantity Sold]]","v":0},{"$f":"Table2[[#This Row],[Extended Price]]*1%","v":0}]
[693,null,null,null,null,null,null,null,null,null,null,null,{"$f":"Table2[[#This Row],[Contract Price]]*Table2[[#This Row],[Quantity Sold]]","v":0},{"$f":"Table2[[#This Row],[Extended Price]]*1%","v":0}]
[694,null,null,null,null,null,null,null,null,null,null,null,{"$f":"Table2[[#This Row],[Contract Price]]*Table2[[#This Row],[Quantity Sold]]","v":0},{"$f":"Table2[[#This Row],[Extended Price]]*1%","v":0}]
[695,null,null,null,null,null,null,null,null,null,null,null,{"$f":"Table2[[#This Row],[Contract Price]]*Table2[[#This Row],[Quantity Sold]]","v":0},{"$f":"Table2[[#This Row],[Extended Price]]*1%","v":0}]
[696,null,null,null,null,null,null,null,null,null,null,null,{"$f":"Table2[[#This Row],[Contract Price]]*Table2[[#This Row],[Quantity Sold]]","v":0},{"$f":"Table2[[#This Row],[Extended Price]]*1%","v":0}]
[697,null,null,null,null,null,null,null,null,null,null,null,{"$f":"Table2[[#This Row],[Contract Price]]*Table2[[#This Row],[Quantity Sold]]","v":0},{"$f":"Table2[[#This Row],[Extended Price]]*1%","v":0}]
[698,null,null,null,null,null,null,null,null,null,null,null,{"$f":"Table2[[#This Row],[Contract Price]]*Table2[[#This Row],[Quantity Sold]]","v":0},{"$f":"Table2[[#This Row],[Extended Price]]*1%","v":0}]
[699,null,null,null,null,null,null,null,null,null,null,null,{"$f":"Table2[[#This Row],[Contract Price]]*Table2[[#This Row],[Quantity Sold]]","v":0},{"$f":"Table2[[#This Row],[Extended Price]]*1%","v":0}]
[700,null,null,null,null,null,null,null,null,null,null,null,{"$f":"Table2[[#This Row],[Contract Price]]*Table2[[#This Row],[Quantity Sold]]","v":0},{"$f":"Table2[[#This Row],[Extended Price]]*1%","v":0}]
[701,null,null,null,null,null,null,null,null,null,null,null,{"$f":"Table2[[#This Row],[Contract Price]]*Table2[[#This Row],[Quantity Sold]]","v":0},{"$f":"Table2[[#This Row],[Extended Price]]*1%","v":0}]
[702,null,null,null,null,null,null,null,null,null,null,null,{"$f":"Table2[[#This Row],[Contract Price]]*Table2[[#This Row],[Quantity Sold]]","v":0},{"$f":"Table2[[#This Row],[Extended Price]]*1%","v":0}]
[703,null,null,null,null,null,null,null,null,null,null,null,{"$f":"Table2[[#This Row],[Contract Price]]*Table2[[#This Row],[Quantity Sold]]","v":0},{"$f":"Table2[[#This Row],[Extended Price]]*1%","v":0}]
[704,null,null,null,null,null,null,null,null,null,null,null,{"$f":"Table2[[#This Row],[Contract Price]]*Table2[[#This Row],[Quantity Sold]]","v":0},{"$f":"Table2[[#This Row],[Extended Price]]*1%","v":0}]
[705,null,null,null,null,null,null,null,null,null,null,null,{"$f":"Table2[[#This Row],[Contract Price]]*Table2[[#This Row],[Quantity Sold]]","v":0},{"$f":"Table2[[#This Row],[Extended Price]]*1%","v":0}]
[706,null,null,null,null,null,null,null,null,null,null,null,{"$f":"Table2[[#This Row],[Contract Price]]*Table2[[#This Row],[Quantity Sold]]","v":0},{"$f":"Table2[[#This Row],[Extended Price]]*1%","v":0}]
[707,null,null,null,null,null,null,null,null,null,null,null,{"$f":"Table2[[#This Row],[Contract Price]]*Table2[[#This Row],[Quantity Sold]]","v":0},{"$f":"Table2[[#This Row],[Extended Price]]*1%","v":0}]
[708,null,null,null,null,null,null,null,null,null,null,null,{"$f":"Table2[[#This Row],[Contract Price]]*Table2[[#This Row],[Quantity Sold]]","v":0},{"$f":"Table2[[#This Row],[Extended Price]]*1%","v":0}]
[709,null,null,null,null,null,null,null,null,null,null,null,{"$f":"Table2[[#This Row],[Contract Price]]*Table2[[#This Row],[Quantity Sold]]","v":0},{"$f":"Table2[[#This Row],[Extended Price]]*1%","v":0}]
[710,null,null,null,null,null,null,null,null,null,null,null,{"$f":"Table2[[#This Row],[Contract Price]]*Table2[[#This Row],[Quantity Sold]]","v":0},{"$f":"Table2[[#This Row],[Extended Price]]*1%","v":0}]
[711,null,null,null,null,null,null,null,null,null,null,null,{"$f":"Table2[[#This Row],[Contract Price]]*Table2[[#This Row],[Quantity Sold]]","v":0},{"$f":"Table2[[#This Row],[Extended Price]]*1%","v":0}]
[712,null,null,null,null,null,null,null,null,null,null,null,{"$f":"Table2[[#This Row],[Contract Price]]*Table2[[#This Row],[Quantity Sold]]","v":0},{"$f":"Table2[[#This Row],[Extended Price]]*1%","v":0}]
[713,null,null,null,null,null,null,null,null,null,null,null,{"$f":"Table2[[#This Row],[Contract Price]]*Table2[[#This Row],[Quantity Sold]]","v":0},{"$f":"Table2[[#This Row],[Extended Price]]*1%","v":0}]
[714,null,null,null,null,null,null,null,null,null,null,null,{"$f":"Table2[[#This Row],[Contract Price]]*Table2[[#This Row],[Quantity Sold]]","v":0},{"$f":"Table2[[#This Row],[Extended Price]]*1%","v":0}]
[715,null,null,null,null,null,null,null,null,null,null,null,{"$f":"Table2[[#This Row],[Contract Price]]*Table2[[#This Row],[Quantity Sold]]","v":0},{"$f":"Table2[[#This Row],[Extended Price]]*1%","v":0}]
[716,null,null,null,null,null,null,null,null,null,null,null,{"$f":"Table2[[#This Row],[Contract Price]]*Table2[[#This Row],[Quantity Sold]]","v":0},{"$f":"Table2[[#This Row],[Extended Price]]*1%","v":0}]
[717,null,null,null,null,null,null,null,null,null,null,null,{"$f":"Table2[[#This Row],[Contract Price]]*Table2[[#This Row],[Quantity Sold]]","v":0},{"$f":"Table2[[#This Row],[Extended Price]]*1%","v":0}]
[718,null,null,null,null,null,null,null,null,null,null,null,{"$f":"Table2[[#This Row],[Contract Price]]*Table2[[#This Row],[Quantity Sold]]","v":0},{"$f":"Table2[[#This Row],[Extended Price]]*1%","v":0}]
[719,null,null,null,null,null,null,null,null,null,null,null,{"$f":"Table2[[#This Row],[Contract Price]]*Table2[[#This Row],[Quantity Sold]]","v":0},{"$f":"Table2[[#This Row],[Extended Price]]*1%","v":0}]
[720,null,null,null,null,null,null,null,null,null,null,null,{"$f":"Table2[[#This Row],[Contract Price]]*Table2[[#This Row],[Quantity Sold]]","v":0},{"$f":"Table2[[#This Row],[Extended Price]]*1%","v":0}]
[721,null,null,null,null,null,null,null,null,null,null,null,{"$f":"Table2[[#This Row],[Contract Price]]*Table2[[#This Row],[Quantity Sold]]","v":0},{"$f":"Table2[[#This Row],[Extended Price]]*1%","v":0}]
[722,null,null,null,null,null,null,null,null,null,null,null,{"$f":"Table2[[#This Row],[Contract Price]]*Table2[[#This Row],[Quantity Sold]]","v":0},{"$f":"Table2[[#This Row],[Extended Price]]*1%","v":0}]
[723,null,null,null,null,null,null,null,null,null,null,null,{"$f":"Table2[[#This Row],[Contract Price]]*Table2[[#This Row],[Quantity Sold]]","v":0},{"$f":"Table2[[#This Row],[Extended Price]]*1%","v":0}]
[724,null,null,null,null,null,null,null,null,null,null,null,{"$f":"Table2[[#This Row],[Contract Price]]*Table2[[#This Row],[Quantity Sold]]","v":0},{"$f":"Table2[[#This Row],[Extended Price]]*1%","v":0}]
[725,null,null,null,null,null,null,null,null,null,null,null,{"$f":"Table2[[#This Row],[Contract Price]]*Table2[[#This Row],[Quantity Sold]]","v":0},{"$f":"Table2[[#This Row],[Extended Price]]*1%","v":0}]
[726,null,null,null,null,null,null,null,null,null,null,null,{"$f":"Table2[[#This Row],[Contract Price]]*Table2[[#This Row],[Quantity Sold]]","v":0},{"$f":"Table2[[#This Row],[Extended Price]]*1%","v":0}]
[727,null,null,null,null,null,null,null,null,null,null,null,{"$f":"Table2[[#This Row],[Contract Price]]*Table2[[#This Row],[Quantity Sold]]","v":0},{"$f":"Table2[[#This Row],[Extended Price]]*1%","v":0}]
[728,null,null,null,null,null,null,null,null,null,null,null,{"$f":"Table2[[#This Row],[Contract Price]]*Table2[[#This Row],[Quantity Sold]]","v":0},{"$f":"Table2[[#This Row],[Extended Price]]*1%","v":0}]
[729,null,null,null,null,null,null,null,null,null,null,null,{"$f":"Table2[[#This Row],[Contract Price]]*Table2[[#This Row],[Quantity Sold]]","v":0},{"$f":"Table2[[#This Row],[Extended Price]]*1%","v":0}]
[730,null,null,null,null,null,null,null,null,null,null,null,{"$f":"Table2[[#This Row],[Contract Price]]*Table2[[#This Row],[Quantity Sold]]","v":0},{"$f":"Table2[[#This Row],[Extended Price]]*1%","v":0}]
[731,null,null,null,null,null,null,null,null,null,null,null,{"$f":"Table2[[#This Row],[Contract Price]]*Table2[[#This Row],[Quantity Sold]]","v":0},{"$f":"Table2[[#This Row],[Extended Price]]*1%","v":0}]
[732,null,null,null,null,null,null,null,null,null,null,null,{"$f":"Table2[[#This Row],[Contract Price]]*Table2[[#This Row],[Quantity Sold]]","v":0},{"$f":"Table2[[#This Row],[Extended Price]]*1%","v":0}]
[733,null,null,null,null,null,null,null,null,null,null,null,{"$f":"Table2[[#This Row],[Contract Price]]*Table2[[#This Row],[Quantity Sold]]","v":0},{"$f":"Table2[[#This Row],[Extended Price]]*1%","v":0}]
[734,null,null,null,null,null,null,null,null,null,null,null,{"$f":"Table2[[#This Row],[Contract Price]]*Table2[[#This Row],[Quantity Sold]]","v":0},{"$f":"Table2[[#This Row],[Extended Price]]*1%","v":0}]
[735,null,null,null,null,null,null,null,null,null,null,null,{"$f":"Table2[[#This Row],[Contract Price]]*Table2[[#This Row],[Quantity Sold]]","v":0},{"$f":"Table2[[#This Row],[Extended Price]]*1%","v":0}]
[736,null,null,null,null,null,null,null,null,null,null,null,{"$f":"Table2[[#This Row],[Contract Price]]*Table2[[#This Row],[Quantity Sold]]","v":0},{"$f":"Table2[[#This Row],[Extended Price]]*1%","v":0}]
[737,null,null,null,null,null,null,null,null,null,null,null,{"$f":"Table2[[#This Row],[Contract Price]]*Table2[[#This Row],[Quantity Sold]]","v":0},{"$f":"Table2[[#This Row],[Extended Price]]*1%","v":0}]
[738,null,null,null,null,null,null,null,null,null,null,null,{"$f":"Table2[[#This Row],[Contract Price]]*Table2[[#This Row],[Quantity Sold]]","v":0},{"$f":"Table2[[#This Row],[Extended Price]]*1%","v":0}]
[739,null,null,null,null,null,null,null,null,null,null,null,{"$f":"Table2[[#This Row],[Contract Price]]*Table2[[#This Row],[Quantity Sold]]","v":0},{"$f":"Table2[[#This Row],[Extended Price]]*1%","v":0}]
[740,null,null,null,null,null,null,null,null,null,null,null,{"$f":"Table2[[#This Row],[Contract Price]]*Table2[[#This Row],[Quantity Sold]]","v":0},{"$f":"Table2[[#This Row],[Extended Price]]*1%","v":0}]
[741,null,null,null,null,null,null,null,null,null,null,null,{"$f":"Table2[[#This Row],[Contract Price]]*Table2[[#This Row],[Quantity Sold]]","v":0},{"$f":"Table2[[#This Row],[Extended Price]]*1%","v":0}]
[742,null,null,null,null,null,null,null,null,null,null,null,{"$f":"Table2[[#This Row],[Contract Price]]*Table2[[#This Row],[Quantity Sold]]","v":0},{"$f":"Table2[[#This Row],[Extended Price]]*1%","v":0}]
[743,null,null,null,null,null,null,null,null,null,null,null,{"$f":"Table2[[#This Row],[Contract Price]]*Table2[[#This Row],[Quantity Sold]]","v":0},{"$f":"Table2[[#This Row],[Extended Price]]*1%","v":0}]
[744,null,null,null,null,null,null,null,null,null,null,null,{"$f":"Table2[[#This Row],[Contract Price]]*Table2[[#This Row],[Quantity Sold]]","v":0},{"$f":"Table2[[#This Row],[Extended Price]]*1%","v":0}]
[745,null,null,null,null,null,null,null,null,null,null,null,{"$f":"Table2[[#This Row],[Contract Price]]*Table2[[#This Row],[Quantity Sold]]","v":0},{"$f":"Table2[[#This Row],[Extended Price]]*1%","v":0}]
[746,null,null,null,null,null,null,null,null,null,null,null,{"$f":"Table2[[#This Row],[Contract Price]]*Table2[[#This Row],[Quantity Sold]]","v":0},{"$f":"Table2[[#This Row],[Extended Price]]*1%","v":0}]
[747,null,null,null,null,null,null,null,null,null,null,null,{"$f":"Table2[[#This Row],[Contract Price]]*Table2[[#This Row],[Quantity Sold]]","v":0},{"$f":"Table2[[#This Row],[Extended Price]]*1%","v":0}]
[748,null,null,null,null,null,null,null,null,null,null,null,{"$f":"Table2[[#This Row],[Contract Price]]*Table2[[#This Row],[Quantity Sold]]","v":0},{"$f":"Table2[[#This Row],[Extended Price]]*1%","v":0}]
[749,null,null,null,null,null,null,null,null,null,null,null,{"$f":"Table2[[#This Row],[Contract Price]]*Table2[[#This Row],[Quantity Sold]]","v":0},{"$f":"Table2[[#This Row],[Extended Price]]*1%","v":0}]
[750,null,null,null,null,null,null,null,null,null,null,null,{"$f":"Table2[[#This Row],[Contract Price]]*Table2[[#This Row],[Quantity Sold]]","v":0},{"$f":"Table2[[#This Row],[Extended Price]]*1%","v":0}]
[751,null,null,null,null,null,null,null,null,null,null,null,{"$f":"Table2[[#This Row],[Contract Price]]*Table2[[#This Row],[Quantity Sold]]","v":0},{"$f":"Table2[[#This Row],[Extended Price]]*1%","v":0}]
[752,null,null,null,null,null,null,null,null,null,null,null,{"$f":"Table2[[#This Row],[Contract Price]]*Table2[[#This Row],[Quantity Sold]]","v":0},{"$f":"Table2[[#This Row],[Extended Price]]*1%","v":0}]
[753,null,null,null,null,null,null,null,null,null,null,null,{"$f":"Table2[[#This Row],[Contract Price]]*Table2[[#This Row],[Quantity Sold]]","v":0},{"$f":"Table2[[#This Row],[Extended Price]]*1%","v":0}]
[754,null,null,null,null,null,null,null,null,null,null,null,{"$f":"Table2[[#This Row],[Contract Price]]*Table2[[#This Row],[Quantity Sold]]","v":0},{"$f":"Table2[[#This Row],[Extended Price]]*1%","v":0}]
[755,null,null,null,null,null,null,null,null,null,null,null,{"$f":"Table2[[#This Row],[Contract Price]]*Table2[[#This Row],[Quantity Sold]]","v":0},{"$f":"Table2[[#This Row],[Extended Price]]*1%","v":0}]
[756,null,null,null,null,null,null,null,null,null,null,null,{"$f":"Table2[[#This Row],[Contract Price]]*Table2[[#This Row],[Quantity Sold]]","v":0},{"$f":"Table2[[#This Row],[Extended Price]]*1%","v":0}]
[757,null,null,null,null,null,null,null,null,null,null,null,{"$f":"Table2[[#This Row],[Contract Price]]*Table2[[#This Row],[Quantity Sold]]","v":0},{"$f":"Table2[[#This Row],[Extended Price]]*1%","v":0}]
[758,null,null,null,null,null,null,null,null,null,null,null,{"$f":"Table2[[#This Row],[Contract Price]]*Table2[[#This Row],[Quantity Sold]]","v":0},{"$f":"Table2[[#This Row],[Extended Price]]*1%","v":0}]
[759,null,null,null,null,null,null,null,null,null,null,null,{"$f":"Table2[[#This Row],[Contract Price]]*Table2[[#This Row],[Quantity Sold]]","v":0},{"$f":"Table2[[#This Row],[Extended Price]]*1%","v":0}]
[760,null,null,null,null,null,null,null,null,null,null,null,{"$f":"Table2[[#This Row],[Contract Price]]*Table2[[#This Row],[Quantity Sold]]","v":0},{"$f":"Table2[[#This Row],[Extended Price]]*1%","v":0}]
[761,null,null,null,null,null,null,null,null,null,null,null,{"$f":"Table2[[#This Row],[Contract Price]]*Table2[[#This Row],[Quantity Sold]]","v":0},{"$f":"Table2[[#This Row],[Extended Price]]*1%","v":0}]
[762,null,null,null,null,null,null,null,null,null,null,null,{"$f":"Table2[[#This Row],[Contract Price]]*Table2[[#This Row],[Quantity Sold]]","v":0},{"$f":"Table2[[#This Row],[Extended Price]]*1%","v":0}]
[763,null,null,null,null,null,null,null,null,null,null,null,{"$f":"Table2[[#This Row],[Contract Price]]*Table2[[#This Row],[Quantity Sold]]","v":0},{"$f":"Table2[[#This Row],[Extended Price]]*1%","v":0}]
[764,null,null,null,null,null,null,null,null,null,null,null,{"$f":"Table2[[#This Row],[Contract Price]]*Table2[[#This Row],[Quantity Sold]]","v":0},{"$f":"Table2[[#This Row],[Extended Price]]*1%","v":0}]
[765,null,null,null,null,null,null,null,null,null,null,null,{"$f":"Table2[[#This Row],[Contract Price]]*Table2[[#This Row],[Quantity Sold]]","v":0},{"$f":"Table2[[#This Row],[Extended Price]]*1%","v":0}]
[766,null,null,null,null,null,null,null,null,null,null,null,{"$f":"Table2[[#This Row],[Contract Price]]*Table2[[#This Row],[Quantity Sold]]","v":0},{"$f":"Table2[[#This Row],[Extended Price]]*1%","v":0}]
[767,null,null,null,null,null,null,null,null,null,null,null,{"$f":"Table2[[#This Row],[Contract Price]]*Table2[[#This Row],[Quantity Sold]]","v":0},{"$f":"Table2[[#This Row],[Extended Price]]*1%","v":0}]
[768,null,null,null,null,null,null,null,null,null,null,null,{"$f":"Table2[[#This Row],[Contract Price]]*Table2[[#This Row],[Quantity Sold]]","v":0},{"$f":"Table2[[#This Row],[Extended Price]]*1%","v":0}]
[769,null,null,null,null,null,null,null,null,null,null,null,{"$f":"Table2[[#This Row],[Contract Price]]*Table2[[#This Row],[Quantity Sold]]","v":0},{"$f":"Table2[[#This Row],[Extended Price]]*1%","v":0}]
[770,null,null,null,null,null,null,null,null,null,null,null,{"$f":"Table2[[#This Row],[Contract Price]]*Table2[[#This Row],[Quantity Sold]]","v":0},{"$f":"Table2[[#This Row],[Extended Price]]*1%","v":0}]
[771,null,null,null,null,null,null,null,null,null,null,null,{"$f":"Table2[[#This Row],[Contract Price]]*Table2[[#This Row],[Quantity Sold]]","v":0},{"$f":"Table2[[#This Row],[Extended Price]]*1%","v":0}]
[772,null,null,null,null,null,null,null,null,null,null,null,{"$f":"Table2[[#This Row],[Contract Price]]*Table2[[#This Row],[Quantity Sold]]","v":0},{"$f":"Table2[[#This Row],[Extended Price]]*1%","v":0}]
[773,null,null,null,null,null,null,null,null,null,null,null,{"$f":"Table2[[#This Row],[Contract Price]]*Table2[[#This Row],[Quantity Sold]]","v":0},{"$f":"Table2[[#This Row],[Extended Price]]*1%","v":0}]
[774,null,null,null,null,null,null,null,null,null,null,null,{"$f":"Table2[[#This Row],[Contract Price]]*Table2[[#This Row],[Quantity Sold]]","v":0},{"$f":"Table2[[#This Row],[Extended Price]]*1%","v":0}]
[775,null,null,null,null,null,null,null,null,null,null,null,{"$f":"Table2[[#This Row],[Contract Price]]*Table2[[#This Row],[Quantity Sold]]","v":0},{"$f":"Table2[[#This Row],[Extended Price]]*1%","v":0}]
[776,null,null,null,null,null,null,null,null,null,null,null,{"$f":"Table2[[#This Row],[Contract Price]]*Table2[[#This Row],[Quantity Sold]]","v":0},{"$f":"Table2[[#This Row],[Extended Price]]*1%","v":0}]
[777,null,null,null,null,null,null,null,null,null,null,null,{"$f":"Table2[[#This Row],[Contract Price]]*Table2[[#This Row],[Quantity Sold]]","v":0},{"$f":"Table2[[#This Row],[Extended Price]]*1%","v":0}]
[778,null,null,null,null,null,null,null,null,null,null,null,{"$f":"Table2[[#This Row],[Contract Price]]*Table2[[#This Row],[Quantity Sold]]","v":0},{"$f":"Table2[[#This Row],[Extended Price]]*1%","v":0}]
[779,null,null,null,null,null,null,null,null,null,null,null,{"$f":"Table2[[#This Row],[Contract Price]]*Table2[[#This Row],[Quantity Sold]]","v":0},{"$f":"Table2[[#This Row],[Extended Price]]*1%","v":0}]
[780,null,null,null,null,null,null,null,null,null,null,null,{"$f":"Table2[[#This Row],[Contract Price]]*Table2[[#This Row],[Quantity Sold]]","v":0},{"$f":"Table2[[#This Row],[Extended Price]]*1%","v":0}]
[781,null,null,null,null,null,null,null,null,null,null,null,{"$f":"Table2[[#This Row],[Contract Price]]*Table2[[#This Row],[Quantity Sold]]","v":0},{"$f":"Table2[[#This Row],[Extended Price]]*1%","v":0}]
[782,null,null,null,null,null,null,null,null,null,null,null,{"$f":"Table2[[#This Row],[Contract Price]]*Table2[[#This Row],[Quantity Sold]]","v":0},{"$f":"Table2[[#This Row],[Extended Price]]*1%","v":0}]
[783,null,null,null,null,null,null,null,null,null,null,null,{"$f":"Table2[[#This Row],[Contract Price]]*Table2[[#This Row],[Quantity Sold]]","v":0},{"$f":"Table2[[#This Row],[Extended Price]]*1%","v":0}]
[784,null,null,null,null,null,null,null,null,null,null,null,{"$f":"Table2[[#This Row],[Contract Price]]*Table2[[#This Row],[Quantity Sold]]","v":0},{"$f":"Table2[[#This Row],[Extended Price]]*1%","v":0}]
[785,null,null,null,null,null,null,null,null,null,null,null,{"$f":"Table2[[#This Row],[Contract Price]]*Table2[[#This Row],[Quantity Sold]]","v":0},{"$f":"Table2[[#This Row],[Extended Price]]*1%","v":0}]
[786,null,null,null,null,null,null,null,null,null,null,null,{"$f":"Table2[[#This Row],[Contract Price]]*Table2[[#This Row],[Quantity Sold]]","v":0},{"$f":"Table2[[#This Row],[Extended Price]]*1%","v":0}]
[787,null,null,null,null,null,null,null,null,null,null,null,{"$f":"Table2[[#This Row],[Contract Price]]*Table2[[#This Row],[Quantity Sold]]","v":0},{"$f":"Table2[[#This Row],[Extended Price]]*1%","v":0}]
[788,null,null,null,null,null,null,null,null,null,null,null,{"$f":"Table2[[#This Row],[Contract Price]]*Table2[[#This Row],[Quantity Sold]]","v":0},{"$f":"Table2[[#This Row],[Extended Price]]*1%","v":0}]
[789,null,null,null,null,null,null,null,null,null,null,null,{"$f":"Table2[[#This Row],[Contract Price]]*Table2[[#This Row],[Quantity Sold]]","v":0},{"$f":"Table2[[#This Row],[Extended Price]]*1%","v":0}]
[790,null,null,null,null,null,null,null,null,null,null,null,{"$f":"Table2[[#This Row],[Contract Price]]*Table2[[#This Row],[Quantity Sold]]","v":0},{"$f":"Table2[[#This Row],[Extended Price]]*1%","v":0}]
[791,null,null,null,null,null,null,null,null,null,null,null,{"$f":"Table2[[#This Row],[Contract Price]]*Table2[[#This Row],[Quantity Sold]]","v":0},{"$f":"Table2[[#This Row],[Extended Price]]*1%","v":0}]
[792,null,null,null,null,null,null,null,null,null,null,null,{"$f":"Table2[[#This Row],[Contract Price]]*Table2[[#This Row],[Quantity Sold]]","v":0},{"$f":"Table2[[#This Row],[Extended Price]]*1%","v":0}]
[793,null,null,null,null,null,null,null,null,null,null,null,{"$f":"Table2[[#This Row],[Contract Price]]*Table2[[#This Row],[Quantity Sold]]","v":0},{"$f":"Table2[[#This Row],[Extended Price]]*1%","v":0}]
[794,null,null,null,null,null,null,null,null,null,null,null,{"$f":"Table2[[#This Row],[Contract Price]]*Table2[[#This Row],[Quantity Sold]]","v":0},{"$f":"Table2[[#This Row],[Extended Price]]*1%","v":0}]
[795,null,null,null,null,null,null,null,null,null,null,null,{"$f":"Table2[[#This Row],[Contract Price]]*Table2[[#This Row],[Quantity Sold]]","v":0},{"$f":"Table2[[#This Row],[Extended Price]]*1%","v":0}]
[796,null,null,null,null,null,null,null,null,null,null,null,{"$f":"Table2[[#This Row],[Contract Price]]*Table2[[#This Row],[Quantity Sold]]","v":0},{"$f":"Table2[[#This Row],[Extended Price]]*1%","v":0}]
[797,null,null,null,null,null,null,null,null,null,null,null,{"$f":"Table2[[#This Row],[Contract Price]]*Table2[[#This Row],[Quantity Sold]]","v":0},{"$f":"Table2[[#This Row],[Extended Price]]*1%","v":0}]
[798,null,null,null,null,null,null,null,null,null,null,null,{"$f":"Table2[[#This Row],[Contract Price]]*Table2[[#This Row],[Quantity Sold]]","v":0},{"$f":"Table2[[#This Row],[Extended Price]]*1%","v":0}]
[799,null,null,null,null,null,null,null,null,null,null,null,{"$f":"Table2[[#This Row],[Contract Price]]*Table2[[#This Row],[Quantity Sold]]","v":0},{"$f":"Table2[[#This Row],[Extended Price]]*1%","v":0}]
[800,null,null,null,null,null,null,null,null,null,null,null,{"$f":"Table2[[#This Row],[Contract Price]]*Table2[[#This Row],[Quantity Sold]]","v":0},{"$f":"Table2[[#This Row],[Extended Price]]*1%","v":0}]
[801,null,null,null,null,null,null,null,null,null,null,null,{"$f":"Table2[[#This Row],[Contract Price]]*Table2[[#This Row],[Quantity Sold]]","v":0},{"$f":"Table2[[#This Row],[Extended Price]]*1%","v":0}]
[802,null,null,null,null,null,null,null,null,null,null,null,{"$f":"Table2[[#This Row],[Contract Price]]*Table2[[#This Row],[Quantity Sold]]","v":0},{"$f":"Table2[[#This Row],[Extended Price]]*1%","v":0}]
[803,null,null,null,null,null,null,null,null,null,null,null,{"$f":"Table2[[#This Row],[Contract Price]]*Table2[[#This Row],[Quantity Sold]]","v":0},{"$f":"Table2[[#This Row],[Extended Price]]*1%","v":0}]
[804,null,null,null,null,null,null,null,null,null,null,null,{"$f":"Table2[[#This Row],[Contract Price]]*Table2[[#This Row],[Quantity Sold]]","v":0},{"$f":"Table2[[#This Row],[Extended Price]]*1%","v":0}]
[805,null,null,null,null,null,null,null,null,null,null,null,{"$f":"Table2[[#This Row],[Contract Price]]*Table2[[#This Row],[Quantity Sold]]","v":0},{"$f":"Table2[[#This Row],[Extended Price]]*1%","v":0}]
[806,null,null,null,null,null,null,null,null,null,null,null,{"$f":"Table2[[#This Row],[Contract Price]]*Table2[[#This Row],[Quantity Sold]]","v":0},{"$f":"Table2[[#This Row],[Extended Price]]*1%","v":0}]
[807,null,null,null,null,null,null,null,null,null,null,null,{"$f":"Table2[[#This Row],[Contract Price]]*Table2[[#This Row],[Quantity Sold]]","v":0},{"$f":"Table2[[#This Row],[Extended Price]]*1%","v":0}]
[808,null,null,null,null,null,null,null,null,null,null,null,{"$f":"Table2[[#This Row],[Contract Price]]*Table2[[#This Row],[Quantity Sold]]","v":0},{"$f":"Table2[[#This Row],[Extended Price]]*1%","v":0}]
[809,null,null,null,null,null,null,null,null,null,null,null,{"$f":"Table2[[#This Row],[Contract Price]]*Table2[[#This Row],[Quantity Sold]]","v":0},{"$f":"Table2[[#This Row],[Extended Price]]*1%","v":0}]
[810,null,null,null,null,null,null,null,null,null,null,null,{"$f":"Table2[[#This Row],[Contract Price]]*Table2[[#This Row],[Quantity Sold]]","v":0},{"$f":"Table2[[#This Row],[Extended Price]]*1%","v":0}]
[811,null,null,null,null,null,null,null,null,null,null,null,{"$f":"Table2[[#This Row],[Contract Price]]*Table2[[#This Row],[Quantity Sold]]","v":0},{"$f":"Table2[[#This Row],[Extended Price]]*1%","v":0}]
[812,null,null,null,null,null,null,null,null,null,null,null,{"$f":"Table2[[#This Row],[Contract Price]]*Table2[[#This Row],[Quantity Sold]]","v":0},{"$f":"Table2[[#This Row],[Extended Price]]*1%","v":0}]
[813,null,null,null,null,null,null,null,null,null,null,null,{"$f":"Table2[[#This Row],[Contract Price]]*Table2[[#This Row],[Quantity Sold]]","v":0},{"$f":"Table2[[#This Row],[Extended Price]]*1%","v":0}]
[814,null,null,null,null,null,null,null,null,null,null,null,{"$f":"Table2[[#This Row],[Contract Price]]*Table2[[#This Row],[Quantity Sold]]","v":0},{"$f":"Table2[[#This Row],[Extended Price]]*1%","v":0}]
[815,null,null,null,null,null,null,null,null,null,null,null,{"$f":"Table2[[#This Row],[Contract Price]]*Table2[[#This Row],[Quantity Sold]]","v":0},{"$f":"Table2[[#This Row],[Extended Price]]*1%","v":0}]
[816,null,null,null,null,null,null,null,null,null,null,null,{"$f":"Table2[[#This Row],[Contract Price]]*Table2[[#This Row],[Quantity Sold]]","v":0},{"$f":"Table2[[#This Row],[Extended Price]]*1%","v":0}]
[817,null,null,null,null,null,null,null,null,null,null,null,{"$f":"Table2[[#This Row],[Contract Price]]*Table2[[#This Row],[Quantity Sold]]","v":0},{"$f":"Table2[[#This Row],[Extended Price]]*1%","v":0}]
[818,null,null,null,null,null,null,null,null,null,null,null,{"$f":"Table2[[#This Row],[Contract Price]]*Table2[[#This Row],[Quantity Sold]]","v":0},{"$f":"Table2[[#This Row],[Extended Price]]*1%","v":0}]
[819,null,null,null,null,null,null,null,null,null,null,null,{"$f":"Table2[[#This Row],[Contract Price]]*Table2[[#This Row],[Quantity Sold]]","v":0},{"$f":"Table2[[#This Row],[Extended Price]]*1%","v":0}]
[820,null,null,null,null,null,null,null,null,null,null,null,{"$f":"Table2[[#This Row],[Contract Price]]*Table2[[#This Row],[Quantity Sold]]","v":0},{"$f":"Table2[[#This Row],[Extended Price]]*1%","v":0}]
[821,null,null,null,null,null,null,null,null,null,null,null,{"$f":"Table2[[#This Row],[Contract Price]]*Table2[[#This Row],[Quantity Sold]]","v":0},{"$f":"Table2[[#This Row],[Extended Price]]*1%","v":0}]
[822,null,null,null,null,null,null,null,null,null,null,null,{"$f":"Table2[[#This Row],[Contract Price]]*Table2[[#This Row],[Quantity Sold]]","v":0},{"$f":"Table2[[#This Row],[Extended Price]]*1%","v":0}]
[823,null,null,null,null,null,null,null,null,null,null,null,{"$f":"Table2[[#This Row],[Contract Price]]*Table2[[#This Row],[Quantity Sold]]","v":0},{"$f":"Table2[[#This Row],[Extended Price]]*1%","v":0}]
[824,null,null,null,null,null,null,null,null,null,null,null,{"$f":"Table2[[#This Row],[Contract Price]]*Table2[[#This Row],[Quantity Sold]]","v":0},{"$f":"Table2[[#This Row],[Extended Price]]*1%","v":0}]
[825,null,null,null,null,null,null,null,null,null,null,null,{"$f":"Table2[[#This Row],[Contract Price]]*Table2[[#This Row],[Quantity Sold]]","v":0},{"$f":"Table2[[#This Row],[Extended Price]]*1%","v":0}]
[826,null,null,null,null,null,null,null,null,null,null,null,{"$f":"Table2[[#This Row],[Contract Price]]*Table2[[#This Row],[Quantity Sold]]","v":0},{"$f":"Table2[[#This Row],[Extended Price]]*1%","v":0}]
[827,null,null,null,null,null,null,null,null,null,null,null,{"$f":"Table2[[#This Row],[Contract Price]]*Table2[[#This Row],[Quantity Sold]]","v":0},{"$f":"Table2[[#This Row],[Extended Price]]*1%","v":0}]
[828,null,null,null,null,null,null,null,null,null,null,null,{"$f":"Table2[[#This Row],[Contract Price]]*Table2[[#This Row],[Quantity Sold]]","v":0},{"$f":"Table2[[#This Row],[Extended Price]]*1%","v":0}]
[829,null,null,null,null,null,null,null,null,null,null,null,{"$f":"Table2[[#This Row],[Contract Price]]*Table2[[#This Row],[Quantity Sold]]","v":0},{"$f":"Table2[[#This Row],[Extended Price]]*1%","v":0}]
[830,null,null,null,null,null,null,null,null,null,null,null,{"$f":"Table2[[#This Row],[Contract Price]]*Table2[[#This Row],[Quantity Sold]]","v":0},{"$f":"Table2[[#This Row],[Extended Price]]*1%","v":0}]
[831,null,null,null,null,null,null,null,null,null,null,null,{"$f":"Table2[[#This Row],[Contract Price]]*Table2[[#This Row],[Quantity Sold]]","v":0},{"$f":"Table2[[#This Row],[Extended Price]]*1%","v":0}]
[832,null,null,null,null,null,null,null,null,null,null,null,{"$f":"Table2[[#This Row],[Contract Price]]*Table2[[#This Row],[Quantity Sold]]","v":0},{"$f":"Table2[[#This Row],[Extended Price]]*1%","v":0}]
[833,null,null,null,null,null,null,null,null,null,null,null,{"$f":"Table2[[#This Row],[Contract Price]]*Table2[[#This Row],[Quantity Sold]]","v":0},{"$f":"Table2[[#This Row],[Extended Price]]*1%","v":0}]
[834,null,null,null,null,null,null,null,null,null,null,null,{"$f":"Table2[[#This Row],[Contract Price]]*Table2[[#This Row],[Quantity Sold]]","v":0},{"$f":"Table2[[#This Row],[Extended Price]]*1%","v":0}]
[835,null,null,null,null,null,null,null,null,null,null,null,{"$f":"Table2[[#This Row],[Contract Price]]*Table2[[#This Row],[Quantity Sold]]","v":0},{"$f":"Table2[[#This Row],[Extended Price]]*1%","v":0}]
[836,null,null,null,null,null,null,null,null,null,null,null,{"$f":"Table2[[#This Row],[Contract Price]]*Table2[[#This Row],[Quantity Sold]]","v":0},{"$f":"Table2[[#This Row],[Extended Price]]*1%","v":0}]
[837,null,null,null,null,null,null,null,null,null,null,null,{"$f":"Table2[[#This Row],[Contract Price]]*Table2[[#This Row],[Quantity Sold]]","v":0},{"$f":"Table2[[#This Row],[Extended Price]]*1%","v":0}]
[838,null,null,null,null,null,null,null,null,null,null,null,{"$f":"Table2[[#This Row],[Contract Price]]*Table2[[#This Row],[Quantity Sold]]","v":0},{"$f":"Table2[[#This Row],[Extended Price]]*1%","v":0}]
[839,null,null,null,null,null,null,null,null,null,null,null,{"$f":"Table2[[#This Row],[Contract Price]]*Table2[[#This Row],[Quantity Sold]]","v":0},{"$f":"Table2[[#This Row],[Extended Price]]*1%","v":0}]
[840,null,null,null,null,null,null,null,null,null,null,null,{"$f":"Table2[[#This Row],[Contract Price]]*Table2[[#This Row],[Quantity Sold]]","v":0},{"$f":"Table2[[#This Row],[Extended Price]]*1%","v":0}]
[841,null,null,null,null,null,null,null,null,null,null,null,{"$f":"Table2[[#This Row],[Contract Price]]*Table2[[#This Row],[Quantity Sold]]","v":0},{"$f":"Table2[[#This Row],[Extended Price]]*1%","v":0}]
[842,null,null,null,null,null,null,null,null,null,null,null,{"$f":"Table2[[#This Row],[Contract Price]]*Table2[[#This Row],[Quantity Sold]]","v":0},{"$f":"Table2[[#This Row],[Extended Price]]*1%","v":0}]
[843,null,null,null,null,null,null,null,null,null,null,null,{"$f":"Table2[[#This Row],[Contract Price]]*Table2[[#This Row],[Quantity Sold]]","v":0},{"$f":"Table2[[#This Row],[Extended Price]]*1%","v":0}]
[844,null,null,null,null,null,null,null,null,null,null,null,{"$f":"Table2[[#This Row],[Contract Price]]*Table2[[#This Row],[Quantity Sold]]","v":0},{"$f":"Table2[[#This Row],[Extended Price]]*1%","v":0}]
[845,null,null,null,null,null,null,null,null,null,null,null,{"$f":"Table2[[#This Row],[Contract Price]]*Table2[[#This Row],[Quantity Sold]]","v":0},{"$f":"Table2[[#This Row],[Extended Price]]*1%","v":0}]
[846,null,null,null,null,null,null,null,null,null,null,null,{"$f":"Table2[[#This Row],[Contract Price]]*Table2[[#This Row],[Quantity Sold]]","v":0},{"$f":"Table2[[#This Row],[Extended Price]]*1%","v":0}]
[847,null,null,null,null,null,null,null,null,null,null,null,{"$f":"Table2[[#This Row],[Contract Price]]*Table2[[#This Row],[Quantity Sold]]","v":0},{"$f":"Table2[[#This Row],[Extended Price]]*1%","v":0}]
[848,null,null,null,null,null,null,null,null,null,null,null,{"$f":"Table2[[#This Row],[Contract Price]]*Table2[[#This Row],[Quantity Sold]]","v":0},{"$f":"Table2[[#This Row],[Extended Price]]*1%","v":0}]
[849,null,null,null,null,null,null,null,null,null,null,null,{"$f":"Table2[[#This Row],[Contract Price]]*Table2[[#This Row],[Quantity Sold]]","v":0},{"$f":"Table2[[#This Row],[Extended Price]]*1%","v":0}]
[850,null,null,null,null,null,null,null,null,null,null,null,{"$f":"Table2[[#This Row],[Contract Price]]*Table2[[#This Row],[Quantity Sold]]","v":0},{"$f":"Table2[[#This Row],[Extended Price]]*1%","v":0}]
[851,null,null,null,null,null,null,null,null,null,null,null,{"$f":"Table2[[#This Row],[Contract Price]]*Table2[[#This Row],[Quantity Sold]]","v":0},{"$f":"Table2[[#This Row],[Extended Price]]*1%","v":0}]
[852,null,null,null,null,null,null,null,null,null,null,null,{"$f":"Table2[[#This Row],[Contract Price]]*Table2[[#This Row],[Quantity Sold]]","v":0},{"$f":"Table2[[#This Row],[Extended Price]]*1%","v":0}]
[853,null,null,null,null,null,null,null,null,null,null,null,{"$f":"Table2[[#This Row],[Contract Price]]*Table2[[#This Row],[Quantity Sold]]","v":0},{"$f":"Table2[[#This Row],[Extended Price]]*1%","v":0}]
[854,null,null,null,null,null,null,null,null,null,null,null,{"$f":"Table2[[#This Row],[Contract Price]]*Table2[[#This Row],[Quantity Sold]]","v":0},{"$f":"Table2[[#This Row],[Extended Price]]*1%","v":0}]
[855,null,null,null,null,null,null,null,null,null,null,null,{"$f":"Table2[[#This Row],[Contract Price]]*Table2[[#This Row],[Quantity Sold]]","v":0},{"$f":"Table2[[#This Row],[Extended Price]]*1%","v":0}]
[856,null,null,null,null,null,null,null,null,null,null,null,{"$f":"Table2[[#This Row],[Contract Price]]*Table2[[#This Row],[Quantity Sold]]","v":0},{"$f":"Table2[[#This Row],[Extended Price]]*1%","v":0}]
[857,null,null,null,null,null,null,null,null,null,null,null,{"$f":"Table2[[#This Row],[Contract Price]]*Table2[[#This Row],[Quantity Sold]]","v":0},{"$f":"Table2[[#This Row],[Extended Price]]*1%","v":0}]
[858,null,null,null,null,null,null,null,null,null,null,null,{"$f":"Table2[[#This Row],[Contract Price]]*Table2[[#This Row],[Quantity Sold]]","v":0},{"$f":"Table2[[#This Row],[Extended Price]]*1%","v":0}]
[859,null,null,null,null,null,null,null,null,null,null,null,{"$f":"Table2[[#This Row],[Contract Price]]*Table2[[#This Row],[Quantity Sold]]","v":0},{"$f":"Table2[[#This Row],[Extended Price]]*1%","v":0}]
[860,null,null,null,null,null,null,null,null,null,null,null,{"$f":"Table2[[#This Row],[Contract Price]]*Table2[[#This Row],[Quantity Sold]]","v":0},{"$f":"Table2[[#This Row],[Extended Price]]*1%","v":0}]
[861,null,null,null,null,null,null,null,null,null,null,null,{"$f":"Table2[[#This Row],[Contract Price]]*Table2[[#This Row],[Quantity Sold]]","v":0},{"$f":"Table2[[#This Row],[Extended Price]]*1%","v":0}]
[862,null,null,null,null,null,null,null,null,null,null,null,{"$f":"Table2[[#This Row],[Contract Price]]*Table2[[#This Row],[Quantity Sold]]","v":0},{"$f":"Table2[[#This Row],[Extended Price]]*1%","v":0}]
[863,null,null,null,null,null,null,null,null,null,null,null,{"$f":"Table2[[#This Row],[Contract Price]]*Table2[[#This Row],[Quantity Sold]]","v":0},{"$f":"Table2[[#This Row],[Extended Price]]*1%","v":0}]
[864,null,null,null,null,null,null,null,null,null,null,null,{"$f":"Table2[[#This Row],[Contract Price]]*Table2[[#This Row],[Quantity Sold]]","v":0},{"$f":"Table2[[#This Row],[Extended Price]]*1%","v":0}]
[865,null,null,null,null,null,null,null,null,null,null,null,{"$f":"Table2[[#This Row],[Contract Price]]*Table2[[#This Row],[Quantity Sold]]","v":0},{"$f":"Table2[[#This Row],[Extended Price]]*1%","v":0}]
[866,null,null,null,null,null,null,null,null,null,null,null,{"$f":"Table2[[#This Row],[Contract Price]]*Table2[[#This Row],[Quantity Sold]]","v":0},{"$f":"Table2[[#This Row],[Extended Price]]*1%","v":0}]
[867,null,null,null,null,null,null,null,null,null,null,null,{"$f":"Table2[[#This Row],[Contract Price]]*Table2[[#This Row],[Quantity Sold]]","v":0},{"$f":"Table2[[#This Row],[Extended Price]]*1%","v":0}]
[868,null,null,null,null,null,null,null,null,null,null,null,{"$f":"Table2[[#This Row],[Contract Price]]*Table2[[#This Row],[Quantity Sold]]","v":0},{"$f":"Table2[[#This Row],[Extended Price]]*1%","v":0}]
[869,null,null,null,null,null,null,null,null,null,null,null,{"$f":"Table2[[#This Row],[Contract Price]]*Table2[[#This Row],[Quantity Sold]]","v":0},{"$f":"Table2[[#This Row],[Extended Price]]*1%","v":0}]
[870,null,null,null,null,null,null,null,null,null,null,null,{"$f":"Table2[[#This Row],[Contract Price]]*Table2[[#This Row],[Quantity Sold]]","v":0},{"$f":"Table2[[#This Row],[Extended Price]]*1%","v":0}]
[871,null,null,null,null,null,null,null,null,null,null,null,{"$f":"Table2[[#This Row],[Contract Price]]*Table2[[#This Row],[Quantity Sold]]","v":0},{"$f":"Table2[[#This Row],[Extended Price]]*1%","v":0}]
[872,null,null,null,null,null,null,null,null,null,null,null,{"$f":"Table2[[#This Row],[Contract Price]]*Table2[[#This Row],[Quantity Sold]]","v":0},{"$f":"Table2[[#This Row],[Extended Price]]*1%","v":0}]
[873,null,null,null,null,null,null,null,null,null,null,null,{"$f":"Table2[[#This Row],[Contract Price]]*Table2[[#This Row],[Quantity Sold]]","v":0},{"$f":"Table2[[#This Row],[Extended Price]]*1%","v":0}]
[874,null,null,null,null,null,null,null,null,null,null,null,{"$f":"Table2[[#This Row],[Contract Price]]*Table2[[#This Row],[Quantity Sold]]","v":0},{"$f":"Table2[[#This Row],[Extended Price]]*1%","v":0}]
[875,null,null,null,null,null,null,null,null,null,null,null,{"$f":"Table2[[#This Row],[Contract Price]]*Table2[[#This Row],[Quantity Sold]]","v":0},{"$f":"Table2[[#This Row],[Extended Price]]*1%","v":0}]
[876,null,null,null,null,null,null,null,null,null,null,null,{"$f":"Table2[[#This Row],[Contract Price]]*Table2[[#This Row],[Quantity Sold]]","v":0},{"$f":"Table2[[#This Row],[Extended Price]]*1%","v":0}]
[877,null,null,null,null,null,null,null,null,null,null,null,{"$f":"Table2[[#This Row],[Contract Price]]*Table2[[#This Row],[Quantity Sold]]","v":0},{"$f":"Table2[[#This Row],[Extended Price]]*1%","v":0}]
[878,null,null,null,null,null,null,null,null,null,null,null,{"$f":"Table2[[#This Row],[Contract Price]]*Table2[[#This Row],[Quantity Sold]]","v":0},{"$f":"Table2[[#This Row],[Extended Price]]*1%","v":0}]
[879,null,null,null,null,null,null,null,null,null,null,null,{"$f":"Table2[[#This Row],[Contract Price]]*Table2[[#This Row],[Quantity Sold]]","v":0},{"$f":"Table2[[#This Row],[Extended Price]]*1%","v":0}]
[880,null,null,null,null,null,null,null,null,null,null,null,{"$f":"Table2[[#This Row],[Contract Price]]*Table2[[#This Row],[Quantity Sold]]","v":0},{"$f":"Table2[[#This Row],[Extended Price]]*1%","v":0}]
[881,null,null,null,null,null,null,null,null,null,null,null,{"$f":"Table2[[#This Row],[Contract Price]]*Table2[[#This Row],[Quantity Sold]]","v":0},{"$f":"Table2[[#This Row],[Extended Price]]*1%","v":0}]
[882,null,null,null,null,null,null,null,null,null,null,null,{"$f":"Table2[[#This Row],[Contract Price]]*Table2[[#This Row],[Quantity Sold]]","v":0},{"$f":"Table2[[#This Row],[Extended Price]]*1%","v":0}]
[883,null,null,null,null,null,null,null,null,null,null,null,{"$f":"Table2[[#This Row],[Contract Price]]*Table2[[#This Row],[Quantity Sold]]","v":0},{"$f":"Table2[[#This Row],[Extended Price]]*1%","v":0}]
[884,null,null,null,null,null,null,null,null,null,null,null,{"$f":"Table2[[#This Row],[Contract Price]]*Table2[[#This Row],[Quantity Sold]]","v":0},{"$f":"Table2[[#This Row],[Extended Price]]*1%","v":0}]
[885,null,null,null,null,null,null,null,null,null,null,null,{"$f":"Table2[[#This Row],[Contract Price]]*Table2[[#This Row],[Quantity Sold]]","v":0},{"$f":"Table2[[#This Row],[Extended Price]]*1%","v":0}]
[886,null,null,null,null,null,null,null,null,null,null,null,{"$f":"Table2[[#This Row],[Contract Price]]*Table2[[#This Row],[Quantity Sold]]","v":0},{"$f":"Table2[[#This Row],[Extended Price]]*1%","v":0}]
[887,null,null,null,null,null,null,null,null,null,null,null,{"$f":"Table2[[#This Row],[Contract Price]]*Table2[[#This Row],[Quantity Sold]]","v":0},{"$f":"Table2[[#This Row],[Extended Price]]*1%","v":0}]
[888,null,null,null,null,null,null,null,null,null,null,null,{"$f":"Table2[[#This Row],[Contract Price]]*Table2[[#This Row],[Quantity Sold]]","v":0},{"$f":"Table2[[#This Row],[Extended Price]]*1%","v":0}]
[889,null,null,null,null,null,null,null,null,null,null,null,{"$f":"Table2[[#This Row],[Contract Price]]*Table2[[#This Row],[Quantity Sold]]","v":0},{"$f":"Table2[[#This Row],[Extended Price]]*1%","v":0}]
[890,null,null,null,null,null,null,null,null,null,null,null,{"$f":"Table2[[#This Row],[Contract Price]]*Table2[[#This Row],[Quantity Sold]]","v":0},{"$f":"Table2[[#This Row],[Extended Price]]*1%","v":0}]
[891,null,null,null,null,null,null,null,null,null,null,null,{"$f":"Table2[[#This Row],[Contract Price]]*Table2[[#This Row],[Quantity Sold]]","v":0},{"$f":"Table2[[#This Row],[Extended Price]]*1%","v":0}]
[892,null,null,null,null,null,null,null,null,null,null,null,{"$f":"Table2[[#This Row],[Contract Price]]*Table2[[#This Row],[Quantity Sold]]","v":0},{"$f":"Table2[[#This Row],[Extended Price]]*1%","v":0}]
[893,null,null,null,null,null,null,null,null,null,null,null,{"$f":"Table2[[#This Row],[Contract Price]]*Table2[[#This Row],[Quantity Sold]]","v":0},{"$f":"Table2[[#This Row],[Extended Price]]*1%","v":0}]
[894,null,null,null,null,null,null,null,null,null,null,null,{"$f":"Table2[[#This Row],[Contract Price]]*Table2[[#This Row],[Quantity Sold]]","v":0},{"$f":"Table2[[#This Row],[Extended Price]]*1%","v":0}]
[895,null,null,null,null,null,null,null,null,null,null,null,{"$f":"Table2[[#This Row],[Contract Price]]*Table2[[#This Row],[Quantity Sold]]","v":0},{"$f":"Table2[[#This Row],[Extended Price]]*1%","v":0}]
[896,null,null,null,null,null,null,null,null,null,null,null,{"$f":"Table2[[#This Row],[Contract Price]]*Table2[[#This Row],[Quantity Sold]]","v":0},{"$f":"Table2[[#This Row],[Extended Price]]*1%","v":0}]
[897,null,null,null,null,null,null,null,null,null,null,null,{"$f":"Table2[[#This Row],[Contract Price]]*Table2[[#This Row],[Quantity Sold]]","v":0},{"$f":"Table2[[#This Row],[Extended Price]]*1%","v":0}]
[898,null,null,null,null,null,null,null,null,null,null,null,{"$f":"Table2[[#This Row],[Contract Price]]*Table2[[#This Row],[Quantity Sold]]","v":0},{"$f":"Table2[[#This Row],[Extended Price]]*1%","v":0}]
[899,null,null,null,null,null,null,null,null,null,null,null,{"$f":"Table2[[#This Row],[Contract Price]]*Table2[[#This Row],[Quantity Sold]]","v":0},{"$f":"Table2[[#This Row],[Extended Price]]*1%","v":0}]
[900,null,null,null,null,null,null,null,null,null,null,null,{"$f":"Table2[[#This Row],[Contract Price]]*Table2[[#This Row],[Quantity Sold]]","v":0},{"$f":"Table2[[#This Row],[Extended Price]]*1%","v":0}]
[901,null,null,null,null,null,null,null,null,null,null,null,{"$f":"Table2[[#This Row],[Contract Price]]*Table2[[#This Row],[Quantity Sold]]","v":0},{"$f":"Table2[[#This Row],[Extended Price]]*1%","v":0}]
[902,null,null,null,null,null,null,null,null,null,null,null,{"$f":"Table2[[#This Row],[Contract Price]]*Table2[[#This Row],[Quantity Sold]]","v":0},{"$f":"Table2[[#This Row],[Extended Price]]*1%","v":0}]
[903,null,null,null,null,null,null,null,null,null,null,null,{"$f":"Table2[[#This Row],[Contract Price]]*Table2[[#This Row],[Quantity Sold]]","v":0},{"$f":"Table2[[#This Row],[Extended Price]]*1%","v":0}]
[904,null,null,null,null,null,null,null,null,null,null,null,{"$f":"Table2[[#This Row],[Contract Price]]*Table2[[#This Row],[Quantity Sold]]","v":0},{"$f":"Table2[[#This Row],[Extended Price]]*1%","v":0}]
[905,null,null,null,null,null,null,null,null,null,null,null,{"$f":"Table2[[#This Row],[Contract Price]]*Table2[[#This Row],[Quantity Sold]]","v":0},{"$f":"Table2[[#This Row],[Extended Price]]*1%","v":0}]
[906,null,null,null,null,null,null,null,null,null,null,null,{"$f":"Table2[[#This Row],[Contract Price]]*Table2[[#This Row],[Quantity Sold]]","v":0},{"$f":"Table2[[#This Row],[Extended Price]]*1%","v":0}]
[907,null,null,null,null,null,null,null,null,null,null,null,{"$f":"Table2[[#This Row],[Contract Price]]*Table2[[#This Row],[Quantity Sold]]","v":0},{"$f":"Table2[[#This Row],[Extended Price]]*1%","v":0}]
[908,null,null,null,null,null,null,null,null,null,null,null,{"$f":"Table2[[#This Row],[Contract Price]]*Table2[[#This Row],[Quantity Sold]]","v":0},{"$f":"Table2[[#This Row],[Extended Price]]*1%","v":0}]
[909,null,null,null,null,null,null,null,null,null,null,null,{"$f":"Table2[[#This Row],[Contract Price]]*Table2[[#This Row],[Quantity Sold]]","v":0},{"$f":"Table2[[#This Row],[Extended Price]]*1%","v":0}]
[910,null,null,null,null,null,null,null,null,null,null,null,{"$f":"Table2[[#This Row],[Contract Price]]*Table2[[#This Row],[Quantity Sold]]","v":0},{"$f":"Table2[[#This Row],[Extended Price]]*1%","v":0}]
[911,null,null,null,null,null,null,null,null,null,null,null,{"$f":"Table2[[#This Row],[Contract Price]]*Table2[[#This Row],[Quantity Sold]]","v":0},{"$f":"Table2[[#This Row],[Extended Price]]*1%","v":0}]
[912,null,null,null,null,null,null,null,null,null,null,null,{"$f":"Table2[[#This Row],[Contract Price]]*Table2[[#This Row],[Quantity Sold]]","v":0},{"$f":"Table2[[#This Row],[Extended Price]]*1%","v":0}]
[913,null,null,null,null,null,null,null,null,null,null,null,{"$f":"Table2[[#This Row],[Contract Price]]*Table2[[#This Row],[Quantity Sold]]","v":0},{"$f":"Table2[[#This Row],[Extended Price]]*1%","v":0}]
[914,null,null,null,null,null,null,null,null,null,null,null,{"$f":"Table2[[#This Row],[Contract Price]]*Table2[[#This Row],[Quantity Sold]]","v":0},{"$f":"Table2[[#This Row],[Extended Price]]*1%","v":0}]
[915,null,null,null,null,null,null,null,null,null,null,null,{"$f":"Table2[[#This Row],[Contract Price]]*Table2[[#This Row],[Quantity Sold]]","v":0},{"$f":"Table2[[#This Row],[Extended Price]]*1%","v":0}]
[916,null,null,null,null,null,null,null,null,null,null,null,{"$f":"Table2[[#This Row],[Contract Price]]*Table2[[#This Row],[Quantity Sold]]","v":0},{"$f":"Table2[[#This Row],[Extended Price]]*1%","v":0}]
[917,null,null,null,null,null,null,null,null,null,null,null,{"$f":"Table2[[#This Row],[Contract Price]]*Table2[[#This Row],[Quantity Sold]]","v":0},{"$f":"Table2[[#This Row],[Extended Price]]*1%","v":0}]
[918,null,null,null,null,null,null,null,null,null,null,null,{"$f":"Table2[[#This Row],[Contract Price]]*Table2[[#This Row],[Quantity Sold]]","v":0},{"$f":"Table2[[#This Row],[Extended Price]]*1%","v":0}]
[919,null,null,null,null,null,null,null,null,null,null,null,{"$f":"Table2[[#This Row],[Contract Price]]*Table2[[#This Row],[Quantity Sold]]","v":0},{"$f":"Table2[[#This Row],[Extended Price]]*1%","v":0}]
[920,null,null,null,null,null,null,null,null,null,null,null,{"$f":"Table2[[#This Row],[Contract Price]]*Table2[[#This Row],[Quantity Sold]]","v":0},{"$f":"Table2[[#This Row],[Extended Price]]*1%","v":0}]
[921,null,null,null,null,null,null,null,null,null,null,null,{"$f":"Table2[[#This Row],[Contract Price]]*Table2[[#This Row],[Quantity Sold]]","v":0},{"$f":"Table2[[#This Row],[Extended Price]]*1%","v":0}]
[922,null,null,null,null,null,null,null,null,null,null,null,{"$f":"Table2[[#This Row],[Contract Price]]*Table2[[#This Row],[Quantity Sold]]","v":0},{"$f":"Table2[[#This Row],[Extended Price]]*1%","v":0}]
[923,null,null,null,null,null,null,null,null,null,null,null,{"$f":"Table2[[#This Row],[Contract Price]]*Table2[[#This Row],[Quantity Sold]]","v":0},{"$f":"Table2[[#This Row],[Extended Price]]*1%","v":0}]
[924,null,null,null,null,null,null,null,null,null,null,null,{"$f":"Table2[[#This Row],[Contract Price]]*Table2[[#This Row],[Quantity Sold]]","v":0},{"$f":"Table2[[#This Row],[Extended Price]]*1%","v":0}]
[925,null,null,null,null,null,null,null,null,null,null,null,{"$f":"Table2[[#This Row],[Contract Price]]*Table2[[#This Row],[Quantity Sold]]","v":0},{"$f":"Table2[[#This Row],[Extended Price]]*1%","v":0}]
[926,null,null,null,null,null,null,null,null,null,null,null,{"$f":"Table2[[#This Row],[Contract Price]]*Table2[[#This Row],[Quantity Sold]]","v":0},{"$f":"Table2[[#This Row],[Extended Price]]*1%","v":0}]
[927,null,null,null,null,null,null,null,null,null,null,null,{"$f":"Table2[[#This Row],[Contract Price]]*Table2[[#This Row],[Quantity Sold]]","v":0},{"$f":"Table2[[#This Row],[Extended Price]]*1%","v":0}]
[928,null,null,null,null,null,null,null,null,null,null,null,{"$f":"Table2[[#This Row],[Contract Price]]*Table2[[#This Row],[Quantity Sold]]","v":0},{"$f":"Table2[[#This Row],[Extended Price]]*1%","v":0}]
[929,null,null,null,null,null,null,null,null,null,null,null,{"$f":"Table2[[#This Row],[Contract Price]]*Table2[[#This Row],[Quantity Sold]]","v":0},{"$f":"Table2[[#This Row],[Extended Price]]*1%","v":0}]
[930,null,null,null,null,null,null,null,null,null,null,null,{"$f":"Table2[[#This Row],[Contract Price]]*Table2[[#This Row],[Quantity Sold]]","v":0},{"$f":"Table2[[#This Row],[Extended Price]]*1%","v":0}]
[931,null,null,null,null,null,null,null,null,null,null,null,{"$f":"Table2[[#This Row],[Contract Price]]*Table2[[#This Row],[Quantity Sold]]","v":0},{"$f":"Table2[[#This Row],[Extended Price]]*1%","v":0}]
[932,null,null,null,null,null,null,null,null,null,null,null,{"$f":"Table2[[#This Row],[Contract Price]]*Table2[[#This Row],[Quantity Sold]]","v":0},{"$f":"Table2[[#This Row],[Extended Price]]*1%","v":0}]
[933,null,null,null,null,null,null,null,null,null,null,null,{"$f":"Table2[[#This Row],[Contract Price]]*Table2[[#This Row],[Quantity Sold]]","v":0},{"$f":"Table2[[#This Row],[Extended Price]]*1%","v":0}]
[934,null,null,null,null,null,null,null,null,null,null,null,{"$f":"Table2[[#This Row],[Contract Price]]*Table2[[#This Row],[Quantity Sold]]","v":0},{"$f":"Table2[[#This Row],[Extended Price]]*1%","v":0}]
[935,null,null,null,null,null,null,null,null,null,null,null,{"$f":"Table2[[#This Row],[Contract Price]]*Table2[[#This Row],[Quantity Sold]]","v":0},{"$f":"Table2[[#This Row],[Extended Price]]*1%","v":0}]
[936,null,null,null,null,null,null,null,null,null,null,null,{"$f":"Table2[[#This Row],[Contract Price]]*Table2[[#This Row],[Quantity Sold]]","v":0},{"$f":"Table2[[#This Row],[Extended Price]]*1%","v":0}]
[937,null,null,null,null,null,null,null,null,null,null,null,{"$f":"Table2[[#This Row],[Contract Price]]*Table2[[#This Row],[Quantity Sold]]","v":0},{"$f":"Table2[[#This Row],[Extended Price]]*1%","v":0}]
[938,null,null,null,null,null,null,null,null,null,null,null,{"$f":"Table2[[#This Row],[Contract Price]]*Table2[[#This Row],[Quantity Sold]]","v":0},{"$f":"Table2[[#This Row],[Extended Price]]*1%","v":0}]
[939,null,null,null,null,null,null,null,null,null,null,null,{"$f":"Table2[[#This Row],[Contract Price]]*Table2[[#This Row],[Quantity Sold]]","v":0},{"$f":"Table2[[#This Row],[Extended Price]]*1%","v":0}]
[940,null,null,null,null,null,null,null,null,null,null,null,{"$f":"Table2[[#This Row],[Contract Price]]*Table2[[#This Row],[Quantity Sold]]","v":0},{"$f":"Table2[[#This Row],[Extended Price]]*1%","v":0}]
[941,null,null,null,null,null,null,null,null,null,null,null,{"$f":"Table2[[#This Row],[Contract Price]]*Table2[[#This Row],[Quantity Sold]]","v":0},{"$f":"Table2[[#This Row],[Extended Price]]*1%","v":0}]
[942,null,null,null,null,null,null,null,null,null,null,null,{"$f":"Table2[[#This Row],[Contract Price]]*Table2[[#This Row],[Quantity Sold]]","v":0},{"$f":"Table2[[#This Row],[Extended Price]]*1%","v":0}]
[943,null,null,null,null,null,null,null,null,null,null,null,{"$f":"Table2[[#This Row],[Contract Price]]*Table2[[#This Row],[Quantity Sold]]","v":0},{"$f":"Table2[[#This Row],[Extended Price]]*1%","v":0}]
[944,null,null,null,null,null,null,null,null,null,null,null,{"$f":"Table2[[#This Row],[Contract Price]]*Table2[[#This Row],[Quantity Sold]]","v":0},{"$f":"Table2[[#This Row],[Extended Price]]*1%","v":0}]
[945,null,null,null,null,null,null,null,null,null,null,null,{"$f":"Table2[[#This Row],[Contract Price]]*Table2[[#This Row],[Quantity Sold]]","v":0},{"$f":"Table2[[#This Row],[Extended Price]]*1%","v":0}]
[946,null,null,null,null,null,null,null,null,null,null,null,{"$f":"Table2[[#This Row],[Contract Price]]*Table2[[#This Row],[Quantity Sold]]","v":0},{"$f":"Table2[[#This Row],[Extended Price]]*1%","v":0}]
[947,null,null,null,null,null,null,null,null,null,null,null,{"$f":"Table2[[#This Row],[Contract Price]]*Table2[[#This Row],[Quantity Sold]]","v":0},{"$f":"Table2[[#This Row],[Extended Price]]*1%","v":0}]
[948,null,null,null,null,null,null,null,null,null,null,null,{"$f":"Table2[[#This Row],[Contract Price]]*Table2[[#This Row],[Quantity Sold]]","v":0},{"$f":"Table2[[#This Row],[Extended Price]]*1%","v":0}]
[949,null,null,null,null,null,null,null,null,null,null,null,{"$f":"Table2[[#This Row],[Contract Price]]*Table2[[#This Row],[Quantity Sold]]","v":0},{"$f":"Table2[[#This Row],[Extended Price]]*1%","v":0}]
[950,null,null,null,null,null,null,null,null,null,null,null,{"$f":"Table2[[#This Row],[Contract Price]]*Table2[[#This Row],[Quantity Sold]]","v":0},{"$f":"Table2[[#This Row],[Extended Price]]*1%","v":0}]
[951,null,null,null,null,null,null,null,null,null,null,null,{"$f":"Table2[[#This Row],[Contract Price]]*Table2[[#This Row],[Quantity Sold]]","v":0},{"$f":"Table2[[#This Row],[Extended Price]]*1%","v":0}]
[952,null,null,null,null,null,null,null,null,null,null,null,{"$f":"Table2[[#This Row],[Contract Price]]*Table2[[#This Row],[Quantity Sold]]","v":0},{"$f":"Table2[[#This Row],[Extended Price]]*1%","v":0}]
[953,null,null,null,null,null,null,null,null,null,null,null,{"$f":"Table2[[#This Row],[Contract Price]]*Table2[[#This Row],[Quantity Sold]]","v":0},{"$f":"Table2[[#This Row],[Extended Price]]*1%","v":0}]
[954,null,null,null,null,null,null,null,null,null,null,null,{"$f":"Table2[[#This Row],[Contract Price]]*Table2[[#This Row],[Quantity Sold]]","v":0},{"$f":"Table2[[#This Row],[Extended Price]]*1%","v":0}]
[955,null,null,null,null,null,null,null,null,null,null,null,{"$f":"Table2[[#This Row],[Contract Price]]*Table2[[#This Row],[Quantity Sold]]","v":0},{"$f":"Table2[[#This Row],[Extended Price]]*1%","v":0}]
[956,null,null,null,null,null,null,null,null,null,null,null,{"$f":"Table2[[#This Row],[Contract Price]]*Table2[[#This Row],[Quantity Sold]]","v":0},{"$f":"Table2[[#This Row],[Extended Price]]*1%","v":0}]
[957,null,null,null,null,null,null,null,null,null,null,null,{"$f":"Table2[[#This Row],[Contract Price]]*Table2[[#This Row],[Quantity Sold]]","v":0},{"$f":"Table2[[#This Row],[Extended Price]]*1%","v":0}]
[958,null,null,null,null,null,null,null,null,null,null,null,{"$f":"Table2[[#This Row],[Contract Price]]*Table2[[#This Row],[Quantity Sold]]","v":0},{"$f":"Table2[[#This Row],[Extended Price]]*1%","v":0}]
[959,null,null,null,null,null,null,null,null,null,null,null,{"$f":"Table2[[#This Row],[Contract Price]]*Table2[[#This Row],[Quantity Sold]]","v":0},{"$f":"Table2[[#This Row],[Extended Price]]*1%","v":0}]
[960,null,null,null,null,null,null,null,null,null,null,null,{"$f":"Table2[[#This Row],[Contract Price]]*Table2[[#This Row],[Quantity Sold]]","v":0},{"$f":"Table2[[#This Row],[Extended Price]]*1%","v":0}]
[961,null,null,null,null,null,null,null,null,null,null,null,{"$f":"Table2[[#This Row],[Contract Price]]*Table2[[#This Row],[Quantity Sold]]","v":0},{"$f":"Table2[[#This Row],[Extended Price]]*1%","v":0}]
[962,null,null,null,null,null,null,null,null,null,null,null,{"$f":"Table2[[#This Row],[Contract Price]]*Table2[[#This Row],[Quantity Sold]]","v":0},{"$f":"Table2[[#This Row],[Extended Price]]*1%","v":0}]
[963,null,null,null,null,null,null,null,null,null,null,null,{"$f":"Table2[[#This Row],[Contract Price]]*Table2[[#This Row],[Quantity Sold]]","v":0},{"$f":"Table2[[#This Row],[Extended Price]]*1%","v":0}]
[964,null,null,null,null,null,null,null,null,null,null,null,{"$f":"Table2[[#This Row],[Contract Price]]*Table2[[#This Row],[Quantity Sold]]","v":0},{"$f":"Table2[[#This Row],[Extended Price]]*1%","v":0}]
[965,null,null,null,null,null,null,null,null,null,null,null,{"$f":"Table2[[#This Row],[Contract Price]]*Table2[[#This Row],[Quantity Sold]]","v":0},{"$f":"Table2[[#This Row],[Extended Price]]*1%","v":0}]
[966,null,null,null,null,null,null,null,null,null,null,null,{"$f":"Table2[[#This Row],[Contract Price]]*Table2[[#This Row],[Quantity Sold]]","v":0},{"$f":"Table2[[#This Row],[Extended Price]]*1%","v":0}]
[967,null,null,null,null,null,null,null,null,null,null,null,{"$f":"Table2[[#This Row],[Contract Price]]*Table2[[#This Row],[Quantity Sold]]","v":0},{"$f":"Table2[[#This Row],[Extended Price]]*1%","v":0}]
[968,null,null,null,null,null,null,null,null,null,null,null,{"$f":"Table2[[#This Row],[Contract Price]]*Table2[[#This Row],[Quantity Sold]]","v":0},{"$f":"Table2[[#This Row],[Extended Price]]*1%","v":0}]
[969,null,null,null,null,null,null,null,null,null,null,null,{"$f":"Table2[[#This Row],[Contract Price]]*Table2[[#This Row],[Quantity Sold]]","v":0},{"$f":"Table2[[#This Row],[Extended Price]]*1%","v":0}]
[970,null,null,null,null,null,null,null,null,null,null,null,{"$f":"Table2[[#This Row],[Contract Price]]*Table2[[#This Row],[Quantity Sold]]","v":0},{"$f":"Table2[[#This Row],[Extended Price]]*1%","v":0}]
[971,null,null,null,null,null,null,null,null,null,null,null,{"$f":"Table2[[#This Row],[Contract Price]]*Table2[[#This Row],[Quantity Sold]]","v":0},{"$f":"Table2[[#This Row],[Extended Price]]*1%","v":0}]
[972,null,null,null,null,null,null,null,null,null,null,null,{"$f":"Table2[[#This Row],[Contract Price]]*Table2[[#This Row],[Quantity Sold]]","v":0},{"$f":"Table2[[#This Row],[Extended Price]]*1%","v":0}]
[973,null,null,null,null,null,null,null,null,null,null,null,{"$f":"Table2[[#This Row],[Contract Price]]*Table2[[#This Row],[Quantity Sold]]","v":0},{"$f":"Table2[[#This Row],[Extended Price]]*1%","v":0}]
[974,null,null,null,null,null,null,null,null,null,null,null,{"$f":"Table2[[#This Row],[Contract Price]]*Table2[[#This Row],[Quantity Sold]]","v":0},{"$f":"Table2[[#This Row],[Extended Price]]*1%","v":0}]
[975,null,null,null,null,null,null,null,null,null,null,null,{"$f":"Table2[[#This Row],[Contract Price]]*Table2[[#This Row],[Quantity Sold]]","v":0},{"$f":"Table2[[#This Row],[Extended Price]]*1%","v":0}]
[976,null,null,null,null,null,null,null,null,null,null,null,{"$f":"Table2[[#This Row],[Contract Price]]*Table2[[#This Row],[Quantity Sold]]","v":0},{"$f":"Table2[[#This Row],[Extended Price]]*1%","v":0}]
[977,null,null,null,null,null,null,null,null,null,null,null,{"$f":"Table2[[#This Row],[Contract Price]]*Table2[[#This Row],[Quantity Sold]]","v":0},{"$f":"Table2[[#This Row],[Extended Price]]*1%","v":0}]
[978,null,null,null,null,null,null,null,null,null,null,null,{"$f":"Table2[[#This Row],[Contract Price]]*Table2[[#This Row],[Quantity Sold]]","v":0},{"$f":"Table2[[#This Row],[Extended Price]]*1%","v":0}]
[979,null,null,null,null,null,null,null,null,null,null,null,{"$f":"Table2[[#This Row],[Contract Price]]*Table2[[#This Row],[Quantity Sold]]","v":0},{"$f":"Table2[[#This Row],[Extended Price]]*1%","v":0}]
[980,null,null,null,null,null,null,null,null,null,null,null,{"$f":"Table2[[#This Row],[Contract Price]]*Table2[[#This Row],[Quantity Sold]]","v":0},{"$f":"Table2[[#This Row],[Extended Price]]*1%","v":0}]
[981,null,null,null,null,null,null,null,null,null,null,null,{"$f":"Table2[[#This Row],[Contract Price]]*Table2[[#This Row],[Quantity Sold]]","v":0},{"$f":"Table2[[#This Row],[Extended Price]]*1%","v":0}]
[982,null,null,null,null,null,null,null,null,null,null,null,{"$f":"Table2[[#This Row],[Contract Price]]*Table2[[#This Row],[Quantity Sold]]","v":0},{"$f":"Table2[[#This Row],[Extended Price]]*1%","v":0}]
[983,null,null,null,null,null,null,null,null,null,null,null,{"$f":"Table2[[#This Row],[Contract Price]]*Table2[[#This Row],[Quantity Sold]]","v":0},{"$f":"Table2[[#This Row],[Extended Price]]*1%","v":0}]
[984,null,null,null,null,null,null,null,null,null,null,null,{"$f":"Table2[[#This Row],[Contract Price]]*Table2[[#This Row],[Quantity Sold]]","v":0},{"$f":"Table2[[#This Row],[Extended Price]]*1%","v":0}]
[985,null,null,null,null,null,null,null,null,null,null,null,{"$f":"Table2[[#This Row],[Contract Price]]*Table2[[#This Row],[Quantity Sold]]","v":0},{"$f":"Table2[[#This Row],[Extended Price]]*1%","v":0}]
[986,null,null,null,null,null,null,null,null,null,null,null,{"$f":"Table2[[#This Row],[Contract Price]]*Table2[[#This Row],[Quantity Sold]]","v":0},{"$f":"Table2[[#This Row],[Extended Price]]*1%","v":0}]
[987,null,null,null,null,null,null,null,null,null,null,null,{"$f":"Table2[[#This Row],[Contract Price]]*Table2[[#This Row],[Quantity Sold]]","v":0},{"$f":"Table2[[#This Row],[Extended Price]]*1%","v":0}]
[988,null,null,null,null,null,null,null,null,null,null,null,{"$f":"Table2[[#This Row],[Contract Price]]*Table2[[#This Row],[Quantity Sold]]","v":0},{"$f":"Table2[[#This Row],[Extended Price]]*1%","v":0}]
[989,null,null,null,null,null,null,null,null,null,null,null,{"$f":"Table2[[#This Row],[Contract Price]]*Table2[[#This Row],[Quantity Sold]]","v":0},{"$f":"Table2[[#This Row],[Extended Price]]*1%","v":0}]
[990,null,null,null,null,null,null,null,null,null,null,null,{"$f":"Table2[[#This Row],[Contract Price]]*Table2[[#This Row],[Quantity Sold]]","v":0},{"$f":"Table2[[#This Row],[Extended Price]]*1%","v":0}]
[991,null,null,null,null,null,null,null,null,null,null,null,{"$f":"Table2[[#This Row],[Contract Price]]*Table2[[#This Row],[Quantity Sold]]","v":0},{"$f":"Table2[[#This Row],[Extended Price]]*1%","v":0}]
[992,null,null,null,null,null,null,null,null,null,null,null,{"$f":"Table2[[#This Row],[Contract Price]]*Table2[[#This Row],[Quantity Sold]]","v":0},{"$f":"Table2[[#This Row],[Extended Price]]*1%","v":0}]
[1001,null,null,null,null,null,null,null,null,null,null,null,{"$f":"Table2[[#This Row],[Contract Price]]*Table2[[#This Row],[Quantity Sold]]","v":0},{"$f":"Table2[[#This Row],[Extended Price]]*1%","v":0}]
[]
[null,null,null,null,null,null,null,null,null,null,null,null,{"$f":"SUM(M9:M1002)","v":0},{"$f":"SUM(N9:N1002)","v":0}]

{"sheet":" Abbreviation List","index":2,"n_rows":174,"n_cols":8,"rows_kept":174,"cut":false,"hidden":false,"merged":[]}
["PURCHASING ENTITY ABBREVIATION LIST"]
[]
[null,"State Agency Name","State Agency Abbreviation","State Agency Number",null,"Public Higher Education Institution Name","Public Higher Education Institution  Abbreviation","Higher Education Agency Number"]
[null,"ABLE Tech, Oklahoma","ATECH",1337,null,"Cameron University","CU",100]
[null,"Abstractors Board, Oklahoma","OABSB",22,null,"Carl Albert State College","CASC",108]
[null,"Accountancy Board, Oklahoma","OAB",20,null,"Connors State College","CSC",165]
[null,"Accrediting Agency, State","SAA",null,null,"East Central University","ECU",230]
[null,"Aeronautics Commission, Oklahoma","OAC",60,null,"Eastern Oklahoma State College","EOSC",240]
[null,"Agriculture, Food and Forestry, Oklahoma Department of","AGR",40,null,"Langston University","LU",420]
[null,"Alcohol and Drug Counselors, Oklahoma State Board of Licensed","OSBLADC",448,null,"Murray State College","MSCOK",470]
[null,"Alcoholic Beverage Laws Enforcement (ABLE) Commission","ABLE",30,null,"Northeastern Oklahoma A & M College","NEO",480]
[null,"Anatomical Board, State","SAB",44,null,"Northeastern State University","NSUOK",485]
[null,"Architects, Landscape Architects and Interior Designers, Oklahoma Board of the Licensed","AID",45,null,"Northern Oklahoma College","NOC",490]
[null,"Arts Council, Oklahoma","ARTS",55,null,"Northwestern Oklahoma St. University","NWOSU",505]
[null,"Attorney General, Office of the","AG",49,null,"Oklahoma City Community College","OCCC",633]
[null,"Auditor and Inspector, State","SAI",300,null,"Oklahoma Panhandle State University","OPSU",530]
[null,"Banking Department, Oklahoma State","OSBD",65,null,"Oklahoma State University","OSU",10]
[null,"Banking Department, Oklahoma State - Credit Union Board, Oklahoma State","OSBD","65a",null,"Oklahoma State University -  AgrAbility","OSU","12a"]
[null,"Boll Weevil Eradication Organization, Oklahoma","OBWEO",39,null,"Oklahoma State University - Experiment Station","OSU",11]
[null,"Bond Advisor, Oklahoma State","OSBA",582,null,"Oklahoma State University - Extension Division","OSU",12]
[null,"Bond Advisor, Oklahoma State - Long-Range Capital Planning Commission","OSBA","582a",null,"Oklahoma State University - Osteopathic Medicine, College of","OSU",773]
[null,"Bond Oversight, Council of","CBO",null,null,"Oklahoma State University - Technical Branch, Oklahoma City","OSU",15]
[null,"Building Bonds Commission","BBC",91,null,"Oklahoma State University - Technical Branch, Okmulgee","OSU",13]
[null,"Bureau of Investigation, Oklahoma State of","OSBI",308,null,"Oklahoma State University - Tulsa","OSU",16]
[null,"Capital Investment Board, Oklahoma","OCIB",915,null,"Oklahoma State University - Veterinary Medicine, College of","OSU",14]
[null,"Capitol Improvement Authority, Oklahoma","OCIA",105,null,"Redlands Community College","RCC",241]
[null,"Capitol-Medical Center Improvement and Zoning Commission","ZONING",null,null,"Rogers State University","RSU",461]
[null,"Career and Technology Education, Department of","CTE",800,null,"Rose State College","RSC",531]
[null,"Center for Advancement of Science & Technology","OCAST",628,null,"Seminole State College","SSC",623]
[null,"Children and Youth, Oklahoma Commission on","OKKIDS",127,null,"Southeastern Oklahoma St. University","SEOSU",660]
[null,"Chiropractic Examiners, State Board of","SBCE",145,null,"Southwestern Oklahoma State University","SWOSU",665]
[null,"Climatological Survey, Oklahoma","OCS",0,null,"Tulsa Community College","TCC",750]
[null,"Commerce, Department of","ODCOMM",160,null,"University Center at Ponca City","UCPC",758]
[null,"Conservation Commission, Oklahoma","CC",645,null,"University Center at Tulsa","UCT",774]
[null,"Construction Industries Board","CIB",170,null,"University Center Southern Oklahoma - Ardmore Higher Education Center","UCSO",606]
[null,"Construction Industries Board","OKDOCC",635,null,"University of Central Oklahoma","UCO",120]
[null,"Corporation Commission, Oklahoma","OCC",185,null,"University of Oklahoma","OU",760]
[null,"Corrections, Department of","DOC",131,null,"University of Oklahoma- Biological Survey","OU",760]
[null,"Cosmetology Board",null,190,null,"University of Oklahoma Health Sciences Center","OUHSC",770]
[null,"Council on Law Enforcement Education & Training - CLEET","CLEET",415,null,"University of Oklahoma Law Center","OU",761]
[null,"Council on Law Enforcement Education & Training - CLEET - Polygraph Examiners Board","CLEET","415a",null,"University of Science & Arts of Oklahoma","USAO",150]
[null,"Criminal Appeals, Court of","OKCCA",199,null,"Western Oklahoma State College","WOSC",41]
[null,"Dentistry, Board of","OBD",215]
[null,"Development Finance Authority, Oklahoma","OFA",900]
[null,"Developmental Disabilities Council, Oklahoma","ODDC"]
[null,"Disability Concerns, Office of","ODC",326]
[null,"District Attorneys Council","DAC",220]
[null,"District Courts","DC",219]
[null,"Education Oversight Board/Office of Accountability","EOBOA"]
[null,"Education, State Department of","SDE",265]
[null,"Educational Television Authority, Oklahoma","OETA",266]
[null,"Election Board, Oklahoma State","OSEB",270]
[null,"Emergency Management, Oklahoma Department of","OEM",309]
[null,"Employees Benefits Council","EBC",815]
[null,"Employment Security Commission, Oklahoma","OESC",290]
[null,"Energy Resources Board, Oklahoma","OERB",359]
[null,"Environmental Quality, Department of","DEQ",292]
[null,"Ethics Commission","ETHICS",296]
[null,"Ethics Commission","OFBCI"]
[null,"Film and Music Commission, Office of the Oklahoma","FMC"]
[null,"Fire Marshal, State","FIRE",310]
[null,"Firefighter Training, Council on ","FIRE","310a"]
[null,"Firefighters Pension and Retirement System","FPRS",315]
[null,"Foresters, State Board of Registration for","SBRF",615]
[null,"Funeral Board, Oklahoma","OFB",285]
[null,"Geological Survey, Oklahoma","OGS",325]
[null,"Governor, Office of the","GOV",305]
[null,"Grand River Dam Authority","GRDA",980]
[null,"Health Care Authority, Oklahoma","OHCA",807]
[null,"Health, Department of","OSDH",340]
[null,"Historical Society, Oklahoma","OHS",350]
[null,"Homeland Security, Office of","OKOHS"]
[null,"Horse Racing Commission, Oklahoma","OHRC",353]
[null,"House of Representatives, Oklahoma","OHR",422]
[null,"Housing Finance Agency, Oklahoma","OHFA",922]
[null,"Human Capital Management","HCM",548]
[null,"Human Rights Commission, Oklahoma","HRC",355]
[null,"Human Services, Department of","DHS",830]
[null,"Indigent Defense System, Oklahoma","OIDS",47]
[null,"Industrial Finance Authority, Oklahoma","OIFA",370]
[null,"Insurance Department, Oklahoma State","OID",385]
[null,"Insurance Department, Oklahoma State - Real Estate Appraiser Board","OID","385a"]
[null,"Interstate Oil Compact Commission","IOCC",307]
[null,"J.D. McCarty Center","JDMC",670]
[null,"J.M. Davis Memorial Commission","JMDMC",204]
[null,"Judicial Complaints, Council on","CJC",678]
[null,"Juvenile Affairs, Office of","OJA",400]
[null,"Labor, Department of","ODOL",405]
[null,"Commissioner of Land Office","CLO",410]
[null,"Law Enforcement Retirement System, Oklahoma","OLERS",416]
[null,"Legislative Service Bureau","LSB",423]
[null,"Libraries, Department of","ODL",430]
[null,"Libraries, Department of - Archives and Records Commission","ODL","430a"]
[null,"Lieutenant Governor, Office of the","LTGOV",440]
[null,"Liquefied Petroleum Gas Board","LPGB",445]
[null,"Long Term Care Administrators, Oklahoma State Board of Examiners for","OSBELTCA",509]
[null,"Lottery Commission, Oklahoma","OLC",432]
[null,"LP Gas Research, Marketing and Safety Commission","OKLPGAS",444]
[null,"Management and Enterprise Services, Office of","OMES",90]
[null,"Management and Enterprise Services, Office of - Division of Capital Assets Management","OMES",90]
[null,"Management and Enterprise Services, Office of - Public Employees Relations Board","OMES",90]
[null,"Medical Licensure and Supervision, Board of","OSBMLS",450]
[null,"Medicolegal Investigations, Board of/Office of the Chief Medical Examiner","OCME",342]
[null,"Mental Health and Substance Abuse Services, Department of","ODMHSAS",452]
[null,"Merit Protection Commission, Oklahoma","MPC",298]
[null,"Military Department, Oklahoma","OMD",25]
[null,"Mines, Department of","MD",125]
[null,"Motor Vehicle Commission, Oklahoma","OMVC",475]
[null,"Multiple Injury Trust Fund","MITF",391]
[null,"Municipal Power Authority, Oklahoma","OMPA",981]
[null,"Music Hall of Fame, Oklahoma","OMHOF"]
[null,"Narcotics and Dangerous Drugs Control, Bureau of","OBNDD",477]
[null,"Native American Cultural and Education Authority of Oklahoma","NACEA",361]
[null,"Nursing, Oklahoma Board of","OBN",510]
[null,"Optometry, Board of Examiners in","BOEO",520]
[null,"Osteopathic Examiners, State Board of","OSBOE",525]
[null,"Pardon and Parole Board","PPB",306]
[null,"Peanut Commission, Oklahoma","OPC",535]
[null,"Pension Commission, Oklahoma State","OSPC"]
[null,"Perfusionists, Board of Examiners of","OSBMLS",343]
[null,"Pharmacy Board, Oklahoma State","OSBP",560]
[null,"Physical Fitness and Sports, Governors Council on","OGCPFS"]
[null,"Physician Manpower Training Commission","PMTC",619]
[null,"Podiatric Medical Examiners, State Board of","SBPME",140]
[null,"Police Pension and Retirement System","OPPRS",557]
[null,"Private Vocational Schools, Board of","BPVS",563]
[null,"Professional Engineers & Land Surveyors, State Board of Licensure for","PELS",570]
[null,"Psychologists Examiners, Oklahoma State Board of","OSBEP",575]
[null,"Public Employees Retirement System, Oklahoma","OPERS",515]
[null,"Public Safety, Department of","DPS",585]
[null,"Quartz Mountain Arts and Conference Center and Nature Park","QMACC",620]
[null,"Real Estate Commission, Oklahoma","OREC",588]
[null,"Regents for Higher Education, Oklahoma State","OSRHE",605]
[null,"Regional University System of Oklahoma","RUSO",610]
[null,"Rehabilitation Services, Department of","DRS",805]
[null,"Scenic Rivers Commission","OSRC",568]
[null,"School of Science & Mathematics, Oklahoma","OSSM",629]
[null,"Secretary of State","SOS",625]
[null,"Securities Commission, Oklahoma","SEC",630]
[null,"Senate, Oklahoma State","OSS",421]
[null,"Sheep and Wool Commission, Oklahoma","OSWC",631]
[null,"Social Workers, Registration Board for Licensed","OSBLSW",622]
[null,"Sorghum Commission, Oklahoma","OSC",38]
[null,"Space Industry Development Authority, Oklahoma","OSIDA",346]
[null,"Speech-Language Pathology and Audiology Board","OBESPA",632]
[null,"State & Education Employees Group Insurance Board","SIB",516]
[null,"Status of Women, Commission on the","CSW"]
[null,"Student Loan Authority, Oklahoma","OSLA",618]
[null,"Supreme Court","OSCN",677]
[null,"Tax Commission, Oklahoma","OTC",695]
[null,"Teacher Preparation, Oklahoma Commission for","OCTP",269]
[null,"Teachers Retirement System","TRS",715]
[null,"Tests for Alcohol and Drug Influence, Board of","BOTADI",772]
[null,"Tobacco Settlement Endowment Trust","TSET",92]
[null,"Tourism & Recreation Department, Oklahoma","OTRD",566]
[null,"Transportation, Department of","ODOT",345]
[null,"Transportation, Department of, -  Highway Construction Materials Technician Certification Board","ODOT","345a"]
[null,"Treasurer, Oklahoma State","OST",740]
[null,"Turnpike Authority, Oklahoma","OTA",978]
[null,"Uniform Building Code Commission","UBCC",753]
[null,"University Hospitals Authority and Trust","UHAT",825]
[null,"Used Motor Vehicle and Parts Commission","UMVPC",755]
[null,"Veterans Affairs, Oklahoma Department of","ODVA",650]
[null,"Veterinary Medical Examiners, Board of","OBVME",790]
[null,"Water Resources Board, Oklahoma","OWRB",835]
[null,"Wheat Commission, Oklahoma","OWC",875]
[null,"Wildlife Conservation, Oklahoma Department of","ODWC",320]
[null,"Will Rogers Memorial Commission","WRMC",880]
[null,"Workers' Compensation Commission, Oklahoma","OWCCOMM",865]
[null,"Workers Compensation Court, Oklahoma","OWCCOURT",369]
[null,"Oklahoma Medical Marijuana Authority","OMMA",455]
[null,"State of Oklahoma Broadband Office","BBC",850]
[null,"Service Oklahoma ","SOK",640]
[null,"Employees Group Insurance Division","EGID",516]